Workbook

Sheet СМС
A1: № | B1: Робота | D1: Вид роботи | E1: Культура Формула | F1: Культура СМС | G1: Заг.План | H1: Заг.Факт | I1: Заг.% | J1: Заг.Доб | K1: Заг.Залиш | L1: Філія1 | M1: План | N1: Факт | O1: % | P1: За добу | Q1: Залишок | R1: Філія2 | S1: План | T1: Факт | U1: % | V1: За добу | W1: Залишок | X1: Філія3 | Y1: План | Z1: Факт | AA1: % | AB1: За добу | AC1: Залишок | AD1: Філія4 | AE1: План | AF1: Факт | AG1: % | AH1: За добу | AI1: Залишок | AJ1: Філія5 | AK1: План | AL1: Факт | AM1: % | AN1: За добу | AO1: Залишок

Sheet Word
A1: № | B1: Робота | D1: Вид роботи | E1: Культура Формула | F1: Культура СМС | G1: Заг.План | H1: Заг.Факт | I1: Заг.% | J1: Заг.Доб | K1: Заг.Залиш | L1: Філія1 | M1: План | N1: Факт | O1: % | P1: За добу | Q1: Залишок | R1: Філія2 | S1: План | T1: Факт | U1: % | V1: За добу | W1: Залишок | X1: Філія3 | Y1: План | Z1: Факт | AA1: % | AB1: За добу | AC1: Залишок | AD1: Філія4 | AE1: План | AF1: Факт | AG1: % | AH1: За добу | AI1: Залишок | AJ1: Філія5 | AK1: План | AL1: Факт | AM1: % | AN1: За добу | AO1: Залишок
A2: 1 | B2: ='За добу'!$B2 -> Внесення КАСу | D2: ='За добу'!$D2 -> Перше внесення по м.т.г. | E2: ='За добу'!$E2 -> б.т. 2018 | F2: =IF(E2="б.т. 2018","Трави Багаторічні-2018",IF(E2="оз.пш. 2018","Пшениця Озима-2018",IF(E2="оз.ріп. 2018","Ріпак Озимий-2018",IF(E2="к.з. 2018","Кукурудза на зерно-2018","ФОРМУЛА")))) -> Трави Багаторічні-2018 | G2: =M2+S2+Y2+AE2+AK2 -> 374.52 | H2: =N2+T2+Z2+AF2+AL2 -> 374.52 | I2: =IF(ISERR(H2/G2),0,H2/G2*100) -> 100 | J2: =P2+V2+AB2+AH2+AN2 -> 0 | K2: =G2-H2 -> 0 | L2: Філія1 | M2: =SUMIFS(План!$F:$F,План!$B:$B,Word!$B2,План!$D:$D,Word!$D2,План!$E:$E,Word!$E2) -> 0 | N2: =SUMIFS(Факт!$F:$F,Факт!$B:$B,Word!$B2,Факт!$D:$D,Word!$D2,Факт!$E:$E,Word!$E2) -> 0 | O2: =IF(ISERR(N2/M2),0,N2/M2*100) -> 0 | P2: =SUMIFS('За добу'!$F:$F,'За добу'!$B:$B,Word!$B2,'За добу'!$D:$D,Word!$D2,'За добу'!$E:$E,Word!$E2) -> 0 | Q2: =M2-N2 -> 0 | R2: Філія2 | S2: =SUMIFS(План!$G:$G,План!$B:$B,Word!$B2,План!$D:$D,Word!$D2,План!$E:$E,Word!$E2) -> 245.1 | T2: =SUMIFS(Факт!$G:$G,Факт!$B:$B,Word!$B2,Факт!$D:$D,Word!$D2,Факт!$E:$E,Word!$E2) -> 245.1 | U2: =IF(ISERR(T2/S2),0,T2/S2*100) -> 100 | V2: =SUMIFS('За добу'!$G:$G,'За добу'!$B:$B,Word!$B2,'За добу'!$D:$D,Word!$D2,'За добу'!$E:$E,Word!$E2) -> 0 | W2: =S2-T2 -> 0 | X2: Філія3 | Y2: =SUMIFS(План!$H:$H,План!$B:$B,Word!$B2,План!$D:$D,Word!$D2,План!$E:$E,Word!$E2) -> 129.42 | Z2: =SUMIFS(Факт!$H:$H,Факт!$B:$B,Word!$B2,Факт!$D:$D,Word!$D2,Факт!$E:$E,Word!$E2) -> 129.42 | AA2: =IF(ISERR(Z2/Y2),0,Z2/Y2*100) -> 100 | AB2: =SUMIFS('За добу'!$H:$H,'За добу'!$B:$B,Word!$B2,'За добу'!$D:$D,Word!$D2,'За добу'!$E:$E,Word!$E2) -> 0 | AC2: =Y2-Z2 -> 0 | AD2: Філія4 | AE2: =SUMIFS(План!$I:$I,План!$B:$B,Word!$B2,План!$D:$D,Word!$D2,План!$E:$E,Word!$E2) -> 0 | AF2: =SUMIFS(Факт!$I:$I,Факт!$B:$B,Word!$B2,Факт!$D:$D,Word!$D2,Факт!$E:$E,Word!$E2) -> 0 | AG2: =IF(ISERR(AF2/AE2),0,AF2/AE2*100) -> 0 | AH2: =SUMIFS('За добу'!$I:$I,'За добу'!$B:$B,Word!$B2,'За добу'!$D:$D,Word!$D2,'За добу'!$E:$E,Word!$E2) -> 0 | AI2: =AE2-AF2 -> 0 | AJ2: Філія5 | AK2: =SUMIFS(План!$J:$J,План!$B:$B,Word!$B2,План!$D:$D,Word!$D2,План!$E:$E,Word!$E2) -> 0 | AL2: =SUMIFS(Факт!$J:$J,Факт!$B:$B,Word!$B2,Факт!$D:$D,Word!$D2,Факт!$E:$E,Word!$E2) -> 0 | AM2: =IF(ISERR(AL2/AK2),0,AL2/AK2*100) -> 0 | AN2: =SUMIFS('За добу'!$J:$J,'За добу'!$B:$B,Word!$B2,'За добу'!$D:$D,Word!$D2,'За добу'!$E:$E,Word!$E2) -> 0 | AO2: =AK2-AL2 -> 0
A3: =IF($B3<>"",$A2+1,"") -> 2 | B3: ='За добу'!$B3 -> Внесення КАСу | D3: ='За добу'!$D3 -> Перше внесення по м.т.г. | E3: ='За добу'!$E3 -> оз.пш. 2018 | F3: Пшениця Озима-2018 | G3: =M3+S3+Y3+AE3+AK3 -> 7696 | H3: 5370.88 | I3: =IF(ISERR(H3/G3),0,H3/G3*100) -> 69.78794179 | J3: =P3+V3+AB3+AH3+AN3 -> 313 | K3: =G3-H3 -> 2325.12 | L3: Філія1 | M3: =SUMIFS(План!$F:$F,План!$B:$B,Word!$B3,План!$D:$D,Word!$D3,План!$E:$E,Word!$E3) -> 1002.1 | N3: =SUMIFS(Факт!$F:$F,Факт!$B:$B,Word!$B3,Факт!$D:$D,Word!$D3,Факт!$E:$E,Word!$E3) -> 1008.2 | O3: =IF(ISERR(N3/M3),0,N3/M3*100) -> 100.6087217 | P3: =SUMIFS('За добу'!$F:$F,'За добу'!$B:$B,Word!$B3,'За добу'!$D:$D,Word!$D3,'За добу'!$E:$E,Word!$E3) -> 9 | Q3: =M3-N3 -> -6.1 | R3: Філія2 | S3: =SUMIFS(План!$G:$G,План!$B:$B,Word!$B3,План!$D:$D,Word!$D3,План!$E:$E,Word!$E3) -> 1123.31 | T3: =SUMIFS(Факт!$G:$G,Факт!$B:$B,Word!$B3,Факт!$D:$D,Word!$D3,Факт!$E:$E,Word!$E3) -> 1125.11 | U3: =IF(ISERR(T3/S3),0,T3/S3*100) -> 100.1602407 | V3: =SUMIFS('За добу'!$G:$G,'За добу'!$B:$B,Word!$B3,'За добу'!$D:$D,Word!$D3,'За добу'!$E:$E,Word!$E3) -> 0 | W3: =S3-T3 -> -1.8 | X3: Філія3 | Y3: =SUMIFS(План!$H:$H,План!$B:$B,Word!$B3,План!$D:$D,Word!$D3,План!$E:$E,Word!$E3) -> 1642.09 | Z3: =SUMIFS(Факт!$H:$H,Факт!$B:$B,Word!$B3,Факт!$D:$D,Word!$D3,Факт!$E:$E,Word!$E3) -> 1641.97 | AA3: =IF(ISERR(Z3/Y3),0,Z3/Y3*100) -> 99.99269224 | AB3: =SUMIFS('За добу'!$H:$H,'За добу'!$B:$B,Word!$B3,'За добу'!$D:$D,Word!$D3,'За добу'!$E:$E,Word!$E3) -> 0 | AC3: =Y3-Z3 -> 0.12 | AD3: Філія4 | AE3: =SUMIFS(План!$I:$I,План!$B:$B,Word!$B3,План!$D:$D,Word!$D3,План!$E:$E,Word!$E3) -> 1150.5 | AF3: =SUMIFS(Факт!$I:$I,Факт!$B:$B,Word!$B3,Факт!$D:$D,Word!$D3,Факт!$E:$E,Word!$E3) -> 1117.6 | AG3: =IF(ISERR(AF3/AE3),0,AF3/AE3*100) -> 97.14037375 | AH3: =SUMIFS('За добу'!$I:$I,'За добу'!$B:$B,Word!$B3,'За добу'!$D:$D,Word!$D3,'За добу'!$E:$E,Word!$E3) -> 0 | AI3: =AE3-AF3 -> 32.9 | AJ3: Філія5 | AK3: =SUMIFS(План!$J:$J,План!$B:$B,Word!$B3,План!$D:$D,Word!$D3,План!$E:$E,Word!$E3) -> 2778 | AL3: =SUMIFS(Факт!$J:$J,Факт!$B:$B,Word!$B3,Факт!$D:$D,Word!$D3,Факт!$E:$E,Word!$E3) -> 478 | AM3: =IF(ISERR(AL3/AK3),0,AL3/AK3*100) -> 17.20662347 | AN3: =SUMIFS('За добу'!$J:$J,'За добу'!$B:$B,Word!$B3,'За добу'!$D:$D,Word!$D3,'За добу'!$E:$E,Word!$E3) -> 304 | AO3: =AK3-AL3 -> 2300
A4: 3 | B4: ='За добу'!$B4 -> Внесення КАСу | D4: ='За добу'!$D4 -> Перше внесення по м.т.г. | E4: ='За добу'!$E4 -> оз.ріп. 2018 | F4: Ріпак Озимий-2018 | G4: 1306.07 | H4: 800.05 | I4: 61.25628795 | J4: 0 | K4: 506.02 | L4: Філія1 | M4: =SUMIFS(План!$F:$F,План!$B:$B,Word!$B4,План!$D:$D,Word!$D4,План!$E:$E,Word!$E4) -> 183 | N4: =SUMIFS(Факт!$F:$F,Факт!$B:$B,Word!$B4,Факт!$D:$D,Word!$D4,Факт!$E:$E,Word!$E4) -> 183 | O4: 100 | P4: =SUMIFS('За добу'!$F:$F,'За добу'!$B:$B,Word!$B4,'За добу'!$D:$D,Word!$D4,'За добу'!$E:$E,Word!$E4) -> 0 | Q4: 0 | R4: Філія2 | S4: =SUMIFS(План!$G:$G,План!$B:$B,Word!$B4,План!$D:$D,Word!$D4,План!$E:$E,Word!$E4) -> 189.91 | T4: =SUMIFS(Факт!$G:$G,Факт!$B:$B,Word!$B4,Факт!$D:$D,Word!$D4,Факт!$E:$E,Word!$E4) -> 189.91 | U4: 100 | V4: =SUMIFS('За добу'!$G:$G,'За добу'!$B:$B,Word!$B4,'За добу'!$D:$D,Word!$D4,'За добу'!$E:$E,Word!$E4) -> 0 | W4: 0 | X4: Філія3 | Y4: =SUMIFS(План!$H:$H,План!$B:$B,Word!$B4,План!$D:$D,Word!$D4,План!$E:$E,Word!$E4) -> 134.16 | Z4: =SUMIFS(Факт!$H:$H,Факт!$B:$B,Word!$B4,Факт!$D:$D,Word!$D4,Факт!$E:$E,Word!$E4) -> 133.64 | AA4: 99.6124031 | AB4: =SUMIFS('За добу'!$H:$H,'За добу'!$B:$B,Word!$B4,'За добу'!$D:$D,Word!$D4,'За добу'!$E:$E,Word!$E4) -> 0 | AC4: 0.52 | AD4: Філія4 | AE4: =SUMIFS(План!$I:$I,План!$B:$B,Word!$B4,План!$D:$D,Word!$D4,План!$E:$E,Word!$E4) -> 295 | AF4: =SUMIFS(Факт!$I:$I,Факт!$B:$B,Word!$B4,Факт!$D:$D,Word!$D4,Факт!$E:$E,Word!$E4) -> 293.5 | AG4: 99.49152542 | AH4: =SUMIFS('За добу'!$I:$I,'За добу'!$B:$B,Word!$B4,'За добу'!$D:$D,Word!$D4,'За добу'!$E:$E,Word!$E4) -> 0 | AI4: 1.5 | AJ4: Філія5 | AK4: =SUMIFS(План!$J:$J,План!$B:$B,Word!$B4,План!$D:$D,Word!$D4,План!$E:$E,Word!$E4) -> 504 | AL4: =SUMIFS(Факт!$J:$J,Факт!$B:$B,Word!$B4,Факт!$D:$D,Word!$D4,Факт!$E:$E,Word!$E4) -> 0 | AM4: 0 | AN4: =SUMIFS('За добу'!$J:$J,'За добу'!$B:$B,Word!$B4,'За добу'!$D:$D,Word!$D4,'За добу'!$E:$E,Word!$E4) -> 0 | AO4: 504
A5: 4 | B5: ='За добу'!$B5 -> Внесення м/д (сульфат-магнію) | D5: ='За добу'!$D5 -> Перше підживлення по м.т.г. | E5: ='За добу'!$E5 -> оз.пш. 2018 | F5: Пшениця Озима-2018 | G5: 7696 | H5: 5048.98 | I5: 65.60524948 | J5: 384 | K5: 2647.02 | L5: Філія1 | M5: =SUMIFS(План!$F:$F,План!$B:$B,Word!$B5,План!$D:$D,Word!$D5,План!$E:$E,Word!$E5) -> 1002.1 | N5: =SUMIFS(Факт!$F:$F,Факт!$B:$B,Word!$B5,Факт!$D:$D,Word!$D5,Факт!$E:$E,Word!$E5) -> 974.1 | O5: 97.20586768 | P5: =SUMIFS('За добу'!$F:$F,'За добу'!$B:$B,Word!$B5,'За добу'!$D:$D,Word!$D5,'За добу'!$E:$E,Word!$E5) -> 0 | Q5: 28 | R5: Філія2 | S5: =SUMIFS(План!$G:$G,План!$B:$B,Word!$B5,План!$D:$D,Word!$D5,План!$E:$E,Word!$E5) -> 1123.31 | T5: =SUMIFS(Факт!$G:$G,Факт!$B:$B,Word!$B5,Факт!$D:$D,Word!$D5,Факт!$E:$E,Word!$E5) -> 1123.31 | U5: 100 | V5: =SUMIFS('За добу'!$G:$G,'За добу'!$B:$B,Word!$B5,'За добу'!$D:$D,Word!$D5,'За добу'!$E:$E,Word!$E5) -> 0 | W5: 0 | X5: Філія3 | Y5: =SUMIFS(План!$H:$H,План!$B:$B,Word!$B5,План!$D:$D,Word!$D5,План!$E:$E,Word!$E5) -> 1642.09 | Z5: =SUMIFS(Факт!$H:$H,Факт!$B:$B,Word!$B5,Факт!$D:$D,Word!$D5,Факт!$E:$E,Word!$E5) -> 1641.57 | AA5: 99.96833304 | AB5: =SUMIFS('За добу'!$H:$H,'За добу'!$B:$B,Word!$B5,'За добу'!$D:$D,Word!$D5,'За добу'!$E:$E,Word!$E5) -> 0 | AC5: 0.52 | AD5: Філія4 | AE5: =SUMIFS(План!$I:$I,План!$B:$B,Word!$B5,План!$D:$D,Word!$D5,План!$E:$E,Word!$E5) -> 1150.5 | AF5: =SUMIFS(Факт!$I:$I,Факт!$B:$B,Word!$B5,Факт!$D:$D,Word!$D5,Факт!$E:$E,Word!$E5) -> 926 | AG5: 80.48674489 | AH5: =SUMIFS('За добу'!$I:$I,'За добу'!$B:$B,Word!$B5,'За добу'!$D:$D,Word!$D5,'За добу'!$E:$E,Word!$E5) -> 0 | AI5: 224.5 | AJ5: Філія5 | AK5: =SUMIFS(План!$J:$J,План!$B:$B,Word!$B5,План!$D:$D,Word!$D5,План!$E:$E,Word!$E5) -> 2778 | AL5: =SUMIFS(Факт!$J:$J,Факт!$B:$B,Word!$B5,Факт!$D:$D,Word!$D5,Факт!$E:$E,Word!$E5) -> 384 | AM5: 13.82289417 | AN5: =SUMIFS('За добу'!$J:$J,'За добу'!$B:$B,Word!$B5,'За добу'!$D:$D,Word!$D5,'За добу'!$E:$E,Word!$E5) -> 384 | AO5: 2394
A6: 5 | B6: ='За добу'!$B6 -> Внесення м/д (сульфат-магнію) | D6: ='За добу'!$D6 -> Перше підживлення по м.т.г. | E6: ='За добу'!$E6 -> оз.ріп. 2018 | F6: Ріпак Озимий-2018 | G6: 1306.07 | H6: 898.07 | I6: 68.76124557 | J6: 154 | K6: 408 | L6: Філія1 | M6: =SUMIFS(План!$F:$F,План!$B:$B,Word!$B6,План!$D:$D,Word!$D6,План!$E:$E,Word!$E6) -> 183 | N6: =SUMIFS(Факт!$F:$F,Факт!$B:$B,Word!$B6,Факт!$D:$D,Word!$D6,Факт!$E:$E,Word!$E6) -> 125 | O6: 68.30601093 | P6: =SUMIFS('За добу'!$F:$F,'За добу'!$B:$B,Word!$B6,'За добу'!$D:$D,Word!$D6,'За добу'!$E:$E,Word!$E6) -> 0 | Q6: 58 | R6: Філія2 | S6: =SUMIFS(План!$G:$G,План!$B:$B,Word!$B6,План!$D:$D,Word!$D6,План!$E:$E,Word!$E6) -> 189.91 | T6: =SUMIFS(Факт!$G:$G,Факт!$B:$B,Word!$B6,Факт!$D:$D,Word!$D6,Факт!$E:$E,Word!$E6) -> 189.91 | U6: 100 | V6: =SUMIFS('За добу'!$G:$G,'За добу'!$B:$B,Word!$B6,'За добу'!$D:$D,Word!$D6,'За добу'!$E:$E,Word!$E6) -> 0 | W6: 0 | X6: Філія3 | Y6: =SUMIFS(План!$H:$H,План!$B:$B,Word!$B6,План!$D:$D,Word!$D6,План!$E:$E,Word!$E6) -> 134.16 | Z6: =SUMIFS(Факт!$H:$H,Факт!$B:$B,Word!$B6,Факт!$D:$D,Word!$D6,Факт!$E:$E,Word!$E6) -> 134.16 | AA6: 100 | AB6: =SUMIFS('За добу'!$H:$H,'За добу'!$B:$B,Word!$B6,'За добу'!$D:$D,Word!$D6,'За добу'!$E:$E,Word!$E6) -> 0 | AC6: 0 | AD6: Філія4 | AE6: =SUMIFS(План!$I:$I,План!$B:$B,Word!$B6,План!$D:$D,Word!$D6,План!$E:$E,Word!$E6) -> 295 | AF6: =SUMIFS(Факт!$I:$I,Факт!$B:$B,Word!$B6,Факт!$D:$D,Word!$D6,Факт!$E:$E,Word!$E6) -> 295 | AG6: 100 | AH6: =SUMIFS('За добу'!$I:$I,'За добу'!$B:$B,Word!$B6,'За добу'!$D:$D,Word!$D6,'За добу'!$E:$E,Word!$E6) -> 0 | AI6: 0 | AJ6: Філія5 | AK6: =SUMIFS(План!$J:$J,План!$B:$B,Word!$B6,План!$D:$D,Word!$D6,План!$E:$E,Word!$E6) -> 504 | AL6: =SUMIFS(Факт!$J:$J,Факт!$B:$B,Word!$B6,Факт!$D:$D,Word!$D6,Факт!$E:$E,Word!$E6) -> 154 | AM6: 30.55555556 | AN6: =SUMIFS('За добу'!$J:$J,'За добу'!$B:$B,Word!$B6,'За добу'!$D:$D,Word!$D6,'За добу'!$E:$E,Word!$E6) -> 154 | AO6: 350
A7: 6 | B7: ='За добу'!$B7 -> Внесення м/д (сульфат-магнію) | D7: ='За добу'!$D7 -> Перше підживлення по м.т.г. | E7: ='За добу'!$E7 -> б.т. 2018 | F7: Трави Багаторічні-2018 | G7: 374.52 | H7: 372.04 | I7: 99.33781908 | J7: 0 | K7: 2.48 | L7: Філія1 | M7: =SUMIFS(План!$F:$F,План!$B:$B,Word!$B7,План!$D:$D,Word!$D7,План!$E:$E,Word!$E7) -> 0 | N7: =SUMIFS(Факт!$F:$F,Факт!$B:$B,Word!$B7,Факт!$D:$D,Word!$D7,Факт!$E:$E,Word!$E7) -> 0 | O7: 0 | P7: =SUMIFS('За добу'!$F:$F,'За добу'!$B:$B,Word!$B7,'За добу'!$D:$D,Word!$D7,'За добу'!$E:$E,Word!$E7) -> 0 | Q7: 0 | R7: Філія2 | S7: =SUMIFS(План!$G:$G,План!$B:$B,Word!$B7,План!$D:$D,Word!$D7,План!$E:$E,Word!$E7) -> 245.1 | T7: =SUMIFS(Факт!$G:$G,Факт!$B:$B,Word!$B7,Факт!$D:$D,Word!$D7,Факт!$E:$E,Word!$E7) -> 244.95 | U7: 99.93880049 | V7: =SUMIFS('За добу'!$G:$G,'За добу'!$B:$B,Word!$B7,'За добу'!$D:$D,Word!$D7,'За добу'!$E:$E,Word!$E7) -> 0 | W7: 0.15 | X7: Філія3 | Y7: =SUMIFS(План!$H:$H,План!$B:$B,Word!$B7,План!$D:$D,Word!$D7,План!$E:$E,Word!$E7) -> 129.42 | Z7: =SUMIFS(Факт!$H:$H,Факт!$B:$B,Word!$B7,Факт!$D:$D,Word!$D7,Факт!$E:$E,Word!$E7) -> 127.09 | AA7: 98.19966002 | AB7: =SUMIFS('За добу'!$H:$H,'За добу'!$B:$B,Word!$B7,'За добу'!$D:$D,Word!$D7,'За добу'!$E:$E,Word!$E7) -> 0 | AC7: 2.33 | AD7: Філія4 | AE7: =SUMIFS(План!$I:$I,План!$B:$B,Word!$B7,План!$D:$D,Word!$D7,План!$E:$E,Word!$E7) -> 0 | AF7: =SUMIFS(Факт!$I:$I,Факт!$B:$B,Word!$B7,Факт!$D:$D,Word!$D7,Факт!$E:$E,Word!$E7) -> 0 | AG7: 0 | AH7: =SUMIFS('За добу'!$I:$I,'За добу'!$B:$B,Word!$B7,'За добу'!$D:$D,Word!$D7,'За добу'!$E:$E,Word!$E7) -> 0 | AI7: 0 | AJ7: Філія5 | AK7: =SUMIFS(План!$J:$J,План!$B:$B,Word!$B7,План!$D:$D,Word!$D7,План!$E:$E,Word!$E7) -> 0 | AL7: =SUMIFS(Факт!$J:$J,Факт!$B:$B,Word!$B7,Факт!$D:$D,Word!$D7,Факт!$E:$E,Word!$E7) -> 0 | AM7: 0 | AN7: =SUMIFS('За добу'!$J:$J,'За добу'!$B:$B,Word!$B7,'За добу'!$D:$D,Word!$D7,'За добу'!$E:$E,Word!$E7) -> 0 | AO7: 0
A8: 7 | B8: ='За добу'!$B8 -> Внесення (NРК 10-26-26) | D8: ='За добу'!$D8 -> Внес. м.д. основне | E8: ='За добу'!$E8 -> к.з. 2018 | F8: Кукурудза на зерно-2018 | G8: =M8+S8+Y8+AE8+AK8 -> 9473.75 | H8: =N8+T8+Z8+AF8+AL8 -> 2041.91 | I8: =IF(ISERR(H8/G8),0,H8/G8*100) -> 21.55334477 | J8: 0 | K8: =G8-H8 -> 7431.84 | L8: Філія1 | M8: =SUMIFS(План!$F:$F,План!$B:$B,Word!$B8,План!$D:$D,Word!$D8,План!$E:$E,Word!$E8) -> 1831.54 | N8: =SUMIFS(Факт!$F:$F,Факт!$B:$B,Word!$B8,Факт!$D:$D,Word!$D8,Факт!$E:$E,Word!$E8) -> 64 | O8: =IF(ISERR(N8/M8),0,N8/M8*100) -> 3.494327178 | P8: =SUMIFS('За добу'!$F:$F,'За добу'!$B:$B,Word!$B8,'За добу'!$D:$D,Word!$D8,'За добу'!$E:$E,Word!$E8) -> 0 | Q8: =M8-N8 -> 1767.54 | R8: Філія2 | S8: =SUMIFS(План!$G:$G,План!$B:$B,Word!$B8,План!$D:$D,Word!$D8,План!$E:$E,Word!$E8) -> 1865.75 | T8: =SUMIFS(Факт!$G:$G,Факт!$B:$B,Word!$B8,Факт!$D:$D,Word!$D8,Факт!$E:$E,Word!$E8) -> 876.98 | U8: =IF(ISERR(T8/S8),0,T8/S8*100) -> 47.00415383 | V8: =SUMIFS('За добу'!$G:$G,'За добу'!$B:$B,Word!$B8,'За добу'!$D:$D,Word!$D8,'За добу'!$E:$E,Word!$E8) -> 0 | W8: =S8-T8 -> 988.77 | X8: Філія3 | Y8: =SUMIFS(План!$H:$H,План!$B:$B,Word!$B8,План!$D:$D,Word!$D8,План!$E:$E,Word!$E8) -> 1693.34 | Z8: =SUMIFS(Факт!$H:$H,Факт!$B:$B,Word!$B8,Факт!$D:$D,Word!$D8,Факт!$E:$E,Word!$E8) -> 1100.93 | AA8: =IF(ISERR(Z8/Y8),0,Z8/Y8*100) -> 65.01529522 | AB8: =SUMIFS('За добу'!$H:$H,'За добу'!$B:$B,Word!$B8,'За добу'!$D:$D,Word!$D8,'За добу'!$E:$E,Word!$E8) -> 0 | AC8: =Y8-Z8 -> 592.41 | AD8: Філія4 | AE8: =SUMIFS(План!$I:$I,План!$B:$B,Word!$B8,План!$D:$D,Word!$D8,План!$E:$E,Word!$E8) -> 1055.12 | AF8: =SUMIFS(Факт!$I:$I,Факт!$B:$B,Word!$B8,Факт!$D:$D,Word!$D8,Факт!$E:$E,Word!$E8) -> 0 | AG8: =IF(ISERR(AF8/AE8),0,AF8/AE8*100) -> 0 | AH8: =SUMIFS('За добу'!$I:$I,'За добу'!$B:$B,Word!$B8,'За добу'!$D:$D,Word!$D8,'За добу'!$E:$E,Word!$E8) -> 0 | AI8: =AE8-AF8 -> 1055.12 | AJ8: Філія5 | AK8: =SUMIFS(План!$J:$J,План!$B:$B,Word!$B8,План!$D:$D,Word!$D8,План!$E:$E,Word!$E8) -> 3028 | AL8: =SUMIFS(Факт!$J:$J,Факт!$B:$B,Word!$B8,Факт!$D:$D,Word!$D8,Факт!$E:$E,Word!$E8) -> 0 | AM8: =IF(ISERR(AL8/AK8),0,AL8/AK8*100) -> 0 | AN8: =SUMIFS('За добу'!$J:$J,'За добу'!$B:$B,Word!$B8,'За добу'!$D:$D,Word!$D8,'За добу'!$E:$E,Word!$E8) -> 0 | AO8: =AK8-AL8 -> 3028
B9: ='За добу'!$B9 -> 0 | D9: ='За добу'!$D9 -> 0 | E9: ='За добу'!$E9 -> 0 | F9: =IF(E9="б.т. 2018","Трави Багаторічні-2018",IF(E9="оз.пш. 2018","Пшениця Озима-2018",IF(E9="оз.ріп. 2018","Ріпак Озимий-2018",IF(E9="к.з. 2018","Кукурудза на зерно-2018","ФОРМУЛА")))) -> ФОРМУЛА | G9: =M9+S9+Y9+AE9+AK9 -> 0 | H9: =N9+T9+Z9+AF9+AL9 -> 0 | I9: =IF(ISERR(H9/G9),0,H9/G9*100) -> 0 | J9: 0 | K9: =G9-H9 -> 0 | L9: Філія1 | M9: =SUMIFS(План!$F:$F,План!$B:$B,Word!$B9,План!$D:$D,Word!$D9,План!$E:$E,Word!$E9) -> 0 | N9: =SUMIFS(Факт!$F:$F,Факт!$B:$B,Word!$B9,Факт!$D:$D,Word!$D9,Факт!$E:$E,Word!$E9) -> 0 | O9: =IF(ISERR(N9/M9),0,N9/M9*100) -> 0 | P9: =SUMIFS('За добу'!$F:$F,'За добу'!$B:$B,Word!$B9,'За добу'!$D:$D,Word!$D9,'За добу'!$E:$E,Word!$E9) -> 0 | Q9: =M9-N9 -> 0 | R9: Філія2 | S9: =SUMIFS(План!$G:$G,План!$B:$B,Word!$B9,План!$D:$D,Word!$D9,План!$E:$E,Word!$E9) -> 0 | T9: =SUMIFS(Факт!$G:$G,Факт!$B:$B,Word!$B9,Факт!$D:$D,Word!$D9,Факт!$E:$E,Word!$E9) -> 0 | U9: =IF(ISERR(T9/S9),0,T9/S9*100) -> 0 | V9: =SUMIFS('За добу'!$G:$G,'За добу'!$B:$B,Word!$B9,'За добу'!$D:$D,Word!$D9,'За добу'!$E:$E,Word!$E9) -> 0 | W9: =S9-T9 -> 0 | X9: Філія3 | Y9: =SUMIFS(План!$H:$H,План!$B:$B,Word!$B9,План!$D:$D,Word!$D9,План!$E:$E,Word!$E9) -> 0 | Z9: =SUMIFS(Факт!$H:$H,Факт!$B:$B,Word!$B9,Факт!$D:$D,Word!$D9,Факт!$E:$E,Word!$E9) -> 0 | AA9: =IF(ISERR(Z9/Y9),0,Z9/Y9*100) -> 0 | AB9: =SUMIFS('За добу'!$H:$H,'За добу'!$B:$B,Word!$B9,'За добу'!$D:$D,Word!$D9,'За добу'!$E:$E,Word!$E9) -> 0 | AC9: =Y9-Z9 -> 0 | AD9: Філія4 | AE9: =SUMIFS(План!$I:$I,План!$B:$B,Word!$B9,План!$D:$D,Word!$D9,План!$E:$E,Word!$E9) -> 0 | AF9: =SUMIFS(Факт!$I:$I,Факт!$B:$B,Word!$B9,Факт!$D:$D,Word!$D9,Факт!$E:$E,Word!$E9) -> 0 | AG9: =IF(ISERR(AF9/AE9),0,AF9/AE9*100) -> 0 | AH9: =SUMIFS('За добу'!$I:$I,'За добу'!$B:$B,Word!$B9,'За добу'!$D:$D,Word!$D9,'За добу'!$E:$E,Word!$E9) -> 0 | AI9: =AE9-AF9 -> 0 | AJ9: Філія5 | AK9: =SUMIFS(План!$J:$J,План!$B:$B,Word!$B9,План!$D:$D,Word!$D9,План!$E:$E,Word!$E9) -> 0 | AL9: =SUMIFS(Факт!$J:$J,Факт!$B:$B,Word!$B9,Факт!$D:$D,Word!$D9,Факт!$E:$E,Word!$E9) -> 0 | AM9: =IF(ISERR(AL9/AK9),0,AL9/AK9*100) -> 0 | AN9: =SUMIFS('За добу'!$J:$J,'За добу'!$B:$B,Word!$B9,'За добу'!$D:$D,Word!$D9,'За добу'!$E:$E,Word!$E9) -> 0 | AO9: =AK9-AL9 -> 0
B10: ='За добу'!$B10 -> 0 | D10: ='За добу'!$D10 -> 0 | E10: ='За добу'!$E10 -> 0 | F10: ФОРМУЛА | G10: =M10+S10+Y10+AE10+AK10 -> 0 | H10: =N10+T10+Z10+AF10+AL10 -> 0 | I10: =IF(ISERR(H10/G10),0,H10/G10*100) -> 0 | J10: =P10+V10+AB10+AH10+AN10 -> 0 | K10: =G10-H10 -> 0 | L10: Філія1 | M10: =SUMIFS(План!$F:$F,План!$B:$B,Word!$B10,План!$D:$D,Word!$D10,План!$E:$E,Word!$E10) -> 0 | N10: =SUMIFS(Факт!$F:$F,Факт!$B:$B,Word!$B10,Факт!$D:$D,Word!$D10,Факт!$E:$E,Word!$E10) -> 0 | O10: =IF(ISERR(N10/M10),0,N10/M10*100) -> 0 | P10: =SUMIFS('За добу'!$F:$F,'За добу'!$B:$B,Word!$B10,'За добу'!$D:$D,Word!$D10,'За добу'!$E:$E,Word!$E10) -> 0 | Q10: =M10-N10 -> 0 | R10: Філія2 | S10: =SUMIFS(План!$G:$G,План!$B:$B,Word!$B10,План!$D:$D,Word!$D10,План!$E:$E,Word!$E10) -> 0 | T10: =SUMIFS(Факт!$G:$G,Факт!$B:$B,Word!$B10,Факт!$D:$D,Word!$D10,Факт!$E:$E,Word!$E10) -> 0 | U10: =IF(ISERR(T10/S10),0,T10/S10*100) -> 0 | V10: =SUMIFS('За добу'!$G:$G,'За добу'!$B:$B,Word!$B10,'За добу'!$D:$D,Word!$D10,'За добу'!$E:$E,Word!$E10) -> 0 | W10: =S10-T10 -> 0 | X10: Філія3 | Y10: =SUMIFS(План!$H:$H,План!$B:$B,Word!$B10,План!$D:$D,Word!$D10,План!$E:$E,Word!$E10) -> 0 | Z10: =SUMIFS(Факт!$H:$H,Факт!$B:$B,Word!$B10,Факт!$D:$D,Word!$D10,Факт!$E:$E,Word!$E10) -> 0 | AA10: =IF(ISERR(Z10/Y10),0,Z10/Y10*100) -> 0 | AB10: =SUMIFS('За добу'!$H:$H,'За добу'!$B:$B,Word!$B10,'За добу'!$D:$D,Word!$D10,'За добу'!$E:$E,Word!$E10) -> 0 | AC10: =Y10-Z10 -> 0 | AD10: Філія4 | AE10: =SUMIFS(План!$I:$I,План!$B:$B,Word!$B10,План!$D:$D,Word!$D10,План!$E:$E,Word!$E10) -> 0 | AF10: =SUMIFS(Факт!$I:$I,Факт!$B:$B,Word!$B10,Факт!$D:$D,Word!$D10,Факт!$E:$E,Word!$E10) -> 0 | AG10: =IF(ISERR(AF10/AE10),0,AF10/AE10*100) -> 0 | AH10: =SUMIFS('За добу'!$I:$I,'За добу'!$B:$B,Word!$B10,'За добу'!$D:$D,Word!$D10,'За добу'!$E:$E,Word!$E10) -> 0 | AI10: =AE10-AF10 -> 0 | AJ10: Філія5 | AK10: =SUMIFS(План!$J:$J,План!$B:$B,Word!$B10,План!$D:$D,Word!$D10,План!$E:$E,Word!$E10) -> 0 | AL10: =SUMIFS(Факт!$J:$J,Факт!$B:$B,Word!$B10,Факт!$D:$D,Word!$D10,Факт!$E:$E,Word!$E10) -> 0 | AM10: =IF(ISERR(AL10/AK10),0,AL10/AK10*100) -> 0 | AN10: =SUMIFS('За добу'!$J:$J,'За добу'!$B:$B,Word!$B10,'За добу'!$D:$D,Word!$D10,'За добу'!$E:$E,Word!$E10) -> 0 | AO10: =AK10-AL10 -> 0
B11: ='За добу'!$B11 -> 0 | D11: ='За добу'!$D11 -> 0 | E11: ='За добу'!$E11 -> 0 | F11: ФОРМУЛА | G11: 0 | H11: 0 | I11: 0 | J11: 0 | K11: 0 | L11: Філія1 | M11: =SUMIFS(План!$F:$F,План!$B:$B,Word!$B11,План!$D:$D,Word!$D11,План!$E:$E,Word!$E11) -> 0 | N11: =SUMIFS(Факт!$F:$F,Факт!$B:$B,Word!$B11,Факт!$D:$D,Word!$D11,Факт!$E:$E,Word!$E11) -> 0 | O11: 0 | P11: =SUMIFS('За добу'!$F:$F,'За добу'!$B:$B,Word!$B11,'За добу'!$D:$D,Word!$D11,'За добу'!$E:$E,Word!$E11) -> 0 | Q11: 0 | R11: Філія2 | S11: =SUMIFS(План!$G:$G,План!$B:$B,Word!$B11,План!$D:$D,Word!$D11,План!$E:$E,Word!$E11) -> 0 | T11: =SUMIFS(Факт!$G:$G,Факт!$B:$B,Word!$B11,Факт!$D:$D,Word!$D11,Факт!$E:$E,Word!$E11) -> 0 | U11: 0 | V11: =SUMIFS('За добу'!$G:$G,'За добу'!$B:$B,Word!$B11,'За добу'!$D:$D,Word!$D11,'За добу'!$E:$E,Word!$E11) -> 0 | W11: 0 | X11: Філія3 | Y11: =SUMIFS(План!$H:$H,План!$B:$B,Word!$B11,План!$D:$D,Word!$D11,План!$E:$E,Word!$E11) -> 0 | Z11: =SUMIFS(Факт!$H:$H,Факт!$B:$B,Word!$B11,Факт!$D:$D,Word!$D11,Факт!$E:$E,Word!$E11) -> 0 | AA11: 0 | AB11: =SUMIFS('За добу'!$H:$H,'За добу'!$B:$B,Word!$B11,'За добу'!$D:$D,Word!$D11,'За добу'!$E:$E,Word!$E11) -> 0 | AC11: 0 | AD11: Філія4 | AE11: =SUMIFS(План!$I:$I,План!$B:$B,Word!$B11,План!$D:$D,Word!$D11,План!$E:$E,Word!$E11) -> 0 | AF11: =SUMIFS(Факт!$I:$I,Факт!$B:$B,Word!$B11,Факт!$D:$D,Word!$D11,Факт!$E:$E,Word!$E11) -> 0 | AG11: 0 | AH11: =SUMIFS('За добу'!$I:$I,'За добу'!$B:$B,Word!$B11,'За добу'!$D:$D,Word!$D11,'За добу'!$E:$E,Word!$E11) -> 0 | AI11: 0 | AJ11: Філія5 | AK11: =SUMIFS(План!$J:$J,План!$B:$B,Word!$B11,План!$D:$D,Word!$D11,План!$E:$E,Word!$E11) -> 0 | AL11: =SUMIFS(Факт!$J:$J,Факт!$B:$B,Word!$B11,Факт!$D:$D,Word!$D11,Факт!$E:$E,Word!$E11) -> 0 | AM11: 0 | AN11: =SUMIFS('За добу'!$J:$J,'За добу'!$B:$B,Word!$B11,'За добу'!$D:$D,Word!$D11,'За добу'!$E:$E,Word!$E11) -> 0 | AO11: 0
B12: ='За добу'!$B12 -> 0 | D12: ='За добу'!$D12 -> 0 | E12: ='За добу'!$E12 -> 0 | F12: ФОРМУЛА | G12: 0 | H12: 0 | I12: 0 | J12: 0 | K12: 0 | L12: Філія1 | M12: =SUMIFS(План!$F:$F,План!$B:$B,Word!$B12,План!$D:$D,Word!$D12,План!$E:$E,Word!$E12) -> 0 | N12: =SUMIFS(Факт!$F:$F,Факт!$B:$B,Word!$B12,Факт!$D:$D,Word!$D12,Факт!$E:$E,Word!$E12) -> 0 | O12: 0 | P12: =SUMIFS('За добу'!$F:$F,'За добу'!$B:$B,Word!$B12,'За добу'!$D:$D,Word!$D12,'За добу'!$E:$E,Word!$E12) -> 0 | Q12: 0 | R12: Філія2 | S12: =SUMIFS(План!$G:$G,План!$B:$B,Word!$B12,План!$D:$D,Word!$D12,План!$E:$E,Word!$E12) -> 0 | T12: =SUMIFS(Факт!$G:$G,Факт!$B:$B,Word!$B12,Факт!$D:$D,Word!$D12,Факт!$E:$E,Word!$E12) -> 0 | U12: 0 | V12: =SUMIFS('За добу'!$G:$G,'За добу'!$B:$B,Word!$B12,'За добу'!$D:$D,Word!$D12,'За добу'!$E:$E,Word!$E12) -> 0 | W12: 0 | X12: Філія3 | Y12: =SUMIFS(План!$H:$H,План!$B:$B,Word!$B12,План!$D:$D,Word!$D12,План!$E:$E,Word!$E12) -> 0 | Z12: =SUMIFS(Факт!$H:$H,Факт!$B:$B,Word!$B12,Факт!$D:$D,Word!$D12,Факт!$E:$E,Word!$E12) -> 0 | AA12: 0 | AB12: =SUMIFS('За добу'!$H:$H,'За добу'!$B:$B,Word!$B12,'За добу'!$D:$D,Word!$D12,'За добу'!$E:$E,Word!$E12) -> 0 | AC12: 0 | AD12: Філія4 | AE12: =SUMIFS(План!$I:$I,План!$B:$B,Word!$B12,План!$D:$D,Word!$D12,План!$E:$E,Word!$E12) -> 0 | AF12: =SUMIFS(Факт!$I:$I,Факт!$B:$B,Word!$B12,Факт!$D:$D,Word!$D12,Факт!$E:$E,Word!$E12) -> 0 | AG12: 0 | AH12: =SUMIFS('За добу'!$I:$I,'За добу'!$B:$B,Word!$B12,'За добу'!$D:$D,Word!$D12,'За добу'!$E:$E,Word!$E12) -> 0 | AI12: 0 | AJ12: Філія5 | AK12: =SUMIFS(План!$J:$J,План!$B:$B,Word!$B12,План!$D:$D,Word!$D12,План!$E:$E,Word!$E12) -> 0 | AL12: =SUMIFS(Факт!$J:$J,Факт!$B:$B,Word!$B12,Факт!$D:$D,Word!$D12,Факт!$E:$E,Word!$E12) -> 0 | AM12: 0 | AN12: =SUMIFS('За добу'!$J:$J,'За добу'!$B:$B,Word!$B12,'За добу'!$D:$D,Word!$D12,'За добу'!$E:$E,Word!$E12) -> 0 | AO12: 0
B13: ='За добу'!$B13 -> 0 | D13: ='За добу'!$D13 -> 0 | E13: ='За добу'!$E13 -> 0 | F13: ФОРМУЛА | G13: 0 | H13: 0 | I13: 0 | J13: 0 | K13: 0 | L13: Філія1 | M13: =SUMIFS(План!$F:$F,План!$B:$B,Word!$B13,План!$D:$D,Word!$D13,План!$E:$E,Word!$E13) -> 0 | N13: =SUMIFS(Факт!$F:$F,Факт!$B:$B,Word!$B13,Факт!$D:$D,Word!$D13,Факт!$E:$E,Word!$E13) -> 0 | O13: 0 | P13: =SUMIFS('За добу'!$F:$F,'За добу'!$B:$B,Word!$B13,'За добу'!$D:$D,Word!$D13,'За добу'!$E:$E,Word!$E13) -> 0 | Q13: 0 | R13: Філія2 | S13: =SUMIFS(План!$G:$G,План!$B:$B,Word!$B13,План!$D:$D,Word!$D13,План!$E:$E,Word!$E13) -> 0 | T13: =SUMIFS(Факт!$G:$G,Факт!$B:$B,Word!$B13,Факт!$D:$D,Word!$D13,Факт!$E:$E,Word!$E13) -> 0 | U13: 0 | V13: =SUMIFS('За добу'!$G:$G,'За добу'!$B:$B,Word!$B13,'За добу'!$D:$D,Word!$D13,'За добу'!$E:$E,Word!$E13) -> 0 | W13: 0 | X13: Філія3 | Y13: =SUMIFS(План!$H:$H,План!$B:$B,Word!$B13,План!$D:$D,Word!$D13,План!$E:$E,Word!$E13) -> 0 | Z13: =SUMIFS(Факт!$H:$H,Факт!$B:$B,Word!$B13,Факт!$D:$D,Word!$D13,Факт!$E:$E,Word!$E13) -> 0 | AA13: 0 | AB13: =SUMIFS('За добу'!$H:$H,'За добу'!$B:$B,Word!$B13,'За добу'!$D:$D,Word!$D13,'За добу'!$E:$E,Word!$E13) -> 0 | AC13: 0 | AD13: Філія4 | AE13: =SUMIFS(План!$I:$I,План!$B:$B,Word!$B13,План!$D:$D,Word!$D13,План!$E:$E,Word!$E13) -> 0 | AF13: =SUMIFS(Факт!$I:$I,Факт!$B:$B,Word!$B13,Факт!$D:$D,Word!$D13,Факт!$E:$E,Word!$E13) -> 0 | AG13: 0 | AH13: =SUMIFS('За добу'!$I:$I,'За добу'!$B:$B,Word!$B13,'За добу'!$D:$D,Word!$D13,'За добу'!$E:$E,Word!$E13) -> 0 | AI13: 0 | AJ13: Філія5 | AK13: =SUMIFS(План!$J:$J,План!$B:$B,Word!$B13,План!$D:$D,Word!$D13,План!$E:$E,Word!$E13) -> 0 | AL13: =SUMIFS(Факт!$J:$J,Факт!$B:$B,Word!$B13,Факт!$D:$D,Word!$D13,Факт!$E:$E,Word!$E13) -> 0 | AM13: 0 | AN13: =SUMIFS('За добу'!$J:$J,'За добу'!$B:$B,Word!$B13,'За добу'!$D:$D,Word!$D13,'За добу'!$E:$E,Word!$E13) -> 0 | AO13: 0
B14: ='За добу'!$B14 -> 0 | D14: ='За добу'!$D14 -> 0 | E14: ='За добу'!$E14 -> 0 | F14: ФОРМУЛА | G14: 0 | H14: 0 | I14: 0 | J14: 0 | K14: 0 | L14: Філія1 | M14: =SUMIFS(План!$F:$F,План!$B:$B,Word!$B14,План!$D:$D,Word!$D14,План!$E:$E,Word!$E14) -> 0 | N14: =SUMIFS(Факт!$F:$F,Факт!$B:$B,Word!$B14,Факт!$D:$D,Word!$D14,Факт!$E:$E,Word!$E14) -> 0 | O14: 0 | P14: =SUMIFS('За добу'!$F:$F,'За добу'!$B:$B,Word!$B14,'За добу'!$D:$D,Word!$D14,'За добу'!$E:$E,Word!$E14) -> 0 | Q14: 0 | R14: Філія2 | S14: =SUMIFS(План!$G:$G,План!$B:$B,Word!$B14,План!$D:$D,Word!$D14,План!$E:$E,Word!$E14) -> 0 | T14: =SUMIFS(Факт!$G:$G,Факт!$B:$B,Word!$B14,Факт!$D:$D,Word!$D14,Факт!$E:$E,Word!$E14) -> 0 | U14: 0 | V14: =SUMIFS('За добу'!$G:$G,'За добу'!$B:$B,Word!$B14,'За добу'!$D:$D,Word!$D14,'За добу'!$E:$E,Word!$E14) -> 0 | W14: 0 | X14: Філія3 | Y14: =SUMIFS(План!$H:$H,План!$B:$B,Word!$B14,План!$D:$D,Word!$D14,План!$E:$E,Word!$E14) -> 0 | Z14: =SUMIFS(Факт!$H:$H,Факт!$B:$B,Word!$B14,Факт!$D:$D,Word!$D14,Факт!$E:$E,Word!$E14) -> 0 | AA14: 0 | AB14: =SUMIFS('За добу'!$H:$H,'За добу'!$B:$B,Word!$B14,'За добу'!$D:$D,Word!$D14,'За добу'!$E:$E,Word!$E14) -> 0 | AC14: 0 | AD14: Філія4 | AE14: =SUMIFS(План!$I:$I,План!$B:$B,Word!$B14,План!$D:$D,Word!$D14,План!$E:$E,Word!$E14) -> 0 | AF14: =SUMIFS(Факт!$I:$I,Факт!$B:$B,Word!$B14,Факт!$D:$D,Word!$D14,Факт!$E:$E,Word!$E14) -> 0 | AG14: 0 | AH14: =SUMIFS('За добу'!$I:$I,'За добу'!$B:$B,Word!$B14,'За добу'!$D:$D,Word!$D14,'За добу'!$E:$E,Word!$E14) -> 0 | AI14: 0 | AJ14: Філія5 | AK14: =SUMIFS(План!$J:$J,План!$B:$B,Word!$B14,План!$D:$D,Word!$D14,План!$E:$E,Word!$E14) -> 0 | AL14: =SUMIFS(Факт!$J:$J,Факт!$B:$B,Word!$B14,Факт!$D:$D,Word!$D14,Факт!$E:$E,Word!$E14) -> 0 | AM14: 0 | AN14: =SUMIFS('За добу'!$J:$J,'За добу'!$B:$B,Word!$B14,'За добу'!$D:$D,Word!$D14,'За добу'!$E:$E,Word!$E14) -> 0 | AO14: 0
B15: ='За добу'!$B15 -> 0 | D15: ='За добу'!$D15 -> 0 | E15: ='За добу'!$E15 -> 0 | F15: ФОРМУЛА | G15: 0 | H15: 0 | I15: 0 | J15: 0 | K15: 0 | L15: Філія1 | M15: =SUMIFS(План!$F:$F,План!$B:$B,Word!$B15,План!$D:$D,Word!$D15,План!$E:$E,Word!$E15) -> 0 | N15: =SUMIFS(Факт!$F:$F,Факт!$B:$B,Word!$B15,Факт!$D:$D,Word!$D15,Факт!$E:$E,Word!$E15) -> 0 | O15: 0 | P15: =SUMIFS('За добу'!$F:$F,'За добу'!$B:$B,Word!$B15,'За добу'!$D:$D,Word!$D15,'За добу'!$E:$E,Word!$E15) -> 0 | Q15: 0 | R15: Філія2 | S15: =SUMIFS(План!$G:$G,План!$B:$B,Word!$B15,План!$D:$D,Word!$D15,План!$E:$E,Word!$E15) -> 0 | T15: =SUMIFS(Факт!$G:$G,Факт!$B:$B,Word!$B15,Факт!$D:$D,Word!$D15,Факт!$E:$E,Word!$E15) -> 0 | U15: 0 | V15: =SUMIFS('За добу'!$G:$G,'За добу'!$B:$B,Word!$B15,'За добу'!$D:$D,Word!$D15,'За добу'!$E:$E,Word!$E15) -> 0 | W15: 0 | X15: Філія3 | Y15: =SUMIFS(План!$H:$H,План!$B:$B,Word!$B15,План!$D:$D,Word!$D15,План!$E:$E,Word!$E15) -> 0 | Z15: =SUMIFS(Факт!$H:$H,Факт!$B:$B,Word!$B15,Факт!$D:$D,Word!$D15,Факт!$E:$E,Word!$E15) -> 0 | AA15: 0 | AB15: =SUMIFS('За добу'!$H:$H,'За добу'!$B:$B,Word!$B15,'За добу'!$D:$D,Word!$D15,'За добу'!$E:$E,Word!$E15) -> 0 | AC15: 0 | AD15: Філія4 | AE15: =SUMIFS(План!$I:$I,План!$B:$B,Word!$B15,План!$D:$D,Word!$D15,План!$E:$E,Word!$E15) -> 0 | AF15: =SUMIFS(Факт!$I:$I,Факт!$B:$B,Word!$B15,Факт!$D:$D,Word!$D15,Факт!$E:$E,Word!$E15) -> 0 | AG15: 0 | AH15: =SUMIFS('За добу'!$I:$I,'За добу'!$B:$B,Word!$B15,'За добу'!$D:$D,Word!$D15,'За добу'!$E:$E,Word!$E15) -> 0 | AI15: 0 | AJ15: Філія5 | AK15: =SUMIFS(План!$J:$J,План!$B:$B,Word!$B15,План!$D:$D,Word!$D15,План!$E:$E,Word!$E15) -> 0 | AL15: =SUMIFS(Факт!$J:$J,Факт!$B:$B,Word!$B15,Факт!$D:$D,Word!$D15,Факт!$E:$E,Word!$E15) -> 0 | AM15: 0 | AN15: =SUMIFS('За добу'!$J:$J,'За добу'!$B:$B,Word!$B15,'За добу'!$D:$D,Word!$D15,'За добу'!$E:$E,Word!$E15) -> 0 | AO15: 0
B16: ='За добу'!$B16 -> 0 | D16: ='За добу'!$D16 -> 0 | E16: ='За добу'!$E16 -> 0 | F16: ФОРМУЛА | G16: 0 | H16: 0 | I16: 0 | J16: 0 | K16: 0 | L16: Філія1 | M16: =SUMIFS(План!$F:$F,План!$B:$B,Word!$B16,План!$D:$D,Word!$D16,План!$E:$E,Word!$E16) -> 0 | N16: =SUMIFS(Факт!$F:$F,Факт!$B:$B,Word!$B16,Факт!$D:$D,Word!$D16,Факт!$E:$E,Word!$E16) -> 0 | O16: 0 | P16: =SUMIFS('За добу'!$F:$F,'За добу'!$B:$B,Word!$B16,'За добу'!$D:$D,Word!$D16,'За добу'!$E:$E,Word!$E16) -> 0 | Q16: 0 | R16: Філія2 | S16: =SUMIFS(План!$G:$G,План!$B:$B,Word!$B16,План!$D:$D,Word!$D16,План!$E:$E,Word!$E16) -> 0 | T16: =SUMIFS(Факт!$G:$G,Факт!$B:$B,Word!$B16,Факт!$D:$D,Word!$D16,Факт!$E:$E,Word!$E16) -> 0 | U16: 0 | V16: =SUMIFS('За добу'!$G:$G,'За добу'!$B:$B,Word!$B16,'За добу'!$D:$D,Word!$D16,'За добу'!$E:$E,Word!$E16) -> 0 | W16: 0 | X16: Філія3 | Y16: =SUMIFS(План!$H:$H,План!$B:$B,Word!$B16,План!$D:$D,Word!$D16,План!$E:$E,Word!$E16) -> 0 | Z16: =SUMIFS(Факт!$H:$H,Факт!$B:$B,Word!$B16,Факт!$D:$D,Word!$D16,Факт!$E:$E,Word!$E16) -> 0 | AA16: 0 | AB16: =SUMIFS('За добу'!$H:$H,'За добу'!$B:$B,Word!$B16,'За добу'!$D:$D,Word!$D16,'За добу'!$E:$E,Word!$E16) -> 0 | AC16: 0 | AD16: Філія4 | AE16: =SUMIFS(План!$I:$I,План!$B:$B,Word!$B16,План!$D:$D,Word!$D16,План!$E:$E,Word!$E16) -> 0 | AF16: =SUMIFS(Факт!$I:$I,Факт!$B:$B,Word!$B16,Факт!$D:$D,Word!$D16,Факт!$E:$E,Word!$E16) -> 0 | AG16: 0 | AH16: =SUMIFS('За добу'!$I:$I,'За добу'!$B:$B,Word!$B16,'За добу'!$D:$D,Word!$D16,'За добу'!$E:$E,Word!$E16) -> 0 | AI16: 0 | AJ16: Філія5 | AK16: =SUMIFS(План!$J:$J,План!$B:$B,Word!$B16,План!$D:$D,Word!$D16,План!$E:$E,Word!$E16) -> 0 | AL16: =SUMIFS(Факт!$J:$J,Факт!$B:$B,Word!$B16,Факт!$D:$D,Word!$D16,Факт!$E:$E,Word!$E16) -> 0 | AM16: 0 | AN16: =SUMIFS('За добу'!$J:$J,'За добу'!$B:$B,Word!$B16,'За добу'!$D:$D,Word!$D16,'За добу'!$E:$E,Word!$E16) -> 0 | AO16: 0
B17: ='За добу'!$B17 -> 0 | D17: ='За добу'!$D17 -> 0 | E17: ='За добу'!$E17 -> 0 | F17: ФОРМУЛА | G17: 0 | H17: 0 | I17: 0 | J17: 0 | K17: 0 | L17: Філія1 | M17: =SUMIFS(План!$F:$F,План!$B:$B,Word!$B17,План!$D:$D,Word!$D17,План!$E:$E,Word!$E17) -> 0 | N17: =SUMIFS(Факт!$F:$F,Факт!$B:$B,Word!$B17,Факт!$D:$D,Word!$D17,Факт!$E:$E,Word!$E17) -> 0 | O17: 0 | P17: =SUMIFS('За добу'!$F:$F,'За добу'!$B:$B,Word!$B17,'За добу'!$D:$D,Word!$D17,'За добу'!$E:$E,Word!$E17) -> 0 | Q17: 0 | R17: Філія2 | S17: =SUMIFS(План!$G:$G,План!$B:$B,Word!$B17,План!$D:$D,Word!$D17,План!$E:$E,Word!$E17) -> 0 | T17: =SUMIFS(Факт!$G:$G,Факт!$B:$B,Word!$B17,Факт!$D:$D,Word!$D17,Факт!$E:$E,Word!$E17) -> 0 | U17: 0 | V17: =SUMIFS('За добу'!$G:$G,'За добу'!$B:$B,Word!$B17,'За добу'!$D:$D,Word!$D17,'За добу'!$E:$E,Word!$E17) -> 0 | W17: 0 | X17: Філія3 | Y17: =SUMIFS(План!$H:$H,План!$B:$B,Word!$B17,План!$D:$D,Word!$D17,План!$E:$E,Word!$E17) -> 0 | Z17: =SUMIFS(Факт!$H:$H,Факт!$B:$B,Word!$B17,Факт!$D:$D,Word!$D17,Факт!$E:$E,Word!$E17) -> 0 | AA17: 0 | AB17: =SUMIFS('За добу'!$H:$H,'За добу'!$B:$B,Word!$B17,'За добу'!$D:$D,Word!$D17,'За добу'!$E:$E,Word!$E17) -> 0 | AC17: 0 | AD17: Філія4 | AE17: =SUMIFS(План!$I:$I,План!$B:$B,Word!$B17,План!$D:$D,Word!$D17,План!$E:$E,Word!$E17) -> 0 | AF17: =SUMIFS(Факт!$I:$I,Факт!$B:$B,Word!$B17,Факт!$D:$D,Word!$D17,Факт!$E:$E,Word!$E17) -> 0 | AG17: 0 | AH17: =SUMIFS('За добу'!$I:$I,'За добу'!$B:$B,Word!$B17,'За добу'!$D:$D,Word!$D17,'За добу'!$E:$E,Word!$E17) -> 0 | AI17: 0 | AJ17: Філія5 | AK17: =SUMIFS(План!$J:$J,План!$B:$B,Word!$B17,План!$D:$D,Word!$D17,План!$E:$E,Word!$E17) -> 0 | AL17: =SUMIFS(Факт!$J:$J,Факт!$B:$B,Word!$B17,Факт!$D:$D,Word!$D17,Факт!$E:$E,Word!$E17) -> 0 | AM17: 0 | AN17: =SUMIFS('За добу'!$J:$J,'За добу'!$B:$B,Word!$B17,'За добу'!$D:$D,Word!$D17,'За добу'!$E:$E,Word!$E17) -> 0 | AO17: 0
B18: ='За добу'!$B18 -> 0 | D18: ='За добу'!$D18 -> 0 | E18: ='За добу'!$E18 -> 0 | F18: ФОРМУЛА | G18: 0 | H18: 0 | I18: 0 | J18: 0 | K18: 0 | L18: Філія1 | M18: =SUMIFS(План!$F:$F,План!$B:$B,Word!$B18,План!$D:$D,Word!$D18,План!$E:$E,Word!$E18) -> 0 | N18: =SUMIFS(Факт!$F:$F,Факт!$B:$B,Word!$B18,Факт!$D:$D,Word!$D18,Факт!$E:$E,Word!$E18) -> 0 | O18: 0 | P18: =SUMIFS('За добу'!$F:$F,'За добу'!$B:$B,Word!$B18,'За добу'!$D:$D,Word!$D18,'За добу'!$E:$E,Word!$E18) -> 0 | Q18: 0 | R18: Філія2 | S18: =SUMIFS(План!$G:$G,План!$B:$B,Word!$B18,План!$D:$D,Word!$D18,План!$E:$E,Word!$E18) -> 0 | T18: =SUMIFS(Факт!$G:$G,Факт!$B:$B,Word!$B18,Факт!$D:$D,Word!$D18,Факт!$E:$E,Word!$E18) -> 0 | U18: 0 | V18: =SUMIFS('За добу'!$G:$G,'За добу'!$B:$B,Word!$B18,'За добу'!$D:$D,Word!$D18,'За добу'!$E:$E,Word!$E18) -> 0 | W18: 0 | X18: Філія3 | Y18: =SUMIFS(План!$H:$H,План!$B:$B,Word!$B18,План!$D:$D,Word!$D18,План!$E:$E,Word!$E18) -> 0 | Z18: =SUMIFS(Факт!$H:$H,Факт!$B:$B,Word!$B18,Факт!$D:$D,Word!$D18,Факт!$E:$E,Word!$E18) -> 0 | AA18: 0 | AB18: =SUMIFS('За добу'!$H:$H,'За добу'!$B:$B,Word!$B18,'За добу'!$D:$D,Word!$D18,'За добу'!$E:$E,Word!$E18) -> 0 | AC18: 0 | AD18: Філія4 | AE18: =SUMIFS(План!$I:$I,План!$B:$B,Word!$B18,План!$D:$D,Word!$D18,План!$E:$E,Word!$E18) -> 0 | AF18: =SUMIFS(Факт!$I:$I,Факт!$B:$B,Word!$B18,Факт!$D:$D,Word!$D18,Факт!$E:$E,Word!$E18) -> 0 | AG18: 0 | AH18: =SUMIFS('За добу'!$I:$I,'За добу'!$B:$B,Word!$B18,'За добу'!$D:$D,Word!$D18,'За добу'!$E:$E,Word!$E18) -> 0 | AI18: 0 | AJ18: Філія5 | AK18: =SUMIFS(План!$J:$J,План!$B:$B,Word!$B18,План!$D:$D,Word!$D18,План!$E:$E,Word!$E18) -> 0 | AL18: =SUMIFS(Факт!$J:$J,Факт!$B:$B,Word!$B18,Факт!$D:$D,Word!$D18,Факт!$E:$E,Word!$E18) -> 0 | AM18: 0 | AN18: =SUMIFS('За добу'!$J:$J,'За добу'!$B:$B,Word!$B18,'За добу'!$D:$D,Word!$D18,'За добу'!$E:$E,Word!$E18) -> 0 | AO18: 0
B19: ='За добу'!$B19 -> 0 | D19: ='За добу'!$D19 -> 0 | E19: ='За добу'!$E19 -> 0 | F19: ФОРМУЛА | G19: 0 | H19: 0 | I19: 0 | J19: 0 | K19: 0 | L19: Філія1 | M19: =SUMIFS(План!$F:$F,План!$B:$B,Word!$B19,План!$D:$D,Word!$D19,План!$E:$E,Word!$E19) -> 0 | N19: =SUMIFS(Факт!$F:$F,Факт!$B:$B,Word!$B19,Факт!$D:$D,Word!$D19,Факт!$E:$E,Word!$E19) -> 0 | O19: 0 | P19: =SUMIFS('За добу'!$F:$F,'За добу'!$B:$B,Word!$B19,'За добу'!$D:$D,Word!$D19,'За добу'!$E:$E,Word!$E19) -> 0 | Q19: 0 | R19: Філія2 | S19: =SUMIFS(План!$G:$G,План!$B:$B,Word!$B19,План!$D:$D,Word!$D19,План!$E:$E,Word!$E19) -> 0 | T19: =SUMIFS(Факт!$G:$G,Факт!$B:$B,Word!$B19,Факт!$D:$D,Word!$D19,Факт!$E:$E,Word!$E19) -> 0 | U19: 0 | V19: =SUMIFS('За добу'!$G:$G,'За добу'!$B:$B,Word!$B19,'За добу'!$D:$D,Word!$D19,'За добу'!$E:$E,Word!$E19) -> 0 | W19: 0 | X19: Філія3 | Y19: =SUMIFS(План!$H:$H,План!$B:$B,Word!$B19,План!$D:$D,Word!$D19,План!$E:$E,Word!$E19) -> 0 | Z19: =SUMIFS(Факт!$H:$H,Факт!$B:$B,Word!$B19,Факт!$D:$D,Word!$D19,Факт!$E:$E,Word!$E19) -> 0 | AA19: 0 | AB19: =SUMIFS('За добу'!$H:$H,'За добу'!$B:$B,Word!$B19,'За добу'!$D:$D,Word!$D19,'За добу'!$E:$E,Word!$E19) -> 0 | AC19: 0 | AD19: Філія4 | AE19: =SUMIFS(План!$I:$I,План!$B:$B,Word!$B19,План!$D:$D,Word!$D19,План!$E:$E,Word!$E19) -> 0 | AF19: =SUMIFS(Факт!$I:$I,Факт!$B:$B,Word!$B19,Факт!$D:$D,Word!$D19,Факт!$E:$E,Word!$E19) -> 0 | AG19: 0 | AH19: =SUMIFS('За добу'!$I:$I,'За добу'!$B:$B,Word!$B19,'За добу'!$D:$D,Word!$D19,'За добу'!$E:$E,Word!$E19) -> 0 | AI19: 0 | AJ19: Філія5 | AK19: =SUMIFS(План!$J:$J,План!$B:$B,Word!$B19,План!$D:$D,Word!$D19,План!$E:$E,Word!$E19) -> 0 | AL19: =SUMIFS(Факт!$J:$J,Факт!$B:$B,Word!$B19,Факт!$D:$D,Word!$D19,Факт!$E:$E,Word!$E19) -> 0 | AM19: 0 | AN19: =SUMIFS('За добу'!$J:$J,'За добу'!$B:$B,Word!$B19,'За добу'!$D:$D,Word!$D19,'За добу'!$E:$E,Word!$E19) -> 0 | AO19: 0
B20: ='За добу'!$B20 -> 0 | D20: ='За добу'!$D20 -> 0 | E20: ='За добу'!$E20 -> 0 | F20: ФОРМУЛА | G20: 0 | H20: 0 | I20: 0 | J20: 0 | K20: 0 | L20: Філія1 | M20: =SUMIFS(План!$F:$F,План!$B:$B,Word!$B20,План!$D:$D,Word!$D20,План!$E:$E,Word!$E20) -> 0 | N20: =SUMIFS(Факт!$F:$F,Факт!$B:$B,Word!$B20,Факт!$D:$D,Word!$D20,Факт!$E:$E,Word!$E20) -> 0 | O20: 0 | P20: =SUMIFS('За добу'!$F:$F,'За добу'!$B:$B,Word!$B20,'За добу'!$D:$D,Word!$D20,'За добу'!$E:$E,Word!$E20) -> 0 | Q20: 0 | R20: Філія2 | S20: =SUMIFS(План!$G:$G,План!$B:$B,Word!$B20,План!$D:$D,Word!$D20,План!$E:$E,Word!$E20) -> 0 | T20: =SUMIFS(Факт!$G:$G,Факт!$B:$B,Word!$B20,Факт!$D:$D,Word!$D20,Факт!$E:$E,Word!$E20) -> 0 | U20: 0 | V20: =SUMIFS('За добу'!$G:$G,'За добу'!$B:$B,Word!$B20,'За добу'!$D:$D,Word!$D20,'За добу'!$E:$E,Word!$E20) -> 0 | W20: 0 | X20: Філія3 | Y20: =SUMIFS(План!$H:$H,План!$B:$B,Word!$B20,План!$D:$D,Word!$D20,План!$E:$E,Word!$E20) -> 0 | Z20: =SUMIFS(Факт!$H:$H,Факт!$B:$B,Word!$B20,Факт!$D:$D,Word!$D20,Факт!$E:$E,Word!$E20) -> 0 | AA20: 0 | AB20: =SUMIFS('За добу'!$H:$H,'За добу'!$B:$B,Word!$B20,'За добу'!$D:$D,Word!$D20,'За добу'!$E:$E,Word!$E20) -> 0 | AC20: 0 | AD20: Філія4 | AE20: =SUMIFS(План!$I:$I,План!$B:$B,Word!$B20,План!$D:$D,Word!$D20,План!$E:$E,Word!$E20) -> 0 | AF20: =SUMIFS(Факт!$I:$I,Факт!$B:$B,Word!$B20,Факт!$D:$D,Word!$D20,Факт!$E:$E,Word!$E20) -> 0 | AG20: 0 | AH20: =SUMIFS('За добу'!$I:$I,'За добу'!$B:$B,Word!$B20,'За добу'!$D:$D,Word!$D20,'За добу'!$E:$E,Word!$E20) -> 0 | AI20: 0 | AJ20: Філія5 | AK20: =SUMIFS(План!$J:$J,План!$B:$B,Word!$B20,План!$D:$D,Word!$D20,План!$E:$E,Word!$E20) -> 0 | AL20: =SUMIFS(Факт!$J:$J,Факт!$B:$B,Word!$B20,Факт!$D:$D,Word!$D20,Факт!$E:$E,Word!$E20) -> 0 | AM20: 0 | AN20: =SUMIFS('За добу'!$J:$J,'За добу'!$B:$B,Word!$B20,'За добу'!$D:$D,Word!$D20,'За добу'!$E:$E,Word!$E20) -> 0 | AO20: 0
B21: ='За добу'!$B21 -> 0 | D21: ='За добу'!$D21 -> 0 | E21: ='За добу'!$E21 -> 0 | F21: ФОРМУЛА | G21: 0 | H21: 0 | I21: 0 | J21: 0 | K21: 0 | L21: Філія1 | M21: =SUMIFS(План!$F:$F,План!$B:$B,Word!$B21,План!$D:$D,Word!$D21,План!$E:$E,Word!$E21) -> 0 | N21: =SUMIFS(Факт!$F:$F,Факт!$B:$B,Word!$B21,Факт!$D:$D,Word!$D21,Факт!$E:$E,Word!$E21) -> 0 | O21: 0 | P21: =SUMIFS('За добу'!$F:$F,'За добу'!$B:$B,Word!$B21,'За добу'!$D:$D,Word!$D21,'За добу'!$E:$E,Word!$E21) -> 0 | Q21: 0 | R21: Філія2 | S21: =SUMIFS(План!$G:$G,План!$B:$B,Word!$B21,План!$D:$D,Word!$D21,План!$E:$E,Word!$E21) -> 0 | T21: =SUMIFS(Факт!$G:$G,Факт!$B:$B,Word!$B21,Факт!$D:$D,Word!$D21,Факт!$E:$E,Word!$E21) -> 0 | U21: 0 | V21: =SUMIFS('За добу'!$G:$G,'За добу'!$B:$B,Word!$B21,'За добу'!$D:$D,Word!$D21,'За добу'!$E:$E,Word!$E21) -> 0 | W21: 0 | X21: Філія3 | Y21: =SUMIFS(План!$H:$H,План!$B:$B,Word!$B21,План!$D:$D,Word!$D21,План!$E:$E,Word!$E21) -> 0 | Z21: =SUMIFS(Факт!$H:$H,Факт!$B:$B,Word!$B21,Факт!$D:$D,Word!$D21,Факт!$E:$E,Word!$E21) -> 0 | AA21: 0 | AB21: =SUMIFS('За добу'!$H:$H,'За добу'!$B:$B,Word!$B21,'За добу'!$D:$D,Word!$D21,'За добу'!$E:$E,Word!$E21) -> 0 | AC21: 0 | AD21: Філія4 | AE21: =SUMIFS(План!$I:$I,План!$B:$B,Word!$B21,План!$D:$D,Word!$D21,План!$E:$E,Word!$E21) -> 0 | AF21: =SUMIFS(Факт!$I:$I,Факт!$B:$B,Word!$B21,Факт!$D:$D,Word!$D21,Факт!$E:$E,Word!$E21) -> 0 | AG21: 0 | AH21: =SUMIFS('За добу'!$I:$I,'За добу'!$B:$B,Word!$B21,'За добу'!$D:$D,Word!$D21,'За добу'!$E:$E,Word!$E21) -> 0 | AI21: 0 | AJ21: Філія5 | AK21: =SUMIFS(План!$J:$J,План!$B:$B,Word!$B21,План!$D:$D,Word!$D21,План!$E:$E,Word!$E21) -> 0 | AL21: =SUMIFS(Факт!$J:$J,Факт!$B:$B,Word!$B21,Факт!$D:$D,Word!$D21,Факт!$E:$E,Word!$E21) -> 0 | AM21: 0 | AN21: =SUMIFS('За добу'!$J:$J,'За добу'!$B:$B,Word!$B21,'За добу'!$D:$D,Word!$D21,'За добу'!$E:$E,Word!$E21) -> 0 | AO21: 0
B22: ='За добу'!$B22 -> 0 | D22: ='За добу'!$D22 -> 0 | E22: ='За добу'!$E22 -> 0 | F22: ФОРМУЛА | G22: 0 | H22: 0 | I22: 0 | J22: 0 | K22: 0 | L22: Філія1 | M22: =SUMIFS(План!$F:$F,План!$B:$B,Word!$B22,План!$D:$D,Word!$D22,План!$E:$E,Word!$E22) -> 0 | N22: =SUMIFS(Факт!$F:$F,Факт!$B:$B,Word!$B22,Факт!$D:$D,Word!$D22,Факт!$E:$E,Word!$E22) -> 0 | O22: 0 | P22: =SUMIFS('За добу'!$F:$F,'За добу'!$B:$B,Word!$B22,'За добу'!$D:$D,Word!$D22,'За добу'!$E:$E,Word!$E22) -> 0 | Q22: 0 | R22: Філія2 | S22: =SUMIFS(План!$G:$G,План!$B:$B,Word!$B22,План!$D:$D,Word!$D22,План!$E:$E,Word!$E22) -> 0 | T22: =SUMIFS(Факт!$G:$G,Факт!$B:$B,Word!$B22,Факт!$D:$D,Word!$D22,Факт!$E:$E,Word!$E22) -> 0 | U22: 0 | V22: =SUMIFS('За добу'!$G:$G,'За добу'!$B:$B,Word!$B22,'За добу'!$D:$D,Word!$D22,'За добу'!$E:$E,Word!$E22) -> 0 | W22: 0 | X22: Філія3 | Y22: =SUMIFS(План!$H:$H,План!$B:$B,Word!$B22,План!$D:$D,Word!$D22,План!$E:$E,Word!$E22) -> 0 | Z22: =SUMIFS(Факт!$H:$H,Факт!$B:$B,Word!$B22,Факт!$D:$D,Word!$D22,Факт!$E:$E,Word!$E22) -> 0 | AA22: 0 | AB22: =SUMIFS('За добу'!$H:$H,'За добу'!$B:$B,Word!$B22,'За добу'!$D:$D,Word!$D22,'За добу'!$E:$E,Word!$E22) -> 0 | AC22: 0 | AD22: Філія4 | AE22: =SUMIFS(План!$I:$I,План!$B:$B,Word!$B22,План!$D:$D,Word!$D22,План!$E:$E,Word!$E22) -> 0 | AF22: =SUMIFS(Факт!$I:$I,Факт!$B:$B,Word!$B22,Факт!$D:$D,Word!$D22,Факт!$E:$E,Word!$E22) -> 0 | AG22: 0 | AH22: =SUMIFS('За добу'!$I:$I,'За добу'!$B:$B,Word!$B22,'За добу'!$D:$D,Word!$D22,'За добу'!$E:$E,Word!$E22) -> 0 | AI22: 0 | AJ22: Філія5 | AK22: =SUMIFS(План!$J:$J,План!$B:$B,Word!$B22,План!$D:$D,Word!$D22,План!$E:$E,Word!$E22) -> 0 | AL22: =SUMIFS(Факт!$J:$J,Факт!$B:$B,Word!$B22,Факт!$D:$D,Word!$D22,Факт!$E:$E,Word!$E22) -> 0 | AM22: 0 | AN22: =SUMIFS('За добу'!$J:$J,'За добу'!$B:$B,Word!$B22,'За добу'!$D:$D,Word!$D22,'За добу'!$E:$E,Word!$E22) -> 0 | AO22: 0
B23: ='За добу'!$B23 -> 0 | D23: ='За добу'!$D23 -> 0 | E23: ='За добу'!$E23 -> 0 | F23: ФОРМУЛА | G23: 0 | H23: 0 | I23: 0 | J23: 0 | K23: 0 | L23: Філія1 | M23: =SUMIFS(План!$F:$F,План!$B:$B,Word!$B23,План!$D:$D,Word!$D23,План!$E:$E,Word!$E23) -> 0 | N23: =SUMIFS(Факт!$F:$F,Факт!$B:$B,Word!$B23,Факт!$D:$D,Word!$D23,Факт!$E:$E,Word!$E23) -> 0 | O23: 0 | P23: =SUMIFS('За добу'!$F:$F,'За добу'!$B:$B,Word!$B23,'За добу'!$D:$D,Word!$D23,'За добу'!$E:$E,Word!$E23) -> 0 | Q23: 0 | R23: Філія2 | S23: =SUMIFS(План!$G:$G,План!$B:$B,Word!$B23,План!$D:$D,Word!$D23,План!$E:$E,Word!$E23) -> 0 | T23: =SUMIFS(Факт!$G:$G,Факт!$B:$B,Word!$B23,Факт!$D:$D,Word!$D23,Факт!$E:$E,Word!$E23) -> 0 | U23: 0 | V23: =SUMIFS('За добу'!$G:$G,'За добу'!$B:$B,Word!$B23,'За добу'!$D:$D,Word!$D23,'За добу'!$E:$E,Word!$E23) -> 0 | W23: 0 | X23: Філія3 | Y23: =SUMIFS(План!$H:$H,План!$B:$B,Word!$B23,План!$D:$D,Word!$D23,План!$E:$E,Word!$E23) -> 0 | Z23: =SUMIFS(Факт!$H:$H,Факт!$B:$B,Word!$B23,Факт!$D:$D,Word!$D23,Факт!$E:$E,Word!$E23) -> 0 | AA23: 0 | AB23: =SUMIFS('За добу'!$H:$H,'За добу'!$B:$B,Word!$B23,'За добу'!$D:$D,Word!$D23,'За добу'!$E:$E,Word!$E23) -> 0 | AC23: 0 | AD23: Філія4 | AE23: =SUMIFS(План!$I:$I,План!$B:$B,Word!$B23,План!$D:$D,Word!$D23,План!$E:$E,Word!$E23) -> 0 | AF23: =SUMIFS(Факт!$I:$I,Факт!$B:$B,Word!$B23,Факт!$D:$D,Word!$D23,Факт!$E:$E,Word!$E23) -> 0 | AG23: 0 | AH23: =SUMIFS('За добу'!$I:$I,'За добу'!$B:$B,Word!$B23,'За добу'!$D:$D,Word!$D23,'За добу'!$E:$E,Word!$E23) -> 0 | AI23: 0 | AJ23: Філія5 | AK23: =SUMIFS(План!$J:$J,План!$B:$B,Word!$B23,План!$D:$D,Word!$D23,План!$E:$E,Word!$E23) -> 0 | AL23: =SUMIFS(Факт!$J:$J,Факт!$B:$B,Word!$B23,Факт!$D:$D,Word!$D23,Факт!$E:$E,Word!$E23) -> 0 | AM23: 0 | AN23: =SUMIFS('За добу'!$J:$J,'За добу'!$B:$B,Word!$B23,'За добу'!$D:$D,Word!$D23,'За добу'!$E:$E,Word!$E23) -> 0 | AO23: 0
B24: ='За добу'!$B24 -> 0 | D24: ='За добу'!$D24 -> 0 | E24: ='За добу'!$E24 -> 0 | F24: ФОРМУЛА | G24: 0 | H24: 0 | I24: 0 | J24: 0 | K24: 0 | L24: Філія1 | M24: =SUMIFS(План!$F:$F,План!$B:$B,Word!$B24,План!$D:$D,Word!$D24,План!$E:$E,Word!$E24) -> 0 | N24: =SUMIFS(Факт!$F:$F,Факт!$B:$B,Word!$B24,Факт!$D:$D,Word!$D24,Факт!$E:$E,Word!$E24) -> 0 | O24: 0 | P24: =SUMIFS('За добу'!$F:$F,'За добу'!$B:$B,Word!$B24,'За добу'!$D:$D,Word!$D24,'За добу'!$E:$E,Word!$E24) -> 0 | Q24: 0 | R24: Філія2 | S24: =SUMIFS(План!$G:$G,План!$B:$B,Word!$B24,План!$D:$D,Word!$D24,План!$E:$E,Word!$E24) -> 0 | T24: =SUMIFS(Факт!$G:$G,Факт!$B:$B,Word!$B24,Факт!$D:$D,Word!$D24,Факт!$E:$E,Word!$E24) -> 0 | U24: 0 | V24: =SUMIFS('За добу'!$G:$G,'За добу'!$B:$B,Word!$B24,'За добу'!$D:$D,Word!$D24,'За добу'!$E:$E,Word!$E24) -> 0 | W24: 0 | X24: Філія3 | Y24: =SUMIFS(План!$H:$H,План!$B:$B,Word!$B24,План!$D:$D,Word!$D24,План!$E:$E,Word!$E24) -> 0 | Z24: =SUMIFS(Факт!$H:$H,Факт!$B:$B,Word!$B24,Факт!$D:$D,Word!$D24,Факт!$E:$E,Word!$E24) -> 0 | AA24: 0 | AB24: =SUMIFS('За добу'!$H:$H,'За добу'!$B:$B,Word!$B24,'За добу'!$D:$D,Word!$D24,'За добу'!$E:$E,Word!$E24) -> 0 | AC24: 0 | AD24: Філія4 | AE24: =SUMIFS(План!$I:$I,План!$B:$B,Word!$B24,План!$D:$D,Word!$D24,План!$E:$E,Word!$E24) -> 0 | AF24: =SUMIFS(Факт!$I:$I,Факт!$B:$B,Word!$B24,Факт!$D:$D,Word!$D24,Факт!$E:$E,Word!$E24) -> 0 | AG24: 0 | AH24: =SUMIFS('За добу'!$I:$I,'За добу'!$B:$B,Word!$B24,'За добу'!$D:$D,Word!$D24,'За добу'!$E:$E,Word!$E24) -> 0 | AI24: 0 | AJ24: Філія5 | AK24: =SUMIFS(План!$J:$J,План!$B:$B,Word!$B24,План!$D:$D,Word!$D24,План!$E:$E,Word!$E24) -> 0 | AL24: =SUMIFS(Факт!$J:$J,Факт!$B:$B,Word!$B24,Факт!$D:$D,Word!$D24,Факт!$E:$E,Word!$E24) -> 0 | AM24: 0 | AN24: =SUMIFS('За добу'!$J:$J,'За добу'!$B:$B,Word!$B24,'За добу'!$D:$D,Word!$D24,'За добу'!$E:$E,Word!$E24) -> 0 | AO24: 0
B25: ='За добу'!$B25 -> 0 | D25: ='За добу'!$D25 -> 0 | E25: ='За добу'!$E25 -> 0 | F25: ФОРМУЛА | G25: 0 | H25: 0 | I25: 0 | J25: 0 | K25: 0 | L25: Філія1 | M25: =SUMIFS(План!$F:$F,План!$B:$B,Word!$B25,План!$D:$D,Word!$D25,План!$E:$E,Word!$E25) -> 0 | N25: =SUMIFS(Факт!$F:$F,Факт!$B:$B,Word!$B25,Факт!$D:$D,Word!$D25,Факт!$E:$E,Word!$E25) -> 0 | O25: 0 | P25: =SUMIFS('За добу'!$F:$F,'За добу'!$B:$B,Word!$B25,'За добу'!$D:$D,Word!$D25,'За добу'!$E:$E,Word!$E25) -> 0 | Q25: 0 | R25: Філія2 | S25: =SUMIFS(План!$G:$G,План!$B:$B,Word!$B25,План!$D:$D,Word!$D25,План!$E:$E,Word!$E25) -> 0 | T25: =SUMIFS(Факт!$G:$G,Факт!$B:$B,Word!$B25,Факт!$D:$D,Word!$D25,Факт!$E:$E,Word!$E25) -> 0 | U25: 0 | V25: =SUMIFS('За добу'!$G:$G,'За добу'!$B:$B,Word!$B25,'За добу'!$D:$D,Word!$D25,'За добу'!$E:$E,Word!$E25) -> 0 | W25: 0 | X25: Філія3 | Y25: =SUMIFS(План!$H:$H,План!$B:$B,Word!$B25,План!$D:$D,Word!$D25,План!$E:$E,Word!$E25) -> 0 | Z25: =SUMIFS(Факт!$H:$H,Факт!$B:$B,Word!$B25,Факт!$D:$D,Word!$D25,Факт!$E:$E,Word!$E25) -> 0 | AA25: 0 | AB25: =SUMIFS('За добу'!$H:$H,'За добу'!$B:$B,Word!$B25,'За добу'!$D:$D,Word!$D25,'За добу'!$E:$E,Word!$E25) -> 0 | AC25: 0 | AD25: Філія4 | AE25: =SUMIFS(План!$I:$I,План!$B:$B,Word!$B25,План!$D:$D,Word!$D25,План!$E:$E,Word!$E25) -> 0 | AF25: =SUMIFS(Факт!$I:$I,Факт!$B:$B,Word!$B25,Факт!$D:$D,Word!$D25,Факт!$E:$E,Word!$E25) -> 0 | AG25: 0 | AH25: =SUMIFS('За добу'!$I:$I,'За добу'!$B:$B,Word!$B25,'За добу'!$D:$D,Word!$D25,'За добу'!$E:$E,Word!$E25) -> 0 | AI25: 0 | AJ25: Філія5 | AK25: =SUMIFS(План!$J:$J,План!$B:$B,Word!$B25,План!$D:$D,Word!$D25,План!$E:$E,Word!$E25) -> 0 | AL25: =SUMIFS(Факт!$J:$J,Факт!$B:$B,Word!$B25,Факт!$D:$D,Word!$D25,Факт!$E:$E,Word!$E25) -> 0 | AM25: 0 | AN25: =SUMIFS('За добу'!$J:$J,'За добу'!$B:$B,Word!$B25,'За добу'!$D:$D,Word!$D25,'За добу'!$E:$E,Word!$E25) -> 0 | AO25: 0
B26: ='За добу'!$B26 -> 0 | D26: ='За добу'!$D26 -> 0 | E26: ='За добу'!$E26 -> 0 | F26: ФОРМУЛА | G26: 0 | H26: 0 | I26: 0 | J26: 0 | K26: 0 | L26: Філія1 | M26: =SUMIFS(План!$F:$F,План!$B:$B,Word!$B26,План!$D:$D,Word!$D26,План!$E:$E,Word!$E26) -> 0 | N26: =SUMIFS(Факт!$F:$F,Факт!$B:$B,Word!$B26,Факт!$D:$D,Word!$D26,Факт!$E:$E,Word!$E26) -> 0 | O26: 0 | P26: =SUMIFS('За добу'!$F:$F,'За добу'!$B:$B,Word!$B26,'За добу'!$D:$D,Word!$D26,'За добу'!$E:$E,Word!$E26) -> 0 | Q26: 0 | R26: Філія2 | S26: =SUMIFS(План!$G:$G,План!$B:$B,Word!$B26,План!$D:$D,Word!$D26,План!$E:$E,Word!$E26) -> 0 | T26: =SUMIFS(Факт!$G:$G,Факт!$B:$B,Word!$B26,Факт!$D:$D,Word!$D26,Факт!$E:$E,Word!$E26) -> 0 | U26: 0 | V26: =SUMIFS('За добу'!$G:$G,'За добу'!$B:$B,Word!$B26,'За добу'!$D:$D,Word!$D26,'За добу'!$E:$E,Word!$E26) -> 0 | W26: 0 | X26: Філія3 | Y26: =SUMIFS(План!$H:$H,План!$B:$B,Word!$B26,План!$D:$D,Word!$D26,План!$E:$E,Word!$E26) -> 0 | Z26: =SUMIFS(Факт!$H:$H,Факт!$B:$B,Word!$B26,Факт!$D:$D,Word!$D26,Факт!$E:$E,Word!$E26) -> 0 | AA26: 0 | AB26: =SUMIFS('За добу'!$H:$H,'За добу'!$B:$B,Word!$B26,'За добу'!$D:$D,Word!$D26,'За добу'!$E:$E,Word!$E26) -> 0 | AC26: 0 | AD26: Філія4 | AE26: =SUMIFS(План!$I:$I,План!$B:$B,Word!$B26,План!$D:$D,Word!$D26,План!$E:$E,Word!$E26) -> 0 | AF26: =SUMIFS(Факт!$I:$I,Факт!$B:$B,Word!$B26,Факт!$D:$D,Word!$D26,Факт!$E:$E,Word!$E26) -> 0 | AG26: 0 | AH26: =SUMIFS('За добу'!$I:$I,'За добу'!$B:$B,Word!$B26,'За добу'!$D:$D,Word!$D26,'За добу'!$E:$E,Word!$E26) -> 0 | AI26: 0 | AJ26: Філія5 | AK26: =SUMIFS(План!$J:$J,План!$B:$B,Word!$B26,План!$D:$D,Word!$D26,План!$E:$E,Word!$E26) -> 0 | AL26: =SUMIFS(Факт!$J:$J,Факт!$B:$B,Word!$B26,Факт!$D:$D,Word!$D26,Факт!$E:$E,Word!$E26) -> 0 | AM26: 0 | AN26: =SUMIFS('За добу'!$J:$J,'За добу'!$B:$B,Word!$B26,'За добу'!$D:$D,Word!$D26,'За добу'!$E:$E,Word!$E26) -> 0 | AO26: 0
B27: ='За добу'!$B27 -> 0 | D27: ='За добу'!$D27 -> 0 | E27: ='За добу'!$E27 -> 0 | F27: ФОРМУЛА | G27: 0 | H27: 0 | I27: 0 | J27: 0 | K27: 0 | L27: Філія1 | M27: =SUMIFS(План!$F:$F,План!$B:$B,Word!$B27,План!$D:$D,Word!$D27,План!$E:$E,Word!$E27) -> 0 | N27: =SUMIFS(Факт!$F:$F,Факт!$B:$B,Word!$B27,Факт!$D:$D,Word!$D27,Факт!$E:$E,Word!$E27) -> 0 | O27: 0 | P27: =SUMIFS('За добу'!$F:$F,'За добу'!$B:$B,Word!$B27,'За добу'!$D:$D,Word!$D27,'За добу'!$E:$E,Word!$E27) -> 0 | Q27: 0 | R27: Філія2 | S27: =SUMIFS(План!$G:$G,План!$B:$B,Word!$B27,План!$D:$D,Word!$D27,План!$E:$E,Word!$E27) -> 0 | T27: =SUMIFS(Факт!$G:$G,Факт!$B:$B,Word!$B27,Факт!$D:$D,Word!$D27,Факт!$E:$E,Word!$E27) -> 0 | U27: 0 | V27: =SUMIFS('За добу'!$G:$G,'За добу'!$B:$B,Word!$B27,'За добу'!$D:$D,Word!$D27,'За добу'!$E:$E,Word!$E27) -> 0 | W27: 0 | X27: Філія3 | Y27: =SUMIFS(План!$H:$H,План!$B:$B,Word!$B27,План!$D:$D,Word!$D27,План!$E:$E,Word!$E27) -> 0 | Z27: =SUMIFS(Факт!$H:$H,Факт!$B:$B,Word!$B27,Факт!$D:$D,Word!$D27,Факт!$E:$E,Word!$E27) -> 0 | AA27: 0 | AB27: =SUMIFS('За добу'!$H:$H,'За добу'!$B:$B,Word!$B27,'За добу'!$D:$D,Word!$D27,'За добу'!$E:$E,Word!$E27) -> 0 | AC27: 0 | AD27: Філія4 | AE27: =SUMIFS(План!$I:$I,План!$B:$B,Word!$B27,План!$D:$D,Word!$D27,План!$E:$E,Word!$E27) -> 0 | AF27: =SUMIFS(Факт!$I:$I,Факт!$B:$B,Word!$B27,Факт!$D:$D,Word!$D27,Факт!$E:$E,Word!$E27) -> 0 | AG27: 0 | AH27: =SUMIFS('За добу'!$I:$I,'За добу'!$B:$B,Word!$B27,'За добу'!$D:$D,Word!$D27,'За добу'!$E:$E,Word!$E27) -> 0 | AI27: 0 | AJ27: Філія5 | AK27: =SUMIFS(План!$J:$J,План!$B:$B,Word!$B27,План!$D:$D,Word!$D27,План!$E:$E,Word!$E27) -> 0 | AL27: =SUMIFS(Факт!$J:$J,Факт!$B:$B,Word!$B27,Факт!$D:$D,Word!$D27,Факт!$E:$E,Word!$E27) -> 0 | AM27: 0 | AN27: =SUMIFS('За добу'!$J:$J,'За добу'!$B:$B,Word!$B27,'За добу'!$D:$D,Word!$D27,'За добу'!$E:$E,Word!$E27) -> 0 | AO27: 0
B28: ='За добу'!$B28 -> 0 | D28: ='За добу'!$D28 -> 0 | E28: ='За добу'!$E28 -> 0 | F28: ФОРМУЛА | G28: 0 | H28: 0 | I28: 0 | J28: 0 | K28: 0 | L28: Філія1 | M28: =SUMIFS(План!$F:$F,План!$B:$B,Word!$B28,План!$D:$D,Word!$D28,План!$E:$E,Word!$E28) -> 0 | N28: =SUMIFS(Факт!$F:$F,Факт!$B:$B,Word!$B28,Факт!$D:$D,Word!$D28,Факт!$E:$E,Word!$E28) -> 0 | O28: 0 | P28: =SUMIFS('За добу'!$F:$F,'За добу'!$B:$B,Word!$B28,'За добу'!$D:$D,Word!$D28,'За добу'!$E:$E,Word!$E28) -> 0 | Q28: 0 | R28: Філія2 | S28: =SUMIFS(План!$G:$G,План!$B:$B,Word!$B28,План!$D:$D,Word!$D28,План!$E:$E,Word!$E28) -> 0 | T28: =SUMIFS(Факт!$G:$G,Факт!$B:$B,Word!$B28,Факт!$D:$D,Word!$D28,Факт!$E:$E,Word!$E28) -> 0 | U28: 0 | V28: =SUMIFS('За добу'!$G:$G,'За добу'!$B:$B,Word!$B28,'За добу'!$D:$D,Word!$D28,'За добу'!$E:$E,Word!$E28) -> 0 | W28: 0 | X28: Філія3 | Y28: =SUMIFS(План!$H:$H,План!$B:$B,Word!$B28,План!$D:$D,Word!$D28,План!$E:$E,Word!$E28) -> 0 | Z28: =SUMIFS(Факт!$H:$H,Факт!$B:$B,Word!$B28,Факт!$D:$D,Word!$D28,Факт!$E:$E,Word!$E28) -> 0 | AA28: 0 | AB28: =SUMIFS('За добу'!$H:$H,'За добу'!$B:$B,Word!$B28,'За добу'!$D:$D,Word!$D28,'За добу'!$E:$E,Word!$E28) -> 0 | AC28: 0 | AD28: Філія4 | AE28: =SUMIFS(План!$I:$I,План!$B:$B,Word!$B28,План!$D:$D,Word!$D28,План!$E:$E,Word!$E28) -> 0 | AF28: =SUMIFS(Факт!$I:$I,Факт!$B:$B,Word!$B28,Факт!$D:$D,Word!$D28,Факт!$E:$E,Word!$E28) -> 0 | AG28: 0 | AH28: =SUMIFS('За добу'!$I:$I,'За добу'!$B:$B,Word!$B28,'За добу'!$D:$D,Word!$D28,'За добу'!$E:$E,Word!$E28) -> 0 | AI28: 0 | AJ28: Філія5 | AK28: =SUMIFS(План!$J:$J,План!$B:$B,Word!$B28,План!$D:$D,Word!$D28,План!$E:$E,Word!$E28) -> 0 | AL28: =SUMIFS(Факт!$J:$J,Факт!$B:$B,Word!$B28,Факт!$D:$D,Word!$D28,Факт!$E:$E,Word!$E28) -> 0 | AM28: 0 | AN28: =SUMIFS('За добу'!$J:$J,'За добу'!$B:$B,Word!$B28,'За добу'!$D:$D,Word!$D28,'За добу'!$E:$E,Word!$E28) -> 0 | AO28: 0
B29: ='За добу'!$B29 -> 0 | D29: ='За добу'!$D29 -> 0 | E29: ='За добу'!$E29 -> 0 | F29: ФОРМУЛА | G29: 0 | H29: 0 | I29: 0 | J29: 0 | K29: 0 | L29: Філія1 | M29: =SUMIFS(План!$F:$F,План!$B:$B,Word!$B29,План!$D:$D,Word!$D29,План!$E:$E,Word!$E29) -> 0 | N29: =SUMIFS(Факт!$F:$F,Факт!$B:$B,Word!$B29,Факт!$D:$D,Word!$D29,Факт!$E:$E,Word!$E29) -> 0 | O29: 0 | P29: =SUMIFS('За добу'!$F:$F,'За добу'!$B:$B,Word!$B29,'За добу'!$D:$D,Word!$D29,'За добу'!$E:$E,Word!$E29) -> 0 | Q29: 0 | R29: Філія2 | S29: =SUMIFS(План!$G:$G,План!$B:$B,Word!$B29,План!$D:$D,Word!$D29,План!$E:$E,Word!$E29) -> 0 | T29: =SUMIFS(Факт!$G:$G,Факт!$B:$B,Word!$B29,Факт!$D:$D,Word!$D29,Факт!$E:$E,Word!$E29) -> 0 | U29: 0 | V29: =SUMIFS('За добу'!$G:$G,'За добу'!$B:$B,Word!$B29,'За добу'!$D:$D,Word!$D29,'За добу'!$E:$E,Word!$E29) -> 0 | W29: 0 | X29: Філія3 | Y29: =SUMIFS(План!$H:$H,План!$B:$B,Word!$B29,План!$D:$D,Word!$D29,План!$E:$E,Word!$E29) -> 0 | Z29: =SUMIFS(Факт!$H:$H,Факт!$B:$B,Word!$B29,Факт!$D:$D,Word!$D29,Факт!$E:$E,Word!$E29) -> 0 | AA29: 0 | AB29: =SUMIFS('За добу'!$H:$H,'За добу'!$B:$B,Word!$B29,'За добу'!$D:$D,Word!$D29,'За добу'!$E:$E,Word!$E29) -> 0 | AC29: 0 | AD29: Філія4 | AE29: =SUMIFS(План!$I:$I,План!$B:$B,Word!$B29,План!$D:$D,Word!$D29,План!$E:$E,Word!$E29) -> 0 | AF29: =SUMIFS(Факт!$I:$I,Факт!$B:$B,Word!$B29,Факт!$D:$D,Word!$D29,Факт!$E:$E,Word!$E29) -> 0 | AG29: 0 | AH29: =SUMIFS('За добу'!$I:$I,'За добу'!$B:$B,Word!$B29,'За добу'!$D:$D,Word!$D29,'За добу'!$E:$E,Word!$E29) -> 0 | AI29: 0 | AJ29: Філія5 | AK29: =SUMIFS(План!$J:$J,План!$B:$B,Word!$B29,План!$D:$D,Word!$D29,План!$E:$E,Word!$E29) -> 0 | AL29: =SUMIFS(Факт!$J:$J,Факт!$B:$B,Word!$B29,Факт!$D:$D,Word!$D29,Факт!$E:$E,Word!$E29) -> 0 | AM29: 0 | AN29: =SUMIFS('За добу'!$J:$J,'За добу'!$B:$B,Word!$B29,'За добу'!$D:$D,Word!$D29,'За добу'!$E:$E,Word!$E29) -> 0 | AO29: 0
B30: ='За добу'!$B30 -> 0 | D30: ='За добу'!$D30 -> 0 | E30: ='За добу'!$E30 -> 0 | F30: ФОРМУЛА | G30: 0 | H30: 0 | I30: 0 | J30: 0 | K30: 0 | L30: Філія1 | M30: =SUMIFS(План!$F:$F,План!$B:$B,Word!$B30,План!$D:$D,Word!$D30,План!$E:$E,Word!$E30) -> 0 | N30: =SUMIFS(Факт!$F:$F,Факт!$B:$B,Word!$B30,Факт!$D:$D,Word!$D30,Факт!$E:$E,Word!$E30) -> 0 | O30: 0 | P30: =SUMIFS('За добу'!$F:$F,'За добу'!$B:$B,Word!$B30,'За добу'!$D:$D,Word!$D30,'За добу'!$E:$E,Word!$E30) -> 0 | Q30: 0 | R30: Філія2 | S30: =SUMIFS(План!$G:$G,План!$B:$B,Word!$B30,План!$D:$D,Word!$D30,План!$E:$E,Word!$E30) -> 0 | T30: =SUMIFS(Факт!$G:$G,Факт!$B:$B,Word!$B30,Факт!$D:$D,Word!$D30,Факт!$E:$E,Word!$E30) -> 0 | U30: 0 | V30: =SUMIFS('За добу'!$G:$G,'За добу'!$B:$B,Word!$B30,'За добу'!$D:$D,Word!$D30,'За добу'!$E:$E,Word!$E30) -> 0 | W30: 0 | X30: Філія3 | Y30: =SUMIFS(План!$H:$H,План!$B:$B,Word!$B30,План!$D:$D,Word!$D30,План!$E:$E,Word!$E30) -> 0 | Z30: =SUMIFS(Факт!$H:$H,Факт!$B:$B,Word!$B30,Факт!$D:$D,Word!$D30,Факт!$E:$E,Word!$E30) -> 0 | AA30: 0 | AB30: =SUMIFS('За добу'!$H:$H,'За добу'!$B:$B,Word!$B30,'За добу'!$D:$D,Word!$D30,'За добу'!$E:$E,Word!$E30) -> 0 | AC30: 0 | AD30: Філія4 | AE30: =SUMIFS(План!$I:$I,План!$B:$B,Word!$B30,План!$D:$D,Word!$D30,План!$E:$E,Word!$E30) -> 0 | AF30: =SUMIFS(Факт!$I:$I,Факт!$B:$B,Word!$B30,Факт!$D:$D,Word!$D30,Факт!$E:$E,Word!$E30) -> 0 | AG30: 0 | AH30: =SUMIFS('За добу'!$I:$I,'За добу'!$B:$B,Word!$B30,'За добу'!$D:$D,Word!$D30,'За добу'!$E:$E,Word!$E30) -> 0 | AI30: 0 | AJ30: Філія5 | AK30: =SUMIFS(План!$J:$J,План!$B:$B,Word!$B30,План!$D:$D,Word!$D30,План!$E:$E,Word!$E30) -> 0 | AL30: =SUMIFS(Факт!$J:$J,Факт!$B:$B,Word!$B30,Факт!$D:$D,Word!$D30,Факт!$E:$E,Word!$E30) -> 0 | AM30: 0 | AN30: =SUMIFS('За добу'!$J:$J,'За добу'!$B:$B,Word!$B30,'За добу'!$D:$D,Word!$D30,'За добу'!$E:$E,Word!$E30) -> 0 | AO30: 0
B31: ='За добу'!$B31 -> 0 | D31: ='За добу'!$D31 -> 0 | E31: ='За добу'!$E31 -> 0 | F31: ФОРМУЛА | G31: 0 | H31: 0 | I31: 0 | J31: 0 | K31: 0 | L31: Філія1 | M31: =SUMIFS(План!$F:$F,План!$B:$B,Word!$B31,План!$D:$D,Word!$D31,План!$E:$E,Word!$E31) -> 0 | N31: =SUMIFS(Факт!$F:$F,Факт!$B:$B,Word!$B31,Факт!$D:$D,Word!$D31,Факт!$E:$E,Word!$E31) -> 0 | O31: 0 | P31: =SUMIFS('За добу'!$F:$F,'За добу'!$B:$B,Word!$B31,'За добу'!$D:$D,Word!$D31,'За добу'!$E:$E,Word!$E31) -> 0 | Q31: 0 | R31: Філія2 | S31: =SUMIFS(План!$G:$G,План!$B:$B,Word!$B31,План!$D:$D,Word!$D31,План!$E:$E,Word!$E31) -> 0 | T31: =SUMIFS(Факт!$G:$G,Факт!$B:$B,Word!$B31,Факт!$D:$D,Word!$D31,Факт!$E:$E,Word!$E31) -> 0 | U31: 0 | V31: =SUMIFS('За добу'!$G:$G,'За добу'!$B:$B,Word!$B31,'За добу'!$D:$D,Word!$D31,'За добу'!$E:$E,Word!$E31) -> 0 | W31: 0 | X31: Філія3 | Y31: =SUMIFS(План!$H:$H,План!$B:$B,Word!$B31,План!$D:$D,Word!$D31,План!$E:$E,Word!$E31) -> 0 | Z31: =SUMIFS(Факт!$H:$H,Факт!$B:$B,Word!$B31,Факт!$D:$D,Word!$D31,Факт!$E:$E,Word!$E31) -> 0 | AA31: 0 | AB31: =SUMIFS('За добу'!$H:$H,'За добу'!$B:$B,Word!$B31,'За добу'!$D:$D,Word!$D31,'За добу'!$E:$E,Word!$E31) -> 0 | AC31: 0 | AD31: Філія4 | AE31: =SUMIFS(План!$I:$I,План!$B:$B,Word!$B31,План!$D:$D,Word!$D31,План!$E:$E,Word!$E31) -> 0 | AF31: =SUMIFS(Факт!$I:$I,Факт!$B:$B,Word!$B31,Факт!$D:$D,Word!$D31,Факт!$E:$E,Word!$E31) -> 0 | AG31: 0 | AH31: =SUMIFS('За добу'!$I:$I,'За добу'!$B:$B,Word!$B31,'За добу'!$D:$D,Word!$D31,'За добу'!$E:$E,Word!$E31) -> 0 | AI31: 0 | AJ31: Філія5 | AK31: =SUMIFS(План!$J:$J,План!$B:$B,Word!$B31,План!$D:$D,Word!$D31,План!$E:$E,Word!$E31) -> 0 | AL31: =SUMIFS(Факт!$J:$J,Факт!$B:$B,Word!$B31,Факт!$D:$D,Word!$D31,Факт!$E:$E,Word!$E31) -> 0 | AM31: 0 | AN31: =SUMIFS('За добу'!$J:$J,'За добу'!$B:$B,Word!$B31,'За добу'!$D:$D,Word!$D31,'За добу'!$E:$E,Word!$E31) -> 0 | AO31: 0
B32: ='За добу'!$B32 -> 0 | D32: ='За добу'!$D32 -> 0 | E32: ='За добу'!$E32 -> 0 | F32: ФОРМУЛА | G32: 0 | H32: 0 | I32: 0 | J32: 0 | K32: 0 | L32: Філія1 | M32: =SUMIFS(План!$F:$F,План!$B:$B,Word!$B32,План!$D:$D,Word!$D32,План!$E:$E,Word!$E32) -> 0 | N32: =SUMIFS(Факт!$F:$F,Факт!$B:$B,Word!$B32,Факт!$D:$D,Word!$D32,Факт!$E:$E,Word!$E32) -> 0 | O32: 0 | P32: =SUMIFS('За добу'!$F:$F,'За добу'!$B:$B,Word!$B32,'За добу'!$D:$D,Word!$D32,'За добу'!$E:$E,Word!$E32) -> 0 | Q32: 0 | R32: Філія2 | S32: =SUMIFS(План!$G:$G,План!$B:$B,Word!$B32,План!$D:$D,Word!$D32,План!$E:$E,Word!$E32) -> 0 | T32: =SUMIFS(Факт!$G:$G,Факт!$B:$B,Word!$B32,Факт!$D:$D,Word!$D32,Факт!$E:$E,Word!$E32) -> 0 | U32: 0 | V32: =SUMIFS('За добу'!$G:$G,'За добу'!$B:$B,Word!$B32,'За добу'!$D:$D,Word!$D32,'За добу'!$E:$E,Word!$E32) -> 0 | W32: 0 | X32: Філія3 | Y32: =SUMIFS(План!$H:$H,План!$B:$B,Word!$B32,План!$D:$D,Word!$D32,План!$E:$E,Word!$E32) -> 0 | Z32: =SUMIFS(Факт!$H:$H,Факт!$B:$B,Word!$B32,Факт!$D:$D,Word!$D32,Факт!$E:$E,Word!$E32) -> 0 | AA32: 0 | AB32: =SUMIFS('За добу'!$H:$H,'За добу'!$B:$B,Word!$B32,'За добу'!$D:$D,Word!$D32,'За добу'!$E:$E,Word!$E32) -> 0 | AC32: 0 | AD32: Філія4 | AE32: =SUMIFS(План!$I:$I,План!$B:$B,Word!$B32,План!$D:$D,Word!$D32,План!$E:$E,Word!$E32) -> 0 | AF32: =SUMIFS(Факт!$I:$I,Факт!$B:$B,Word!$B32,Факт!$D:$D,Word!$D32,Факт!$E:$E,Word!$E32) -> 0 | AG32: 0 | AH32: =SUMIFS('За добу'!$I:$I,'За добу'!$B:$B,Word!$B32,'За добу'!$D:$D,Word!$D32,'За добу'!$E:$E,Word!$E32) -> 0 | AI32: 0 | AJ32: Філія5 | AK32: =SUMIFS(План!$J:$J,План!$B:$B,Word!$B32,План!$D:$D,Word!$D32,План!$E:$E,Word!$E32) -> 0 | AL32: =SUMIFS(Факт!$J:$J,Факт!$B:$B,Word!$B32,Факт!$D:$D,Word!$D32,Факт!$E:$E,Word!$E32) -> 0 | AM32: 0 | AN32: =SUMIFS('За добу'!$J:$J,'За добу'!$B:$B,Word!$B32,'За добу'!$D:$D,Word!$D32,'За добу'!$E:$E,Word!$E32) -> 0 | AO32: 0
B33: ='За добу'!$B33 -> 0 | D33: ='За добу'!$D33 -> 0 | E33: ='За добу'!$E33 -> 0 | F33: ФОРМУЛА | G33: 0 | H33: 0 | I33: 0 | J33: 0 | K33: 0 | L33: Філія1 | M33: =SUMIFS(План!$F:$F,План!$B:$B,Word!$B33,План!$D:$D,Word!$D33,План!$E:$E,Word!$E33) -> 0 | N33: =SUMIFS(Факт!$F:$F,Факт!$B:$B,Word!$B33,Факт!$D:$D,Word!$D33,Факт!$E:$E,Word!$E33) -> 0 | O33: 0 | P33: =SUMIFS('За добу'!$F:$F,'За добу'!$B:$B,Word!$B33,'За добу'!$D:$D,Word!$D33,'За добу'!$E:$E,Word!$E33) -> 0 | Q33: 0 | R33: Філія2 | S33: =SUMIFS(План!$G:$G,План!$B:$B,Word!$B33,План!$D:$D,Word!$D33,План!$E:$E,Word!$E33) -> 0 | T33: =SUMIFS(Факт!$G:$G,Факт!$B:$B,Word!$B33,Факт!$D:$D,Word!$D33,Факт!$E:$E,Word!$E33) -> 0 | U33: 0 | V33: =SUMIFS('За добу'!$G:$G,'За добу'!$B:$B,Word!$B33,'За добу'!$D:$D,Word!$D33,'За добу'!$E:$E,Word!$E33) -> 0 | W33: 0 | X33: Філія3 | Y33: =SUMIFS(План!$H:$H,План!$B:$B,Word!$B33,План!$D:$D,Word!$D33,План!$E:$E,Word!$E33) -> 0 | Z33: =SUMIFS(Факт!$H:$H,Факт!$B:$B,Word!$B33,Факт!$D:$D,Word!$D33,Факт!$E:$E,Word!$E33) -> 0 | AA33: 0 | AB33: =SUMIFS('За добу'!$H:$H,'За добу'!$B:$B,Word!$B33,'За добу'!$D:$D,Word!$D33,'За добу'!$E:$E,Word!$E33) -> 0 | AC33: 0 | AD33: Філія4 | AE33: =SUMIFS(План!$I:$I,План!$B:$B,Word!$B33,План!$D:$D,Word!$D33,План!$E:$E,Word!$E33) -> 0 | AF33: =SUMIFS(Факт!$I:$I,Факт!$B:$B,Word!$B33,Факт!$D:$D,Word!$D33,Факт!$E:$E,Word!$E33) -> 0 | AG33: 0 | AH33: =SUMIFS('За добу'!$I:$I,'За добу'!$B:$B,Word!$B33,'За добу'!$D:$D,Word!$D33,'За добу'!$E:$E,Word!$E33) -> 0 | AI33: 0 | AJ33: Філія5 | AK33: =SUMIFS(План!$J:$J,План!$B:$B,Word!$B33,План!$D:$D,Word!$D33,План!$E:$E,Word!$E33) -> 0 | AL33: =SUMIFS(Факт!$J:$J,Факт!$B:$B,Word!$B33,Факт!$D:$D,Word!$D33,Факт!$E:$E,Word!$E33) -> 0 | AM33: 0 | AN33: =SUMIFS('За добу'!$J:$J,'За добу'!$B:$B,Word!$B33,'За добу'!$D:$D,Word!$D33,'За добу'!$E:$E,Word!$E33) -> 0 | AO33: 0
B34: ='За добу'!$B34 -> 0 | D34: ='За добу'!$D34 -> 0 | E34: ='За добу'!$E34 -> 0 | F34: ФОРМУЛА | G34: 0 | H34: 0 | I34: 0 | J34: 0 | K34: 0 | L34: Філія1 | M34: =SUMIFS(План!$F:$F,План!$B:$B,Word!$B34,План!$D:$D,Word!$D34,План!$E:$E,Word!$E34) -> 0 | N34: =SUMIFS(Факт!$F:$F,Факт!$B:$B,Word!$B34,Факт!$D:$D,Word!$D34,Факт!$E:$E,Word!$E34) -> 0 | O34: 0 | P34: =SUMIFS('За добу'!$F:$F,'За добу'!$B:$B,Word!$B34,'За добу'!$D:$D,Word!$D34,'За добу'!$E:$E,Word!$E34) -> 0 | Q34: 0 | R34: Філія2 | S34: =SUMIFS(План!$G:$G,План!$B:$B,Word!$B34,План!$D:$D,Word!$D34,План!$E:$E,Word!$E34) -> 0 | T34: =SUMIFS(Факт!$G:$G,Факт!$B:$B,Word!$B34,Факт!$D:$D,Word!$D34,Факт!$E:$E,Word!$E34) -> 0 | U34: 0 | V34: =SUMIFS('За добу'!$G:$G,'За добу'!$B:$B,Word!$B34,'За добу'!$D:$D,Word!$D34,'За добу'!$E:$E,Word!$E34) -> 0 | W34: 0 | X34: Філія3 | Y34: =SUMIFS(План!$H:$H,План!$B:$B,Word!$B34,План!$D:$D,Word!$D34,План!$E:$E,Word!$E34) -> 0 | Z34: =SUMIFS(Факт!$H:$H,Факт!$B:$B,Word!$B34,Факт!$D:$D,Word!$D34,Факт!$E:$E,Word!$E34) -> 0 | AA34: 0 | AB34: =SUMIFS('За добу'!$H:$H,'За добу'!$B:$B,Word!$B34,'За добу'!$D:$D,Word!$D34,'За добу'!$E:$E,Word!$E34) -> 0 | AC34: 0 | AD34: Філія4 | AE34: =SUMIFS(План!$I:$I,План!$B:$B,Word!$B34,План!$D:$D,Word!$D34,План!$E:$E,Word!$E34) -> 0 | AF34: =SUMIFS(Факт!$I:$I,Факт!$B:$B,Word!$B34,Факт!$D:$D,Word!$D34,Факт!$E:$E,Word!$E34) -> 0 | AG34: 0 | AH34: =SUMIFS('За добу'!$I:$I,'За добу'!$B:$B,Word!$B34,'За добу'!$D:$D,Word!$D34,'За добу'!$E:$E,Word!$E34) -> 0 | AI34: 0 | AJ34: Філія5 | AK34: =SUMIFS(План!$J:$J,План!$B:$B,Word!$B34,План!$D:$D,Word!$D34,План!$E:$E,Word!$E34) -> 0 | AL34: =SUMIFS(Факт!$J:$J,Факт!$B:$B,Word!$B34,Факт!$D:$D,Word!$D34,Факт!$E:$E,Word!$E34) -> 0 | AM34: 0 | AN34: =SUMIFS('За добу'!$J:$J,'За добу'!$B:$B,Word!$B34,'За добу'!$D:$D,Word!$D34,'За добу'!$E:$E,Word!$E34) -> 0 | AO34: 0
B35: ='За добу'!$B35 -> 0 | D35: ='За добу'!$D35 -> 0 | E35: ='За добу'!$E35 -> 0 | F35: ФОРМУЛА | G35: 0 | H35: 0 | I35: 0 | J35: 0 | K35: 0 | L35: Філія1 | M35: =SUMIFS(План!$F:$F,План!$B:$B,Word!$B35,План!$D:$D,Word!$D35,План!$E:$E,Word!$E35) -> 0 | N35: =SUMIFS(Факт!$F:$F,Факт!$B:$B,Word!$B35,Факт!$D:$D,Word!$D35,Факт!$E:$E,Word!$E35) -> 0 | O35: 0 | P35: =SUMIFS('За добу'!$F:$F,'За добу'!$B:$B,Word!$B35,'За добу'!$D:$D,Word!$D35,'За добу'!$E:$E,Word!$E35) -> 0 | Q35: 0 | R35: Філія2 | S35: =SUMIFS(План!$G:$G,План!$B:$B,Word!$B35,План!$D:$D,Word!$D35,План!$E:$E,Word!$E35) -> 0 | T35: =SUMIFS(Факт!$G:$G,Факт!$B:$B,Word!$B35,Факт!$D:$D,Word!$D35,Факт!$E:$E,Word!$E35) -> 0 | U35: 0 | V35: =SUMIFS('За добу'!$G:$G,'За добу'!$B:$B,Word!$B35,'За добу'!$D:$D,Word!$D35,'За добу'!$E:$E,Word!$E35) -> 0 | W35: 0 | X35: Філія3 | Y35: =SUMIFS(План!$H:$H,План!$B:$B,Word!$B35,План!$D:$D,Word!$D35,План!$E:$E,Word!$E35) -> 0 | Z35: =SUMIFS(Факт!$H:$H,Факт!$B:$B,Word!$B35,Факт!$D:$D,Word!$D35,Факт!$E:$E,Word!$E35) -> 0 | AA35: 0 | AB35: =SUMIFS('За добу'!$H:$H,'За добу'!$B:$B,Word!$B35,'За добу'!$D:$D,Word!$D35,'За добу'!$E:$E,Word!$E35) -> 0 | AC35: 0 | AD35: Філія4 | AE35: =SUMIFS(План!$I:$I,План!$B:$B,Word!$B35,План!$D:$D,Word!$D35,План!$E:$E,Word!$E35) -> 0 | AF35: =SUMIFS(Факт!$I:$I,Факт!$B:$B,Word!$B35,Факт!$D:$D,Word!$D35,Факт!$E:$E,Word!$E35) -> 0 | AG35: 0 | AH35: =SUMIFS('За добу'!$I:$I,'За добу'!$B:$B,Word!$B35,'За добу'!$D:$D,Word!$D35,'За добу'!$E:$E,Word!$E35) -> 0 | AI35: 0 | AJ35: Філія5 | AK35: =SUMIFS(План!$J:$J,План!$B:$B,Word!$B35,План!$D:$D,Word!$D35,План!$E:$E,Word!$E35) -> 0 | AL35: =SUMIFS(Факт!$J:$J,Факт!$B:$B,Word!$B35,Факт!$D:$D,Word!$D35,Факт!$E:$E,Word!$E35) -> 0 | AM35: 0 | AN35: =SUMIFS('За добу'!$J:$J,'За добу'!$B:$B,Word!$B35,'За добу'!$D:$D,Word!$D35,'За добу'!$E:$E,Word!$E35) -> 0 | AO35: 0
B36: ='За добу'!$B36 -> 0 | D36: ='За добу'!$D36 -> 0 | E36: ='За добу'!$E36 -> 0 | F36: ФОРМУЛА | G36: 0 | H36: 0 | I36: 0 | J36: 0 | K36: 0 | L36: Філія1 | M36: =SUMIFS(План!$F:$F,План!$B:$B,Word!$B36,План!$D:$D,Word!$D36,План!$E:$E,Word!$E36) -> 0 | N36: =SUMIFS(Факт!$F:$F,Факт!$B:$B,Word!$B36,Факт!$D:$D,Word!$D36,Факт!$E:$E,Word!$E36) -> 0 | O36: 0 | P36: =SUMIFS('За добу'!$F:$F,'За добу'!$B:$B,Word!$B36,'За добу'!$D:$D,Word!$D36,'За добу'!$E:$E,Word!$E36) -> 0 | Q36: 0 | R36: Філія2 | S36: =SUMIFS(План!$G:$G,План!$B:$B,Word!$B36,План!$D:$D,Word!$D36,План!$E:$E,Word!$E36) -> 0 | T36: =SUMIFS(Факт!$G:$G,Факт!$B:$B,Word!$B36,Факт!$D:$D,Word!$D36,Факт!$E:$E,Word!$E36) -> 0 | U36: 0 | V36: =SUMIFS('За добу'!$G:$G,'За добу'!$B:$B,Word!$B36,'За добу'!$D:$D,Word!$D36,'За добу'!$E:$E,Word!$E36) -> 0 | W36: 0 | X36: Філія3 | Y36: =SUMIFS(План!$H:$H,План!$B:$B,Word!$B36,План!$D:$D,Word!$D36,План!$E:$E,Word!$E36) -> 0 | Z36: =SUMIFS(Факт!$H:$H,Факт!$B:$B,Word!$B36,Факт!$D:$D,Word!$D36,Факт!$E:$E,Word!$E36) -> 0 | AA36: 0 | AB36: =SUMIFS('За добу'!$H:$H,'За добу'!$B:$B,Word!$B36,'За добу'!$D:$D,Word!$D36,'За добу'!$E:$E,Word!$E36) -> 0 | AC36: 0 | AD36: Філія4 | AE36: =SUMIFS(План!$I:$I,План!$B:$B,Word!$B36,План!$D:$D,Word!$D36,План!$E:$E,Word!$E36) -> 0 | AF36: =SUMIFS(Факт!$I:$I,Факт!$B:$B,Word!$B36,Факт!$D:$D,Word!$D36,Факт!$E:$E,Word!$E36) -> 0 | AG36: 0 | AH36: =SUMIFS('За добу'!$I:$I,'За добу'!$B:$B,Word!$B36,'За добу'!$D:$D,Word!$D36,'За добу'!$E:$E,Word!$E36) -> 0 | AI36: 0 | AJ36: Філія5 | AK36: =SUMIFS(План!$J:$J,План!$B:$B,Word!$B36,План!$D:$D,Word!$D36,План!$E:$E,Word!$E36) -> 0 | AL36: =SUMIFS(Факт!$J:$J,Факт!$B:$B,Word!$B36,Факт!$D:$D,Word!$D36,Факт!$E:$E,Word!$E36) -> 0 | AM36: 0 | AN36: =SUMIFS('За добу'!$J:$J,'За добу'!$B:$B,Word!$B36,'За добу'!$D:$D,Word!$D36,'За добу'!$E:$E,Word!$E36) -> 0 | AO36: 0
B37: ='За добу'!$B37 -> 0 | D37: ='За добу'!$D37 -> 0 | E37: ='За добу'!$E37 -> 0 | F37: ФОРМУЛА | G37: 0 | H37: 0 | I37: 0 | J37: 0 | K37: 0 | L37: Філія1 | M37: =SUMIFS(План!$F:$F,План!$B:$B,Word!$B37,План!$D:$D,Word!$D37,План!$E:$E,Word!$E37) -> 0 | N37: =SUMIFS(Факт!$F:$F,Факт!$B:$B,Word!$B37,Факт!$D:$D,Word!$D37,Факт!$E:$E,Word!$E37) -> 0 | O37: 0 | P37: =SUMIFS('За добу'!$F:$F,'За добу'!$B:$B,Word!$B37,'За добу'!$D:$D,Word!$D37,'За добу'!$E:$E,Word!$E37) -> 0 | Q37: 0 | R37: Філія2 | S37: =SUMIFS(План!$G:$G,План!$B:$B,Word!$B37,План!$D:$D,Word!$D37,План!$E:$E,Word!$E37) -> 0 | T37: =SUMIFS(Факт!$G:$G,Факт!$B:$B,Word!$B37,Факт!$D:$D,Word!$D37,Факт!$E:$E,Word!$E37) -> 0 | U37: 0 | V37: =SUMIFS('За добу'!$G:$G,'За добу'!$B:$B,Word!$B37,'За добу'!$D:$D,Word!$D37,'За добу'!$E:$E,Word!$E37) -> 0 | W37: 0 | X37: Філія3 | Y37: =SUMIFS(План!$H:$H,План!$B:$B,Word!$B37,План!$D:$D,Word!$D37,План!$E:$E,Word!$E37) -> 0 | Z37: =SUMIFS(Факт!$H:$H,Факт!$B:$B,Word!$B37,Факт!$D:$D,Word!$D37,Факт!$E:$E,Word!$E37) -> 0 | AA37: 0 | AB37: =SUMIFS('За добу'!$H:$H,'За добу'!$B:$B,Word!$B37,'За добу'!$D:$D,Word!$D37,'За добу'!$E:$E,Word!$E37) -> 0 | AC37: 0 | AD37: Філія4 | AE37: =SUMIFS(План!$I:$I,План!$B:$B,Word!$B37,План!$D:$D,Word!$D37,План!$E:$E,Word!$E37) -> 0 | AF37: =SUMIFS(Факт!$I:$I,Факт!$B:$B,Word!$B37,Факт!$D:$D,Word!$D37,Факт!$E:$E,Word!$E37) -> 0 | AG37: 0 | AH37: =SUMIFS('За добу'!$I:$I,'За добу'!$B:$B,Word!$B37,'За добу'!$D:$D,Word!$D37,'За добу'!$E:$E,Word!$E37) -> 0 | AI37: 0 | AJ37: Філія5 | AK37: =SUMIFS(План!$J:$J,План!$B:$B,Word!$B37,План!$D:$D,Word!$D37,План!$E:$E,Word!$E37) -> 0 | AL37: =SUMIFS(Факт!$J:$J,Факт!$B:$B,Word!$B37,Факт!$D:$D,Word!$D37,Факт!$E:$E,Word!$E37) -> 0 | AM37: 0 | AN37: =SUMIFS('За добу'!$J:$J,'За добу'!$B:$B,Word!$B37,'За добу'!$D:$D,Word!$D37,'За добу'!$E:$E,Word!$E37) -> 0 | AO37: 0
B38: ='За добу'!$B38 -> 0 | D38: ='За добу'!$D38 -> 0 | E38: ='За добу'!$E38 -> 0 | F38: ФОРМУЛА | G38: 0 | H38: 0 | I38: 0 | J38: 0 | K38: 0 | L38: Філія1 | M38: =SUMIFS(План!$F:$F,План!$B:$B,Word!$B38,План!$D:$D,Word!$D38,План!$E:$E,Word!$E38) -> 0 | N38: =SUMIFS(Факт!$F:$F,Факт!$B:$B,Word!$B38,Факт!$D:$D,Word!$D38,Факт!$E:$E,Word!$E38) -> 0 | O38: 0 | P38: =SUMIFS('За добу'!$F:$F,'За добу'!$B:$B,Word!$B38,'За добу'!$D:$D,Word!$D38,'За добу'!$E:$E,Word!$E38) -> 0 | Q38: 0 | R38: Філія2 | S38: =SUMIFS(План!$G:$G,План!$B:$B,Word!$B38,План!$D:$D,Word!$D38,План!$E:$E,Word!$E38) -> 0 | T38: =SUMIFS(Факт!$G:$G,Факт!$B:$B,Word!$B38,Факт!$D:$D,Word!$D38,Факт!$E:$E,Word!$E38) -> 0 | U38: 0 | V38: =SUMIFS('За добу'!$G:$G,'За добу'!$B:$B,Word!$B38,'За добу'!$D:$D,Word!$D38,'За добу'!$E:$E,Word!$E38) -> 0 | W38: 0 | X38: Філія3 | Y38: =SUMIFS(План!$H:$H,План!$B:$B,Word!$B38,План!$D:$D,Word!$D38,План!$E:$E,Word!$E38) -> 0 | Z38: =SUMIFS(Факт!$H:$H,Факт!$B:$B,Word!$B38,Факт!$D:$D,Word!$D38,Факт!$E:$E,Word!$E38) -> 0 | AA38: 0 | AB38: =SUMIFS('За добу'!$H:$H,'За добу'!$B:$B,Word!$B38,'За добу'!$D:$D,Word!$D38,'За добу'!$E:$E,Word!$E38) -> 0 | AC38: 0 | AD38: Філія4 | AE38: =SUMIFS(План!$I:$I,План!$B:$B,Word!$B38,План!$D:$D,Word!$D38,План!$E:$E,Word!$E38) -> 0 | AF38: =SUMIFS(Факт!$I:$I,Факт!$B:$B,Word!$B38,Факт!$D:$D,Word!$D38,Факт!$E:$E,Word!$E38) -> 0 | AG38: 0 | AH38: =SUMIFS('За добу'!$I:$I,'За добу'!$B:$B,Word!$B38,'За добу'!$D:$D,Word!$D38,'За добу'!$E:$E,Word!$E38) -> 0 | AI38: 0 | AJ38: Філія5 | AK38: =SUMIFS(План!$J:$J,План!$B:$B,Word!$B38,План!$D:$D,Word!$D38,План!$E:$E,Word!$E38) -> 0 | AL38: =SUMIFS(Факт!$J:$J,Факт!$B:$B,Word!$B38,Факт!$D:$D,Word!$D38,Факт!$E:$E,Word!$E38) -> 0 | AM38: 0 | AN38: =SUMIFS('За добу'!$J:$J,'За добу'!$B:$B,Word!$B38,'За добу'!$D:$D,Word!$D38,'За добу'!$E:$E,Word!$E38) -> 0 | AO38: 0
B39: ='За добу'!$B39 -> 0 | D39: ='За добу'!$D39 -> 0 | E39: ='За добу'!$E39 -> 0 | F39: ФОРМУЛА | G39: 0 | H39: 0 | I39: 0 | J39: 0 | K39: 0 | L39: Філія1 | M39: =SUMIFS(План!$F:$F,План!$B:$B,Word!$B39,План!$D:$D,Word!$D39,План!$E:$E,Word!$E39) -> 0 | N39: =SUMIFS(Факт!$F:$F,Факт!$B:$B,Word!$B39,Факт!$D:$D,Word!$D39,Факт!$E:$E,Word!$E39) -> 0 | O39: 0 | P39: =SUMIFS('За добу'!$F:$F,'За добу'!$B:$B,Word!$B39,'За добу'!$D:$D,Word!$D39,'За добу'!$E:$E,Word!$E39) -> 0 | Q39: 0 | R39: Філія2 | S39: =SUMIFS(План!$G:$G,План!$B:$B,Word!$B39,План!$D:$D,Word!$D39,План!$E:$E,Word!$E39) -> 0 | T39: =SUMIFS(Факт!$G:$G,Факт!$B:$B,Word!$B39,Факт!$D:$D,Word!$D39,Факт!$E:$E,Word!$E39) -> 0 | U39: 0 | V39: =SUMIFS('За добу'!$G:$G,'За добу'!$B:$B,Word!$B39,'За добу'!$D:$D,Word!$D39,'За добу'!$E:$E,Word!$E39) -> 0 | W39: 0 | X39: Філія3 | Y39: =SUMIFS(План!$H:$H,План!$B:$B,Word!$B39,План!$D:$D,Word!$D39,План!$E:$E,Word!$E39) -> 0 | Z39: =SUMIFS(Факт!$H:$H,Факт!$B:$B,Word!$B39,Факт!$D:$D,Word!$D39,Факт!$E:$E,Word!$E39) -> 0 | AA39: 0 | AB39: =SUMIFS('За добу'!$H:$H,'За добу'!$B:$B,Word!$B39,'За добу'!$D:$D,Word!$D39,'За добу'!$E:$E,Word!$E39) -> 0 | AC39: 0 | AD39: Філія4 | AE39: =SUMIFS(План!$I:$I,План!$B:$B,Word!$B39,План!$D:$D,Word!$D39,План!$E:$E,Word!$E39) -> 0 | AF39: =SUMIFS(Факт!$I:$I,Факт!$B:$B,Word!$B39,Факт!$D:$D,Word!$D39,Факт!$E:$E,Word!$E39) -> 0 | AG39: 0 | AH39: =SUMIFS('За добу'!$I:$I,'За добу'!$B:$B,Word!$B39,'За добу'!$D:$D,Word!$D39,'За добу'!$E:$E,Word!$E39) -> 0 | AI39: 0 | AJ39: Філія5 | AK39: =SUMIFS(План!$J:$J,План!$B:$B,Word!$B39,План!$D:$D,Word!$D39,План!$E:$E,Word!$E39) -> 0 | AL39: =SUMIFS(Факт!$J:$J,Факт!$B:$B,Word!$B39,Факт!$D:$D,Word!$D39,Факт!$E:$E,Word!$E39) -> 0 | AM39: 0 | AN39: =SUMIFS('За добу'!$J:$J,'За добу'!$B:$B,Word!$B39,'За добу'!$D:$D,Word!$D39,'За добу'!$E:$E,Word!$E39) -> 0 | AO39: 0
B40: ='За добу'!$B40 -> 0 | D40: ='За добу'!$D40 -> 0 | E40: ='За добу'!$E40 -> 0 | F40: ФОРМУЛА | G40: 0 | H40: 0 | I40: 0 | J40: 0 | K40: 0 | L40: Філія1 | M40: =SUMIFS(План!$F:$F,План!$B:$B,Word!$B40,План!$D:$D,Word!$D40,План!$E:$E,Word!$E40) -> 0 | N40: =SUMIFS(Факт!$F:$F,Факт!$B:$B,Word!$B40,Факт!$D:$D,Word!$D40,Факт!$E:$E,Word!$E40) -> 0 | O40: 0 | P40: =SUMIFS('За добу'!$F:$F,'За добу'!$B:$B,Word!$B40,'За добу'!$D:$D,Word!$D40,'За добу'!$E:$E,Word!$E40) -> 0 | Q40: 0 | R40: Філія2 | S40: =SUMIFS(План!$G:$G,План!$B:$B,Word!$B40,План!$D:$D,Word!$D40,План!$E:$E,Word!$E40) -> 0 | T40: =SUMIFS(Факт!$G:$G,Факт!$B:$B,Word!$B40,Факт!$D:$D,Word!$D40,Факт!$E:$E,Word!$E40) -> 0 | U40: 0 | V40: =SUMIFS('За добу'!$G:$G,'За добу'!$B:$B,Word!$B40,'За добу'!$D:$D,Word!$D40,'За добу'!$E:$E,Word!$E40) -> 0 | W40: 0 | X40: Філія3 | Y40: =SUMIFS(План!$H:$H,План!$B:$B,Word!$B40,План!$D:$D,Word!$D40,План!$E:$E,Word!$E40) -> 0 | Z40: =SUMIFS(Факт!$H:$H,Факт!$B:$B,Word!$B40,Факт!$D:$D,Word!$D40,Факт!$E:$E,Word!$E40) -> 0 | AA40: 0 | AB40: =SUMIFS('За добу'!$H:$H,'За добу'!$B:$B,Word!$B40,'За добу'!$D:$D,Word!$D40,'За добу'!$E:$E,Word!$E40) -> 0 | AC40: 0 | AD40: Філія4 | AE40: =SUMIFS(План!$I:$I,План!$B:$B,Word!$B40,План!$D:$D,Word!$D40,План!$E:$E,Word!$E40) -> 0 | AF40: =SUMIFS(Факт!$I:$I,Факт!$B:$B,Word!$B40,Факт!$D:$D,Word!$D40,Факт!$E:$E,Word!$E40) -> 0 | AG40: 0 | AH40: =SUMIFS('За добу'!$I:$I,'За добу'!$B:$B,Word!$B40,'За добу'!$D:$D,Word!$D40,'За добу'!$E:$E,Word!$E40) -> 0 | AI40: 0 | AJ40: Філія5 | AK40: =SUMIFS(План!$J:$J,План!$B:$B,Word!$B40,План!$D:$D,Word!$D40,План!$E:$E,Word!$E40) -> 0 | AL40: =SUMIFS(Факт!$J:$J,Факт!$B:$B,Word!$B40,Факт!$D:$D,Word!$D40,Факт!$E:$E,Word!$E40) -> 0 | AM40: 0 | AN40: =SUMIFS('За добу'!$J:$J,'За добу'!$B:$B,Word!$B40,'За добу'!$D:$D,Word!$D40,'За добу'!$E:$E,Word!$E40) -> 0 | AO40: 0
B41: ='За добу'!$B41 -> 0 | D41: ='За добу'!$D41 -> 0 | E41: ='За добу'!$E41 -> 0 | F41: ФОРМУЛА | G41: 0 | H41: 0 | I41: 0 | J41: 0 | K41: 0 | L41: Філія1 | M41: =SUMIFS(План!$F:$F,План!$B:$B,Word!$B41,План!$D:$D,Word!$D41,План!$E:$E,Word!$E41) -> 0 | N41: =SUMIFS(Факт!$F:$F,Факт!$B:$B,Word!$B41,Факт!$D:$D,Word!$D41,Факт!$E:$E,Word!$E41) -> 0 | O41: 0 | P41: =SUMIFS('За добу'!$F:$F,'За добу'!$B:$B,Word!$B41,'За добу'!$D:$D,Word!$D41,'За добу'!$E:$E,Word!$E41) -> 0 | Q41: 0 | R41: Філія2 | S41: =SUMIFS(План!$G:$G,План!$B:$B,Word!$B41,План!$D:$D,Word!$D41,План!$E:$E,Word!$E41) -> 0 | T41: =SUMIFS(Факт!$G:$G,Факт!$B:$B,Word!$B41,Факт!$D:$D,Word!$D41,Факт!$E:$E,Word!$E41) -> 0 | U41: 0 | V41: =SUMIFS('За добу'!$G:$G,'За добу'!$B:$B,Word!$B41,'За добу'!$D:$D,Word!$D41,'За добу'!$E:$E,Word!$E41) -> 0 | W41: 0 | X41: Філія3 | Y41: =SUMIFS(План!$H:$H,План!$B:$B,Word!$B41,План!$D:$D,Word!$D41,План!$E:$E,Word!$E41) -> 0 | Z41: =SUMIFS(Факт!$H:$H,Факт!$B:$B,Word!$B41,Факт!$D:$D,Word!$D41,Факт!$E:$E,Word!$E41) -> 0 | AA41: 0 | AB41: =SUMIFS('За добу'!$H:$H,'За добу'!$B:$B,Word!$B41,'За добу'!$D:$D,Word!$D41,'За добу'!$E:$E,Word!$E41) -> 0 | AC41: 0 | AD41: Філія4 | AE41: =SUMIFS(План!$I:$I,План!$B:$B,Word!$B41,План!$D:$D,Word!$D41,План!$E:$E,Word!$E41) -> 0 | AF41: =SUMIFS(Факт!$I:$I,Факт!$B:$B,Word!$B41,Факт!$D:$D,Word!$D41,Факт!$E:$E,Word!$E41) -> 0 | AG41: 0 | AH41: =SUMIFS('За добу'!$I:$I,'За добу'!$B:$B,Word!$B41,'За добу'!$D:$D,Word!$D41,'За добу'!$E:$E,Word!$E41) -> 0 | AI41: 0 | AJ41: Філія5 | AK41: =SUMIFS(План!$J:$J,План!$B:$B,Word!$B41,План!$D:$D,Word!$D41,План!$E:$E,Word!$E41) -> 0 | AL41: =SUMIFS(Факт!$J:$J,Факт!$B:$B,Word!$B41,Факт!$D:$D,Word!$D41,Факт!$E:$E,Word!$E41) -> 0 | AM41: 0 | AN41: =SUMIFS('За добу'!$J:$J,'За добу'!$B:$B,Word!$B41,'За добу'!$D:$D,Word!$D41,'За добу'!$E:$E,Word!$E41) -> 0 | AO41: 0
B42: ='За добу'!$B42 -> 0 | D42: ='За добу'!$D42 -> 0 | E42: ='За добу'!$E42 -> 0 | F42: ФОРМУЛА | G42: 0 | H42: 0 | I42: 0 | J42: 0 | K42: 0 | L42: Філія1 | M42: =SUMIFS(План!$F:$F,План!$B:$B,Word!$B42,План!$D:$D,Word!$D42,План!$E:$E,Word!$E42) -> 0 | N42: =SUMIFS(Факт!$F:$F,Факт!$B:$B,Word!$B42,Факт!$D:$D,Word!$D42,Факт!$E:$E,Word!$E42) -> 0 | O42: 0 | P42: =SUMIFS('За добу'!$F:$F,'За добу'!$B:$B,Word!$B42,'За добу'!$D:$D,Word!$D42,'За добу'!$E:$E,Word!$E42) -> 0 | Q42: 0 | R42: Філія2 | S42: =SUMIFS(План!$G:$G,План!$B:$B,Word!$B42,План!$D:$D,Word!$D42,План!$E:$E,Word!$E42) -> 0 | T42: =SUMIFS(Факт!$G:$G,Факт!$B:$B,Word!$B42,Факт!$D:$D,Word!$D42,Факт!$E:$E,Word!$E42) -> 0 | U42: 0 | V42: =SUMIFS('За добу'!$G:$G,'За добу'!$B:$B,Word!$B42,'За добу'!$D:$D,Word!$D42,'За добу'!$E:$E,Word!$E42) -> 0 | W42: 0 | X42: Філія3 | Y42: =SUMIFS(План!$H:$H,План!$B:$B,Word!$B42,План!$D:$D,Word!$D42,План!$E:$E,Word!$E42) -> 0 | Z42: =SUMIFS(Факт!$H:$H,Факт!$B:$B,Word!$B42,Факт!$D:$D,Word!$D42,Факт!$E:$E,Word!$E42) -> 0 | AA42: 0 | AB42: =SUMIFS('За добу'!$H:$H,'За добу'!$B:$B,Word!$B42,'За добу'!$D:$D,Word!$D42,'За добу'!$E:$E,Word!$E42) -> 0 | AC42: 0 | AD42: Філія4 | AE42: =SUMIFS(План!$I:$I,План!$B:$B,Word!$B42,План!$D:$D,Word!$D42,План!$E:$E,Word!$E42) -> 0 | AF42: =SUMIFS(Факт!$I:$I,Факт!$B:$B,Word!$B42,Факт!$D:$D,Word!$D42,Факт!$E:$E,Word!$E42) -> 0 | AG42: 0 | AH42: =SUMIFS('За добу'!$I:$I,'За добу'!$B:$B,Word!$B42,'За добу'!$D:$D,Word!$D42,'За добу'!$E:$E,Word!$E42) -> 0 | AI42: 0 | AJ42: Філія5 | AK42: =SUMIFS(План!$J:$J,План!$B:$B,Word!$B42,План!$D:$D,Word!$D42,План!$E:$E,Word!$E42) -> 0 | AL42: =SUMIFS(Факт!$J:$J,Факт!$B:$B,Word!$B42,Факт!$D:$D,Word!$D42,Факт!$E:$E,Word!$E42) -> 0 | AM42: 0 | AN42: =SUMIFS('За добу'!$J:$J,'За добу'!$B:$B,Word!$B42,'За добу'!$D:$D,Word!$D42,'За добу'!$E:$E,Word!$E42) -> 0 | AO42: 0
B43: ='За добу'!$B43 -> 0 | D43: ='За добу'!$D43 -> 0 | E43: ='За добу'!$E43 -> 0 | F43: ФОРМУЛА | G43: 0 | H43: 0 | I43: 0 | J43: 0 | K43: 0 | L43: Філія1 | M43: =SUMIFS(План!$F:$F,План!$B:$B,Word!$B43,План!$D:$D,Word!$D43,План!$E:$E,Word!$E43) -> 0 | N43: =SUMIFS(Факт!$F:$F,Факт!$B:$B,Word!$B43,Факт!$D:$D,Word!$D43,Факт!$E:$E,Word!$E43) -> 0 | O43: 0 | P43: =SUMIFS('За добу'!$F:$F,'За добу'!$B:$B,Word!$B43,'За добу'!$D:$D,Word!$D43,'За добу'!$E:$E,Word!$E43) -> 0 | Q43: 0 | R43: Філія2 | S43: =SUMIFS(План!$G:$G,План!$B:$B,Word!$B43,План!$D:$D,Word!$D43,План!$E:$E,Word!$E43) -> 0 | T43: =SUMIFS(Факт!$G:$G,Факт!$B:$B,Word!$B43,Факт!$D:$D,Word!$D43,Факт!$E:$E,Word!$E43) -> 0 | U43: 0 | V43: =SUMIFS('За добу'!$G:$G,'За добу'!$B:$B,Word!$B43,'За добу'!$D:$D,Word!$D43,'За добу'!$E:$E,Word!$E43) -> 0 | W43: 0 | X43: Філія3 | Y43: =SUMIFS(План!$H:$H,План!$B:$B,Word!$B43,План!$D:$D,Word!$D43,План!$E:$E,Word!$E43) -> 0 | Z43: =SUMIFS(Факт!$H:$H,Факт!$B:$B,Word!$B43,Факт!$D:$D,Word!$D43,Факт!$E:$E,Word!$E43) -> 0 | AA43: 0 | AB43: =SUMIFS('За добу'!$H:$H,'За добу'!$B:$B,Word!$B43,'За добу'!$D:$D,Word!$D43,'За добу'!$E:$E,Word!$E43) -> 0 | AC43: 0 | AD43: Філія4 | AE43: =SUMIFS(План!$I:$I,План!$B:$B,Word!$B43,План!$D:$D,Word!$D43,План!$E:$E,Word!$E43) -> 0 | AF43: =SUMIFS(Факт!$I:$I,Факт!$B:$B,Word!$B43,Факт!$D:$D,Word!$D43,Факт!$E:$E,Word!$E43) -> 0 | AG43: 0 | AH43: =SUMIFS('За добу'!$I:$I,'За добу'!$B:$B,Word!$B43,'За добу'!$D:$D,Word!$D43,'За добу'!$E:$E,Word!$E43) -> 0 | AI43: 0 | AJ43: Філія5 | AK43: =SUMIFS(План!$J:$J,План!$B:$B,Word!$B43,План!$D:$D,Word!$D43,План!$E:$E,Word!$E43) -> 0 | AL43: =SUMIFS(Факт!$J:$J,Факт!$B:$B,Word!$B43,Факт!$D:$D,Word!$D43,Факт!$E:$E,Word!$E43) -> 0 | AM43: 0 | AN43: =SUMIFS('За добу'!$J:$J,'За добу'!$B:$B,Word!$B43,'За добу'!$D:$D,Word!$D43,'За добу'!$E:$E,Word!$E43) -> 0 | AO43: 0
B44: ='За добу'!$B44 -> 0 | D44: ='За добу'!$D44 -> 0 | E44: ='За добу'!$E44 -> 0 | F44: ФОРМУЛА | G44: 0 | H44: 0 | I44: 0 | J44: 0 | K44: 0 | L44: Філія1 | M44: =SUMIFS(План!$F:$F,План!$B:$B,Word!$B44,План!$D:$D,Word!$D44,План!$E:$E,Word!$E44) -> 0 | N44: =SUMIFS(Факт!$F:$F,Факт!$B:$B,Word!$B44,Факт!$D:$D,Word!$D44,Факт!$E:$E,Word!$E44) -> 0 | O44: 0 | P44: =SUMIFS('За добу'!$F:$F,'За добу'!$B:$B,Word!$B44,'За добу'!$D:$D,Word!$D44,'За добу'!$E:$E,Word!$E44) -> 0 | Q44: 0 | R44: Філія2 | S44: =SUMIFS(План!$G:$G,План!$B:$B,Word!$B44,План!$D:$D,Word!$D44,План!$E:$E,Word!$E44) -> 0 | T44: =SUMIFS(Факт!$G:$G,Факт!$B:$B,Word!$B44,Факт!$D:$D,Word!$D44,Факт!$E:$E,Word!$E44) -> 0 | U44: 0 | V44: =SUMIFS('За добу'!$G:$G,'За добу'!$B:$B,Word!$B44,'За добу'!$D:$D,Word!$D44,'За добу'!$E:$E,Word!$E44) -> 0 | W44: 0 | X44: Філія3 | Y44: =SUMIFS(План!$H:$H,План!$B:$B,Word!$B44,План!$D:$D,Word!$D44,План!$E:$E,Word!$E44) -> 0 | Z44: =SUMIFS(Факт!$H:$H,Факт!$B:$B,Word!$B44,Факт!$D:$D,Word!$D44,Факт!$E:$E,Word!$E44) -> 0 | AA44: 0 | AB44: =SUMIFS('За добу'!$H:$H,'За добу'!$B:$B,Word!$B44,'За добу'!$D:$D,Word!$D44,'За добу'!$E:$E,Word!$E44) -> 0 | AC44: 0 | AD44: Філія4 | AE44: =SUMIFS(План!$I:$I,План!$B:$B,Word!$B44,План!$D:$D,Word!$D44,План!$E:$E,Word!$E44) -> 0 | AF44: =SUMIFS(Факт!$I:$I,Факт!$B:$B,Word!$B44,Факт!$D:$D,Word!$D44,Факт!$E:$E,Word!$E44) -> 0 | AG44: 0 | AH44: =SUMIFS('За добу'!$I:$I,'За добу'!$B:$B,Word!$B44,'За добу'!$D:$D,Word!$D44,'За добу'!$E:$E,Word!$E44) -> 0 | AI44: 0 | AJ44: Філія5 | AK44: =SUMIFS(План!$J:$J,План!$B:$B,Word!$B44,План!$D:$D,Word!$D44,План!$E:$E,Word!$E44) -> 0 | AL44: =SUMIFS(Факт!$J:$J,Факт!$B:$B,Word!$B44,Факт!$D:$D,Word!$D44,Факт!$E:$E,Word!$E44) -> 0 | AM44: 0 | AN44: =SUMIFS('За добу'!$J:$J,'За добу'!$B:$B,Word!$B44,'За добу'!$D:$D,Word!$D44,'За добу'!$E:$E,Word!$E44) -> 0 | AO44: 0
B45: ='За добу'!$B45 -> 0 | D45: ='За добу'!$D45 -> 0 | E45: ='За добу'!$E45 -> 0 | F45: ФОРМУЛА | G45: 0 | H45: 0 | I45: 0 | J45: 0 | K45: 0 | L45: Філія1 | M45: =SUMIFS(План!$F:$F,План!$B:$B,Word!$B45,План!$D:$D,Word!$D45,План!$E:$E,Word!$E45) -> 0 | N45: =SUMIFS(Факт!$F:$F,Факт!$B:$B,Word!$B45,Факт!$D:$D,Word!$D45,Факт!$E:$E,Word!$E45) -> 0 | O45: 0 | P45: =SUMIFS('За добу'!$F:$F,'За добу'!$B:$B,Word!$B45,'За добу'!$D:$D,Word!$D45,'За добу'!$E:$E,Word!$E45) -> 0 | Q45: 0 | R45: Філія2 | S45: =SUMIFS(План!$G:$G,План!$B:$B,Word!$B45,План!$D:$D,Word!$D45,План!$E:$E,Word!$E45) -> 0 | T45: =SUMIFS(Факт!$G:$G,Факт!$B:$B,Word!$B45,Факт!$D:$D,Word!$D45,Факт!$E:$E,Word!$E45) -> 0 | U45: 0 | V45: =SUMIFS('За добу'!$G:$G,'За добу'!$B:$B,Word!$B45,'За добу'!$D:$D,Word!$D45,'За добу'!$E:$E,Word!$E45) -> 0 | W45: 0 | X45: Філія3 | Y45: =SUMIFS(План!$H:$H,План!$B:$B,Word!$B45,План!$D:$D,Word!$D45,План!$E:$E,Word!$E45) -> 0 | Z45: =SUMIFS(Факт!$H:$H,Факт!$B:$B,Word!$B45,Факт!$D:$D,Word!$D45,Факт!$E:$E,Word!$E45) -> 0 | AA45: 0 | AB45: =SUMIFS('За добу'!$H:$H,'За добу'!$B:$B,Word!$B45,'За добу'!$D:$D,Word!$D45,'За добу'!$E:$E,Word!$E45) -> 0 | AC45: 0 | AD45: Філія4 | AE45: =SUMIFS(План!$I:$I,План!$B:$B,Word!$B45,План!$D:$D,Word!$D45,План!$E:$E,Word!$E45) -> 0 | AF45: =SUMIFS(Факт!$I:$I,Факт!$B:$B,Word!$B45,Факт!$D:$D,Word!$D45,Факт!$E:$E,Word!$E45) -> 0 | AG45: 0 | AH45: =SUMIFS('За добу'!$I:$I,'За добу'!$B:$B,Word!$B45,'За добу'!$D:$D,Word!$D45,'За добу'!$E:$E,Word!$E45) -> 0 | AI45: 0 | AJ45: Філія5 | AK45: =SUMIFS(План!$J:$J,План!$B:$B,Word!$B45,План!$D:$D,Word!$D45,План!$E:$E,Word!$E45) -> 0 | AL45: =SUMIFS(Факт!$J:$J,Факт!$B:$B,Word!$B45,Факт!$D:$D,Word!$D45,Факт!$E:$E,Word!$E45) -> 0 | AM45: 0 | AN45: =SUMIFS('За добу'!$J:$J,'За добу'!$B:$B,Word!$B45,'За добу'!$D:$D,Word!$D45,'За добу'!$E:$E,Word!$E45) -> 0 | AO45: 0
B46: ='За добу'!$B46 -> 0 | D46: ='За добу'!$D46 -> 0 | E46: ='За добу'!$E46 -> 0 | F46: ФОРМУЛА | G46: 0 | H46: 0 | I46: 0 | J46: 0 | K46: 0 | L46: Філія1 | M46: =SUMIFS(План!$F:$F,План!$B:$B,Word!$B46,План!$D:$D,Word!$D46,План!$E:$E,Word!$E46) -> 0 | N46: =SUMIFS(Факт!$F:$F,Факт!$B:$B,Word!$B46,Факт!$D:$D,Word!$D46,Факт!$E:$E,Word!$E46) -> 0 | O46: 0 | P46: =SUMIFS('За добу'!$F:$F,'За добу'!$B:$B,Word!$B46,'За добу'!$D:$D,Word!$D46,'За добу'!$E:$E,Word!$E46) -> 0 | Q46: 0 | R46: Філія2 | S46: =SUMIFS(План!$G:$G,План!$B:$B,Word!$B46,План!$D:$D,Word!$D46,План!$E:$E,Word!$E46) -> 0 | T46: =SUMIFS(Факт!$G:$G,Факт!$B:$B,Word!$B46,Факт!$D:$D,Word!$D46,Факт!$E:$E,Word!$E46) -> 0 | U46: 0 | V46: =SUMIFS('За добу'!$G:$G,'За добу'!$B:$B,Word!$B46,'За добу'!$D:$D,Word!$D46,'За добу'!$E:$E,Word!$E46) -> 0 | W46: 0 | X46: Філія3 | Y46: =SUMIFS(План!$H:$H,План!$B:$B,Word!$B46,План!$D:$D,Word!$D46,План!$E:$E,Word!$E46) -> 0 | Z46: =SUMIFS(Факт!$H:$H,Факт!$B:$B,Word!$B46,Факт!$D:$D,Word!$D46,Факт!$E:$E,Word!$E46) -> 0 | AA46: 0 | AB46: =SUMIFS('За добу'!$H:$H,'За добу'!$B:$B,Word!$B46,'За добу'!$D:$D,Word!$D46,'За добу'!$E:$E,Word!$E46) -> 0 | AC46: 0 | AD46: Філія4 | AE46: =SUMIFS(План!$I:$I,План!$B:$B,Word!$B46,План!$D:$D,Word!$D46,План!$E:$E,Word!$E46) -> 0 | AF46: =SUMIFS(Факт!$I:$I,Факт!$B:$B,Word!$B46,Факт!$D:$D,Word!$D46,Факт!$E:$E,Word!$E46) -> 0 | AG46: 0 | AH46: =SUMIFS('За добу'!$I:$I,'За добу'!$B:$B,Word!$B46,'За добу'!$D:$D,Word!$D46,'За добу'!$E:$E,Word!$E46) -> 0 | AI46: 0 | AJ46: Філія5 | AK46: =SUMIFS(План!$J:$J,План!$B:$B,Word!$B46,План!$D:$D,Word!$D46,План!$E:$E,Word!$E46) -> 0 | AL46: =SUMIFS(Факт!$J:$J,Факт!$B:$B,Word!$B46,Факт!$D:$D,Word!$D46,Факт!$E:$E,Word!$E46) -> 0 | AM46: 0 | AN46: =SUMIFS('За добу'!$J:$J,'За добу'!$B:$B,Word!$B46,'За добу'!$D:$D,Word!$D46,'За добу'!$E:$E,Word!$E46) -> 0 | AO46: 0
B47: ='За добу'!$B47 -> 0 | D47: ='За добу'!$D47 -> 0 | E47: ='За добу'!$E47 -> 0 | F47: ФОРМУЛА | G47: 0 | H47: 0 | I47: 0 | J47: 0 | K47: 0 | L47: Філія1 | M47: =SUMIFS(План!$F:$F,План!$B:$B,Word!$B47,План!$D:$D,Word!$D47,План!$E:$E,Word!$E47) -> 0 | N47: =SUMIFS(Факт!$F:$F,Факт!$B:$B,Word!$B47,Факт!$D:$D,Word!$D47,Факт!$E:$E,Word!$E47) -> 0 | O47: 0 | P47: =SUMIFS('За добу'!$F:$F,'За добу'!$B:$B,Word!$B47,'За добу'!$D:$D,Word!$D47,'За добу'!$E:$E,Word!$E47) -> 0 | Q47: 0 | R47: Філія2 | S47: =SUMIFS(План!$G:$G,План!$B:$B,Word!$B47,План!$D:$D,Word!$D47,План!$E:$E,Word!$E47) -> 0 | T47: =SUMIFS(Факт!$G:$G,Факт!$B:$B,Word!$B47,Факт!$D:$D,Word!$D47,Факт!$E:$E,Word!$E47) -> 0 | U47: 0 | V47: =SUMIFS('За добу'!$G:$G,'За добу'!$B:$B,Word!$B47,'За добу'!$D:$D,Word!$D47,'За добу'!$E:$E,Word!$E47) -> 0 | W47: 0 | X47: Філія3 | Y47: =SUMIFS(План!$H:$H,План!$B:$B,Word!$B47,План!$D:$D,Word!$D47,План!$E:$E,Word!$E47) -> 0 | Z47: =SUMIFS(Факт!$H:$H,Факт!$B:$B,Word!$B47,Факт!$D:$D,Word!$D47,Факт!$E:$E,Word!$E47) -> 0 | AA47: 0 | AB47: =SUMIFS('За добу'!$H:$H,'За добу'!$B:$B,Word!$B47,'За добу'!$D:$D,Word!$D47,'За добу'!$E:$E,Word!$E47) -> 0 | AC47: 0 | AD47: Філія4 | AE47: =SUMIFS(План!$I:$I,План!$B:$B,Word!$B47,План!$D:$D,Word!$D47,План!$E:$E,Word!$E47) -> 0 | AF47: =SUMIFS(Факт!$I:$I,Факт!$B:$B,Word!$B47,Факт!$D:$D,Word!$D47,Факт!$E:$E,Word!$E47) -> 0 | AG47: 0 | AH47: =SUMIFS('За добу'!$I:$I,'За добу'!$B:$B,Word!$B47,'За добу'!$D:$D,Word!$D47,'За добу'!$E:$E,Word!$E47) -> 0 | AI47: 0 | AJ47: Філія5 | AK47: =SUMIFS(План!$J:$J,План!$B:$B,Word!$B47,План!$D:$D,Word!$D47,План!$E:$E,Word!$E47) -> 0 | AL47: =SUMIFS(Факт!$J:$J,Факт!$B:$B,Word!$B47,Факт!$D:$D,Word!$D47,Факт!$E:$E,Word!$E47) -> 0 | AM47: 0 | AN47: =SUMIFS('За добу'!$J:$J,'За добу'!$B:$B,Word!$B47,'За добу'!$D:$D,Word!$D47,'За добу'!$E:$E,Word!$E47) -> 0 | AO47: 0
B48: ='За добу'!$B48 -> 0 | D48: ='За добу'!$D48 -> 0 | E48: ='За добу'!$E48 -> 0 | F48: ФОРМУЛА | G48: 0 | H48: 0 | I48: 0 | J48: 0 | K48: 0 | L48: Філія1 | M48: =SUMIFS(План!$F:$F,План!$B:$B,Word!$B48,План!$D:$D,Word!$D48,План!$E:$E,Word!$E48) -> 0 | N48: =SUMIFS(Факт!$F:$F,Факт!$B:$B,Word!$B48,Факт!$D:$D,Word!$D48,Факт!$E:$E,Word!$E48) -> 0 | O48: 0 | P48: =SUMIFS('За добу'!$F:$F,'За добу'!$B:$B,Word!$B48,'За добу'!$D:$D,Word!$D48,'За добу'!$E:$E,Word!$E48) -> 0 | Q48: 0 | R48: Філія2 | S48: =SUMIFS(План!$G:$G,План!$B:$B,Word!$B48,План!$D:$D,Word!$D48,План!$E:$E,Word!$E48) -> 0 | T48: =SUMIFS(Факт!$G:$G,Факт!$B:$B,Word!$B48,Факт!$D:$D,Word!$D48,Факт!$E:$E,Word!$E48) -> 0 | U48: 0 | V48: =SUMIFS('За добу'!$G:$G,'За добу'!$B:$B,Word!$B48,'За добу'!$D:$D,Word!$D48,'За добу'!$E:$E,Word!$E48) -> 0 | W48: 0 | X48: Філія3 | Y48: =SUMIFS(План!$H:$H,План!$B:$B,Word!$B48,План!$D:$D,Word!$D48,План!$E:$E,Word!$E48) -> 0 | Z48: =SUMIFS(Факт!$H:$H,Факт!$B:$B,Word!$B48,Факт!$D:$D,Word!$D48,Факт!$E:$E,Word!$E48) -> 0 | AA48: 0 | AB48: =SUMIFS('За добу'!$H:$H,'За добу'!$B:$B,Word!$B48,'За добу'!$D:$D,Word!$D48,'За добу'!$E:$E,Word!$E48) -> 0 | AC48: 0 | AD48: Філія4 | AE48: =SUMIFS(План!$I:$I,План!$B:$B,Word!$B48,План!$D:$D,Word!$D48,План!$E:$E,Word!$E48) -> 0 | AF48: =SUMIFS(Факт!$I:$I,Факт!$B:$B,Word!$B48,Факт!$D:$D,Word!$D48,Факт!$E:$E,Word!$E48) -> 0 | AG48: 0 | AH48: =SUMIFS('За добу'!$I:$I,'За добу'!$B:$B,Word!$B48,'За добу'!$D:$D,Word!$D48,'За добу'!$E:$E,Word!$E48) -> 0 | AI48: 0 | AJ48: Філія5 | AK48: =SUMIFS(План!$J:$J,План!$B:$B,Word!$B48,План!$D:$D,Word!$D48,План!$E:$E,Word!$E48) -> 0 | AL48: =SUMIFS(Факт!$J:$J,Факт!$B:$B,Word!$B48,Факт!$D:$D,Word!$D48,Факт!$E:$E,Word!$E48) -> 0 | AM48: 0 | AN48: =SUMIFS('За добу'!$J:$J,'За добу'!$B:$B,Word!$B48,'За добу'!$D:$D,Word!$D48,'За добу'!$E:$E,Word!$E48) -> 0 | AO48: 0
B49: ='За добу'!$B49 -> 0 | D49: ='За добу'!$D49 -> 0 | E49: ='За добу'!$E49 -> 0 | F49: ФОРМУЛА | G49: 0 | H49: 0 | I49: 0 | J49: 0 | K49: 0 | L49: Філія1 | M49: =SUMIFS(План!$F:$F,План!$B:$B,Word!$B49,План!$D:$D,Word!$D49,План!$E:$E,Word!$E49) -> 0 | N49: =SUMIFS(Факт!$F:$F,Факт!$B:$B,Word!$B49,Факт!$D:$D,Word!$D49,Факт!$E:$E,Word!$E49) -> 0 | O49: 0 | P49: =SUMIFS('За добу'!$F:$F,'За добу'!$B:$B,Word!$B49,'За добу'!$D:$D,Word!$D49,'За добу'!$E:$E,Word!$E49) -> 0 | Q49: 0 | R49: Філія2 | S49: =SUMIFS(План!$G:$G,План!$B:$B,Word!$B49,План!$D:$D,Word!$D49,План!$E:$E,Word!$E49) -> 0 | T49: =SUMIFS(Факт!$G:$G,Факт!$B:$B,Word!$B49,Факт!$D:$D,Word!$D49,Факт!$E:$E,Word!$E49) -> 0 | U49: 0 | V49: =SUMIFS('За добу'!$G:$G,'За добу'!$B:$B,Word!$B49,'За добу'!$D:$D,Word!$D49,'За добу'!$E:$E,Word!$E49) -> 0 | W49: 0 | X49: Філія3 | Y49: =SUMIFS(План!$H:$H,План!$B:$B,Word!$B49,План!$D:$D,Word!$D49,План!$E:$E,Word!$E49) -> 0 | Z49: =SUMIFS(Факт!$H:$H,Факт!$B:$B,Word!$B49,Факт!$D:$D,Word!$D49,Факт!$E:$E,Word!$E49) -> 0 | AA49: 0 | AB49: =SUMIFS('За добу'!$H:$H,'За добу'!$B:$B,Word!$B49,'За добу'!$D:$D,Word!$D49,'За добу'!$E:$E,Word!$E49) -> 0 | AC49: 0 | AD49: Філія4 | AE49: =SUMIFS(План!$I:$I,План!$B:$B,Word!$B49,План!$D:$D,Word!$D49,План!$E:$E,Word!$E49) -> 0 | AF49: =SUMIFS(Факт!$I:$I,Факт!$B:$B,Word!$B49,Факт!$D:$D,Word!$D49,Факт!$E:$E,Word!$E49) -> 0 | AG49: 0 | AH49: =SUMIFS('За добу'!$I:$I,'За добу'!$B:$B,Word!$B49,'За добу'!$D:$D,Word!$D49,'За добу'!$E:$E,Word!$E49) -> 0 | AI49: 0 | AJ49: Філія5 | AK49: =SUMIFS(План!$J:$J,План!$B:$B,Word!$B49,План!$D:$D,Word!$D49,План!$E:$E,Word!$E49) -> 0 | AL49: =SUMIFS(Факт!$J:$J,Факт!$B:$B,Word!$B49,Факт!$D:$D,Word!$D49,Факт!$E:$E,Word!$E49) -> 0 | AM49: 0 | AN49: =SUMIFS('За добу'!$J:$J,'За добу'!$B:$B,Word!$B49,'За добу'!$D:$D,Word!$D49,'За добу'!$E:$E,Word!$E49) -> 0 | AO49: 0
B50: ='За добу'!$B50 -> 0 | D50: ='За добу'!$D50 -> 0 | E50: ='За добу'!$E50 -> 0 | F50: ФОРМУЛА | G50: 0 | H50: 0 | I50: 0 | J50: 0 | K50: 0 | L50: Філія1 | M50: =SUMIFS(План!$F:$F,План!$B:$B,Word!$B50,План!$D:$D,Word!$D50,План!$E:$E,Word!$E50) -> 0 | N50: =SUMIFS(Факт!$F:$F,Факт!$B:$B,Word!$B50,Факт!$D:$D,Word!$D50,Факт!$E:$E,Word!$E50) -> 0 | O50: 0 | P50: =SUMIFS('За добу'!$F:$F,'За добу'!$B:$B,Word!$B50,'За добу'!$D:$D,Word!$D50,'За добу'!$E:$E,Word!$E50) -> 0 | Q50: 0 | R50: Філія2 | S50: =SUMIFS(План!$G:$G,План!$B:$B,Word!$B50,План!$D:$D,Word!$D50,План!$E:$E,Word!$E50) -> 0 | T50: =SUMIFS(Факт!$G:$G,Факт!$B:$B,Word!$B50,Факт!$D:$D,Word!$D50,Факт!$E:$E,Word!$E50) -> 0 | U50: 0 | V50: =SUMIFS('За добу'!$G:$G,'За добу'!$B:$B,Word!$B50,'За добу'!$D:$D,Word!$D50,'За добу'!$E:$E,Word!$E50) -> 0 | W50: 0 | X50: Філія3 | Y50: =SUMIFS(План!$H:$H,План!$B:$B,Word!$B50,План!$D:$D,Word!$D50,План!$E:$E,Word!$E50) -> 0 | Z50: =SUMIFS(Факт!$H:$H,Факт!$B:$B,Word!$B50,Факт!$D:$D,Word!$D50,Факт!$E:$E,Word!$E50) -> 0 | AA50: 0 | AB50: =SUMIFS('За добу'!$H:$H,'За добу'!$B:$B,Word!$B50,'За добу'!$D:$D,Word!$D50,'За добу'!$E:$E,Word!$E50) -> 0 | AC50: 0 | AD50: Філія4 | AE50: =SUMIFS(План!$I:$I,План!$B:$B,Word!$B50,План!$D:$D,Word!$D50,План!$E:$E,Word!$E50) -> 0 | AF50: =SUMIFS(Факт!$I:$I,Факт!$B:$B,Word!$B50,Факт!$D:$D,Word!$D50,Факт!$E:$E,Word!$E50) -> 0 | AG50: 0 | AH50: =SUMIFS('За добу'!$I:$I,'За добу'!$B:$B,Word!$B50,'За добу'!$D:$D,Word!$D50,'За добу'!$E:$E,Word!$E50) -> 0 | AI50: 0 | AJ50: Філія5 | AK50: =SUMIFS(План!$J:$J,План!$B:$B,Word!$B50,План!$D:$D,Word!$D50,План!$E:$E,Word!$E50) -> 0 | AL50: =SUMIFS(Факт!$J:$J,Факт!$B:$B,Word!$B50,Факт!$D:$D,Word!$D50,Факт!$E:$E,Word!$E50) -> 0 | AM50: 0 | AN50: =SUMIFS('За добу'!$J:$J,'За добу'!$B:$B,Word!$B50,'За добу'!$D:$D,Word!$D50,'За добу'!$E:$E,Word!$E50) -> 0 | AO50: 0
B51: ='За добу'!$B51 -> 0 | D51: ='За добу'!$D51 -> 0 | E51: ='За добу'!$E51 -> 0 | F51: ФОРМУЛА | G51: 0 | H51: 0 | I51: 0 | J51: 0 | K51: 0 | L51: Філія1 | M51: =SUMIFS(План!$F:$F,План!$B:$B,Word!$B51,План!$D:$D,Word!$D51,План!$E:$E,Word!$E51) -> 0 | N51: =SUMIFS(Факт!$F:$F,Факт!$B:$B,Word!$B51,Факт!$D:$D,Word!$D51,Факт!$E:$E,Word!$E51) -> 0 | O51: 0 | P51: =SUMIFS('За добу'!$F:$F,'За добу'!$B:$B,Word!$B51,'За добу'!$D:$D,Word!$D51,'За добу'!$E:$E,Word!$E51) -> 0 | Q51: 0 | R51: Філія2 | S51: =SUMIFS(План!$G:$G,План!$B:$B,Word!$B51,План!$D:$D,Word!$D51,План!$E:$E,Word!$E51) -> 0 | T51: =SUMIFS(Факт!$G:$G,Факт!$B:$B,Word!$B51,Факт!$D:$D,Word!$D51,Факт!$E:$E,Word!$E51) -> 0 | U51: 0 | V51: =SUMIFS('За добу'!$G:$G,'За добу'!$B:$B,Word!$B51,'За добу'!$D:$D,Word!$D51,'За добу'!$E:$E,Word!$E51) -> 0 | W51: 0 | X51: Філія3 | Y51: =SUMIFS(План!$H:$H,План!$B:$B,Word!$B51,План!$D:$D,Word!$D51,План!$E:$E,Word!$E51) -> 0 | Z51: =SUMIFS(Факт!$H:$H,Факт!$B:$B,Word!$B51,Факт!$D:$D,Word!$D51,Факт!$E:$E,Word!$E51) -> 0 | AA51: 0 | AB51: =SUMIFS('За добу'!$H:$H,'За добу'!$B:$B,Word!$B51,'За добу'!$D:$D,Word!$D51,'За добу'!$E:$E,Word!$E51) -> 0 | AC51: 0 | AD51: Філія4 | AE51: =SUMIFS(План!$I:$I,План!$B:$B,Word!$B51,План!$D:$D,Word!$D51,План!$E:$E,Word!$E51) -> 0 | AF51: =SUMIFS(Факт!$I:$I,Факт!$B:$B,Word!$B51,Факт!$D:$D,Word!$D51,Факт!$E:$E,Word!$E51) -> 0 | AG51: 0 | AH51: =SUMIFS('За добу'!$I:$I,'За добу'!$B:$B,Word!$B51,'За добу'!$D:$D,Word!$D51,'За добу'!$E:$E,Word!$E51) -> 0 | AI51: 0 | AJ51: Філія5 | AK51: =SUMIFS(План!$J:$J,План!$B:$B,Word!$B51,План!$D:$D,Word!$D51,План!$E:$E,Word!$E51) -> 0 | AL51: =SUMIFS(Факт!$J:$J,Факт!$B:$B,Word!$B51,Факт!$D:$D,Word!$D51,Факт!$E:$E,Word!$E51) -> 0 | AM51: 0 | AN51: =SUMIFS('За добу'!$J:$J,'За добу'!$B:$B,Word!$B51,'За добу'!$D:$D,Word!$D51,'За добу'!$E:$E,Word!$E51) -> 0 | AO51: 0
B52: ='За добу'!$B52 -> 0 | D52: ='За добу'!$D52 -> 0 | E52: ='За добу'!$E52 -> 0 | F52: ФОРМУЛА | G52: 0 | H52: 0 | I52: 0 | J52: 0 | K52: 0 | L52: Філія1 | M52: =SUMIFS(План!$F:$F,План!$B:$B,Word!$B52,План!$D:$D,Word!$D52,План!$E:$E,Word!$E52) -> 0 | N52: =SUMIFS(Факт!$F:$F,Факт!$B:$B,Word!$B52,Факт!$D:$D,Word!$D52,Факт!$E:$E,Word!$E52) -> 0 | O52: 0 | P52: =SUMIFS('За добу'!$F:$F,'За добу'!$B:$B,Word!$B52,'За добу'!$D:$D,Word!$D52,'За добу'!$E:$E,Word!$E52) -> 0 | Q52: 0 | R52: Філія2 | S52: =SUMIFS(План!$G:$G,План!$B:$B,Word!$B52,План!$D:$D,Word!$D52,План!$E:$E,Word!$E52) -> 0 | T52: =SUMIFS(Факт!$G:$G,Факт!$B:$B,Word!$B52,Факт!$D:$D,Word!$D52,Факт!$E:$E,Word!$E52) -> 0 | U52: 0 | V52: =SUMIFS('За добу'!$G:$G,'За добу'!$B:$B,Word!$B52,'За добу'!$D:$D,Word!$D52,'За добу'!$E:$E,Word!$E52) -> 0 | W52: 0 | X52: Філія3 | Y52: =SUMIFS(План!$H:$H,План!$B:$B,Word!$B52,План!$D:$D,Word!$D52,План!$E:$E,Word!$E52) -> 0 | Z52: =SUMIFS(Факт!$H:$H,Факт!$B:$B,Word!$B52,Факт!$D:$D,Word!$D52,Факт!$E:$E,Word!$E52) -> 0 | AA52: 0 | AB52: =SUMIFS('За добу'!$H:$H,'За добу'!$B:$B,Word!$B52,'За добу'!$D:$D,Word!$D52,'За добу'!$E:$E,Word!$E52) -> 0 | AC52: 0 | AD52: Філія4 | AE52: =SUMIFS(План!$I:$I,План!$B:$B,Word!$B52,План!$D:$D,Word!$D52,План!$E:$E,Word!$E52) -> 0 | AF52: =SUMIFS(Факт!$I:$I,Факт!$B:$B,Word!$B52,Факт!$D:$D,Word!$D52,Факт!$E:$E,Word!$E52) -> 0 | AG52: 0 | AH52: =SUMIFS('За добу'!$I:$I,'За добу'!$B:$B,Word!$B52,'За добу'!$D:$D,Word!$D52,'За добу'!$E:$E,Word!$E52) -> 0 | AI52: 0 | AJ52: Філія5 | AK52: =SUMIFS(План!$J:$J,План!$B:$B,Word!$B52,План!$D:$D,Word!$D52,План!$E:$E,Word!$E52) -> 0 | AL52: =SUMIFS(Факт!$J:$J,Факт!$B:$B,Word!$B52,Факт!$D:$D,Word!$D52,Факт!$E:$E,Word!$E52) -> 0 | AM52: 0 | AN52: =SUMIFS('За добу'!$J:$J,'За добу'!$B:$B,Word!$B52,'За добу'!$D:$D,Word!$D52,'За добу'!$E:$E,Word!$E52) -> 0 | AO52: 0
B53: ='За добу'!$B53 -> 0 | D53: ='За добу'!$D53 -> 0 | E53: ='За добу'!$E53 -> 0 | F53: ФОРМУЛА | G53: 0 | H53: 0 | I53: 0 | J53: 0 | K53: 0 | L53: Філія1 | M53: =SUMIFS(План!$F:$F,План!$B:$B,Word!$B53,План!$D:$D,Word!$D53,План!$E:$E,Word!$E53) -> 0 | N53: =SUMIFS(Факт!$F:$F,Факт!$B:$B,Word!$B53,Факт!$D:$D,Word!$D53,Факт!$E:$E,Word!$E53) -> 0 | O53: 0 | P53: =SUMIFS('За добу'!$F:$F,'За добу'!$B:$B,Word!$B53,'За добу'!$D:$D,Word!$D53,'За добу'!$E:$E,Word!$E53) -> 0 | Q53: 0 | R53: Філія2 | S53: =SUMIFS(План!$G:$G,План!$B:$B,Word!$B53,План!$D:$D,Word!$D53,План!$E:$E,Word!$E53) -> 0 | T53: =SUMIFS(Факт!$G:$G,Факт!$B:$B,Word!$B53,Факт!$D:$D,Word!$D53,Факт!$E:$E,Word!$E53) -> 0 | U53: 0 | V53: =SUMIFS('За добу'!$G:$G,'За добу'!$B:$B,Word!$B53,'За добу'!$D:$D,Word!$D53,'За добу'!$E:$E,Word!$E53) -> 0 | W53: 0 | X53: Філія3 | Y53: =SUMIFS(План!$H:$H,План!$B:$B,Word!$B53,План!$D:$D,Word!$D53,План!$E:$E,Word!$E53) -> 0 | Z53: =SUMIFS(Факт!$H:$H,Факт!$B:$B,Word!$B53,Факт!$D:$D,Word!$D53,Факт!$E:$E,Word!$E53) -> 0 | AA53: 0 | AB53: =SUMIFS('За добу'!$H:$H,'За добу'!$B:$B,Word!$B53,'За добу'!$D:$D,Word!$D53,'За добу'!$E:$E,Word!$E53) -> 0 | AC53: 0 | AD53: Філія4 | AE53: =SUMIFS(План!$I:$I,План!$B:$B,Word!$B53,План!$D:$D,Word!$D53,План!$E:$E,Word!$E53) -> 0 | AF53: =SUMIFS(Факт!$I:$I,Факт!$B:$B,Word!$B53,Факт!$D:$D,Word!$D53,Факт!$E:$E,Word!$E53) -> 0 | AG53: 0 | AH53: =SUMIFS('За добу'!$I:$I,'За добу'!$B:$B,Word!$B53,'За добу'!$D:$D,Word!$D53,'За добу'!$E:$E,Word!$E53) -> 0 | AI53: 0 | AJ53: Філія5 | AK53: =SUMIFS(План!$J:$J,План!$B:$B,Word!$B53,План!$D:$D,Word!$D53,План!$E:$E,Word!$E53) -> 0 | AL53: =SUMIFS(Факт!$J:$J,Факт!$B:$B,Word!$B53,Факт!$D:$D,Word!$D53,Факт!$E:$E,Word!$E53) -> 0 | AM53: 0 | AN53: =SUMIFS('За добу'!$J:$J,'За добу'!$B:$B,Word!$B53,'За добу'!$D:$D,Word!$D53,'За добу'!$E:$E,Word!$E53) -> 0 | AO53: 0
B54: ='За добу'!$B54 -> 0 | D54: ='За добу'!$D54 -> 0 | E54: ='За добу'!$E54 -> 0 | F54: ФОРМУЛА | G54: 0 | H54: 0 | I54: 0 | J54: 0 | K54: 0 | L54: Філія1 | M54: =SUMIFS(План!$F:$F,План!$B:$B,Word!$B54,План!$D:$D,Word!$D54,План!$E:$E,Word!$E54) -> 0 | N54: =SUMIFS(Факт!$F:$F,Факт!$B:$B,Word!$B54,Факт!$D:$D,Word!$D54,Факт!$E:$E,Word!$E54) -> 0 | O54: 0 | P54: =SUMIFS('За добу'!$F:$F,'За добу'!$B:$B,Word!$B54,'За добу'!$D:$D,Word!$D54,'За добу'!$E:$E,Word!$E54) -> 0 | Q54: 0 | R54: Філія2 | S54: =SUMIFS(План!$G:$G,План!$B:$B,Word!$B54,План!$D:$D,Word!$D54,План!$E:$E,Word!$E54) -> 0 | T54: =SUMIFS(Факт!$G:$G,Факт!$B:$B,Word!$B54,Факт!$D:$D,Word!$D54,Факт!$E:$E,Word!$E54) -> 0 | U54: 0 | V54: =SUMIFS('За добу'!$G:$G,'За добу'!$B:$B,Word!$B54,'За добу'!$D:$D,Word!$D54,'За добу'!$E:$E,Word!$E54) -> 0 | W54: 0 | X54: Філія3 | Y54: =SUMIFS(План!$H:$H,План!$B:$B,Word!$B54,План!$D:$D,Word!$D54,План!$E:$E,Word!$E54) -> 0 | Z54: =SUMIFS(Факт!$H:$H,Факт!$B:$B,Word!$B54,Факт!$D:$D,Word!$D54,Факт!$E:$E,Word!$E54) -> 0 | AA54: 0 | AB54: =SUMIFS('За добу'!$H:$H,'За добу'!$B:$B,Word!$B54,'За добу'!$D:$D,Word!$D54,'За добу'!$E:$E,Word!$E54) -> 0 | AC54: 0 | AD54: Філія4 | AE54: =SUMIFS(План!$I:$I,План!$B:$B,Word!$B54,План!$D:$D,Word!$D54,План!$E:$E,Word!$E54) -> 0 | AF54: =SUMIFS(Факт!$I:$I,Факт!$B:$B,Word!$B54,Факт!$D:$D,Word!$D54,Факт!$E:$E,Word!$E54) -> 0 | AG54: 0 | AH54: =SUMIFS('За добу'!$I:$I,'За добу'!$B:$B,Word!$B54,'За добу'!$D:$D,Word!$D54,'За добу'!$E:$E,Word!$E54) -> 0 | AI54: 0 | AJ54: Філія5 | AK54: =SUMIFS(План!$J:$J,План!$B:$B,Word!$B54,План!$D:$D,Word!$D54,План!$E:$E,Word!$E54) -> 0 | AL54: =SUMIFS(Факт!$J:$J,Факт!$B:$B,Word!$B54,Факт!$D:$D,Word!$D54,Факт!$E:$E,Word!$E54) -> 0 | AM54: 0 | AN54: =SUMIFS('За добу'!$J:$J,'За добу'!$B:$B,Word!$B54,'За добу'!$D:$D,Word!$D54,'За добу'!$E:$E,Word!$E54) -> 0 | AO54: 0
B55: ='За добу'!$B55 -> 0 | D55: ='За добу'!$D55 -> 0 | E55: ='За добу'!$E55 -> 0 | F55: ФОРМУЛА | G55: 0 | H55: 0 | I55: 0 | J55: 0 | K55: 0 | L55: Філія1 | M55: =SUMIFS(План!$F:$F,План!$B:$B,Word!$B55,План!$D:$D,Word!$D55,План!$E:$E,Word!$E55) -> 0 | N55: =SUMIFS(Факт!$F:$F,Факт!$B:$B,Word!$B55,Факт!$D:$D,Word!$D55,Факт!$E:$E,Word!$E55) -> 0 | O55: 0 | P55: =SUMIFS('За добу'!$F:$F,'За добу'!$B:$B,Word!$B55,'За добу'!$D:$D,Word!$D55,'За добу'!$E:$E,Word!$E55) -> 0 | Q55: 0 | R55: Філія2 | S55: =SUMIFS(План!$G:$G,План!$B:$B,Word!$B55,План!$D:$D,Word!$D55,План!$E:$E,Word!$E55) -> 0 | T55: =SUMIFS(Факт!$G:$G,Факт!$B:$B,Word!$B55,Факт!$D:$D,Word!$D55,Факт!$E:$E,Word!$E55) -> 0 | U55: 0 | V55: =SUMIFS('За добу'!$G:$G,'За добу'!$B:$B,Word!$B55,'За добу'!$D:$D,Word!$D55,'За добу'!$E:$E,Word!$E55) -> 0 | W55: 0 | X55: Філія3 | Y55: =SUMIFS(План!$H:$H,План!$B:$B,Word!$B55,План!$D:$D,Word!$D55,План!$E:$E,Word!$E55) -> 0 | Z55: =SUMIFS(Факт!$H:$H,Факт!$B:$B,Word!$B55,Факт!$D:$D,Word!$D55,Факт!$E:$E,Word!$E55) -> 0 | AA55: 0 | AB55: =SUMIFS('За добу'!$H:$H,'За добу'!$B:$B,Word!$B55,'За добу'!$D:$D,Word!$D55,'За добу'!$E:$E,Word!$E55) -> 0 | AC55: 0 | AD55: Філія4 | AE55: =SUMIFS(План!$I:$I,План!$B:$B,Word!$B55,План!$D:$D,Word!$D55,План!$E:$E,Word!$E55) -> 0 | AF55: =SUMIFS(Факт!$I:$I,Факт!$B:$B,Word!$B55,Факт!$D:$D,Word!$D55,Факт!$E:$E,Word!$E55) -> 0 | AG55: 0 | AH55: =SUMIFS('За добу'!$I:$I,'За добу'!$B:$B,Word!$B55,'За добу'!$D:$D,Word!$D55,'За добу'!$E:$E,Word!$E55) -> 0 | AI55: 0 | AJ55: Філія5 | AK55: =SUMIFS(План!$J:$J,План!$B:$B,Word!$B55,План!$D:$D,Word!$D55,План!$E:$E,Word!$E55) -> 0 | AL55: =SUMIFS(Факт!$J:$J,Факт!$B:$B,Word!$B55,Факт!$D:$D,Word!$D55,Факт!$E:$E,Word!$E55) -> 0 | AM55: 0 | AN55: =SUMIFS('За добу'!$J:$J,'За добу'!$B:$B,Word!$B55,'За добу'!$D:$D,Word!$D55,'За добу'!$E:$E,Word!$E55) -> 0 | AO55: 0
B56: ='За добу'!$B56 -> 0 | D56: ='За добу'!$D56 -> 0 | E56: ='За добу'!$E56 -> 0 | F56: ФОРМУЛА | G56: 0 | H56: 0 | I56: 0 | J56: 0 | K56: 0 | L56: Філія1 | M56: =SUMIFS(План!$F:$F,План!$B:$B,Word!$B56,План!$D:$D,Word!$D56,План!$E:$E,Word!$E56) -> 0 | N56: =SUMIFS(Факт!$F:$F,Факт!$B:$B,Word!$B56,Факт!$D:$D,Word!$D56,Факт!$E:$E,Word!$E56) -> 0 | O56: 0 | P56: =SUMIFS('За добу'!$F:$F,'За добу'!$B:$B,Word!$B56,'За добу'!$D:$D,Word!$D56,'За добу'!$E:$E,Word!$E56) -> 0 | Q56: 0 | R56: Філія2 | S56: =SUMIFS(План!$G:$G,План!$B:$B,Word!$B56,План!$D:$D,Word!$D56,План!$E:$E,Word!$E56) -> 0 | T56: =SUMIFS(Факт!$G:$G,Факт!$B:$B,Word!$B56,Факт!$D:$D,Word!$D56,Факт!$E:$E,Word!$E56) -> 0 | U56: 0 | V56: =SUMIFS('За добу'!$G:$G,'За добу'!$B:$B,Word!$B56,'За добу'!$D:$D,Word!$D56,'За добу'!$E:$E,Word!$E56) -> 0 | W56: 0 | X56: Філія3 | Y56: =SUMIFS(План!$H:$H,План!$B:$B,Word!$B56,План!$D:$D,Word!$D56,План!$E:$E,Word!$E56) -> 0 | Z56: =SUMIFS(Факт!$H:$H,Факт!$B:$B,Word!$B56,Факт!$D:$D,Word!$D56,Факт!$E:$E,Word!$E56) -> 0 | AA56: 0 | AB56: =SUMIFS('За добу'!$H:$H,'За добу'!$B:$B,Word!$B56,'За добу'!$D:$D,Word!$D56,'За добу'!$E:$E,Word!$E56) -> 0 | AC56: 0 | AD56: Філія4 | AE56: =SUMIFS(План!$I:$I,План!$B:$B,Word!$B56,План!$D:$D,Word!$D56,План!$E:$E,Word!$E56) -> 0 | AF56: =SUMIFS(Факт!$I:$I,Факт!$B:$B,Word!$B56,Факт!$D:$D,Word!$D56,Факт!$E:$E,Word!$E56) -> 0 | AG56: 0 | AH56: =SUMIFS('За добу'!$I:$I,'За добу'!$B:$B,Word!$B56,'За добу'!$D:$D,Word!$D56,'За добу'!$E:$E,Word!$E56) -> 0 | AI56: 0 | AJ56: Філія5 | AK56: =SUMIFS(План!$J:$J,План!$B:$B,Word!$B56,План!$D:$D,Word!$D56,План!$E:$E,Word!$E56) -> 0 | AL56: =SUMIFS(Факт!$J:$J,Факт!$B:$B,Word!$B56,Факт!$D:$D,Word!$D56,Факт!$E:$E,Word!$E56) -> 0 | AM56: 0 | AN56: =SUMIFS('За добу'!$J:$J,'За добу'!$B:$B,Word!$B56,'За добу'!$D:$D,Word!$D56,'За добу'!$E:$E,Word!$E56) -> 0 | AO56: 0
B57: ='За добу'!$B57 -> 0 | D57: ='За добу'!$D57 -> 0 | E57: ='За добу'!$E57 -> 0 | F57: ФОРМУЛА | G57: 0 | H57: 0 | I57: 0 | J57: 0 | K57: 0 | L57: Філія1 | M57: =SUMIFS(План!$F:$F,План!$B:$B,Word!$B57,План!$D:$D,Word!$D57,План!$E:$E,Word!$E57) -> 0 | N57: =SUMIFS(Факт!$F:$F,Факт!$B:$B,Word!$B57,Факт!$D:$D,Word!$D57,Факт!$E:$E,Word!$E57) -> 0 | O57: 0 | P57: =SUMIFS('За добу'!$F:$F,'За добу'!$B:$B,Word!$B57,'За добу'!$D:$D,Word!$D57,'За добу'!$E:$E,Word!$E57) -> 0 | Q57: 0 | R57: Філія2 | S57: =SUMIFS(План!$G:$G,План!$B:$B,Word!$B57,План!$D:$D,Word!$D57,План!$E:$E,Word!$E57) -> 0 | T57: =SUMIFS(Факт!$G:$G,Факт!$B:$B,Word!$B57,Факт!$D:$D,Word!$D57,Факт!$E:$E,Word!$E57) -> 0 | U57: 0 | V57: =SUMIFS('За добу'!$G:$G,'За добу'!$B:$B,Word!$B57,'За добу'!$D:$D,Word!$D57,'За добу'!$E:$E,Word!$E57) -> 0 | W57: 0 | X57: Філія3 | Y57: =SUMIFS(План!$H:$H,План!$B:$B,Word!$B57,План!$D:$D,Word!$D57,План!$E:$E,Word!$E57) -> 0 | Z57: =SUMIFS(Факт!$H:$H,Факт!$B:$B,Word!$B57,Факт!$D:$D,Word!$D57,Факт!$E:$E,Word!$E57) -> 0 | AA57: 0 | AB57: =SUMIFS('За добу'!$H:$H,'За добу'!$B:$B,Word!$B57,'За добу'!$D:$D,Word!$D57,'За добу'!$E:$E,Word!$E57) -> 0 | AC57: 0 | AD57: Філія4 | AE57: =SUMIFS(План!$I:$I,План!$B:$B,Word!$B57,План!$D:$D,Word!$D57,План!$E:$E,Word!$E57) -> 0 | AF57: =SUMIFS(Факт!$I:$I,Факт!$B:$B,Word!$B57,Факт!$D:$D,Word!$D57,Факт!$E:$E,Word!$E57) -> 0 | AG57: 0 | AH57: =SUMIFS('За добу'!$I:$I,'За добу'!$B:$B,Word!$B57,'За добу'!$D:$D,Word!$D57,'За добу'!$E:$E,Word!$E57) -> 0 | AI57: 0 | AJ57: Філія5 | AK57: =SUMIFS(План!$J:$J,План!$B:$B,Word!$B57,План!$D:$D,Word!$D57,План!$E:$E,Word!$E57) -> 0 | AL57: =SUMIFS(Факт!$J:$J,Факт!$B:$B,Word!$B57,Факт!$D:$D,Word!$D57,Факт!$E:$E,Word!$E57) -> 0 | AM57: 0 | AN57: =SUMIFS('За добу'!$J:$J,'За добу'!$B:$B,Word!$B57,'За добу'!$D:$D,Word!$D57,'За добу'!$E:$E,Word!$E57) -> 0 | AO57: 0
B58: ='За добу'!$B58 -> 0 | D58: ='За добу'!$D58 -> 0 | E58: ='За добу'!$E58 -> 0 | F58: ФОРМУЛА | G58: 0 | H58: 0 | I58: 0 | J58: 0 | K58: 0 | L58: Філія1 | M58: =SUMIFS(План!$F:$F,План!$B:$B,Word!$B58,План!$D:$D,Word!$D58,План!$E:$E,Word!$E58) -> 0 | N58: =SUMIFS(Факт!$F:$F,Факт!$B:$B,Word!$B58,Факт!$D:$D,Word!$D58,Факт!$E:$E,Word!$E58) -> 0 | O58: 0 | P58: =SUMIFS('За добу'!$F:$F,'За добу'!$B:$B,Word!$B58,'За добу'!$D:$D,Word!$D58,'За добу'!$E:$E,Word!$E58) -> 0 | Q58: 0 | R58: Філія2 | S58: =SUMIFS(План!$G:$G,План!$B:$B,Word!$B58,План!$D:$D,Word!$D58,План!$E:$E,Word!$E58) -> 0 | T58: =SUMIFS(Факт!$G:$G,Факт!$B:$B,Word!$B58,Факт!$D:$D,Word!$D58,Факт!$E:$E,Word!$E58) -> 0 | U58: 0 | V58: =SUMIFS('За добу'!$G:$G,'За добу'!$B:$B,Word!$B58,'За добу'!$D:$D,Word!$D58,'За добу'!$E:$E,Word!$E58) -> 0 | W58: 0 | X58: Філія3 | Y58: =SUMIFS(План!$H:$H,План!$B:$B,Word!$B58,План!$D:$D,Word!$D58,План!$E:$E,Word!$E58) -> 0 | Z58: =SUMIFS(Факт!$H:$H,Факт!$B:$B,Word!$B58,Факт!$D:$D,Word!$D58,Факт!$E:$E,Word!$E58) -> 0 | AA58: 0 | AB58: =SUMIFS('За добу'!$H:$H,'За добу'!$B:$B,Word!$B58,'За добу'!$D:$D,Word!$D58,'За добу'!$E:$E,Word!$E58) -> 0 | AC58: 0 | AD58: Філія4 | AE58: =SUMIFS(План!$I:$I,План!$B:$B,Word!$B58,План!$D:$D,Word!$D58,План!$E:$E,Word!$E58) -> 0 | AF58: =SUMIFS(Факт!$I:$I,Факт!$B:$B,Word!$B58,Факт!$D:$D,Word!$D58,Факт!$E:$E,Word!$E58) -> 0 | AG58: 0 | AH58: =SUMIFS('За добу'!$I:$I,'За добу'!$B:$B,Word!$B58,'За добу'!$D:$D,Word!$D58,'За добу'!$E:$E,Word!$E58) -> 0 | AI58: 0 | AJ58: Філія5 | AK58: =SUMIFS(План!$J:$J,План!$B:$B,Word!$B58,План!$D:$D,Word!$D58,План!$E:$E,Word!$E58) -> 0 | AL58: =SUMIFS(Факт!$J:$J,Факт!$B:$B,Word!$B58,Факт!$D:$D,Word!$D58,Факт!$E:$E,Word!$E58) -> 0 | AM58: 0 | AN58: =SUMIFS('За добу'!$J:$J,'За добу'!$B:$B,Word!$B58,'За добу'!$D:$D,Word!$D58,'За добу'!$E:$E,Word!$E58) -> 0 | AO58: 0
B59: ='За добу'!$B59 -> 0 | D59: ='За добу'!$D59 -> 0 | E59: ='За добу'!$E59 -> 0 | F59: ФОРМУЛА | G59: 0 | H59: 0 | I59: 0 | J59: 0 | K59: 0 | L59: Філія1 | M59: =SUMIFS(План!$F:$F,План!$B:$B,Word!$B59,План!$D:$D,Word!$D59,План!$E:$E,Word!$E59) -> 0 | N59: =SUMIFS(Факт!$F:$F,Факт!$B:$B,Word!$B59,Факт!$D:$D,Word!$D59,Факт!$E:$E,Word!$E59) -> 0 | O59: 0 | P59: =SUMIFS('За добу'!$F:$F,'За добу'!$B:$B,Word!$B59,'За добу'!$D:$D,Word!$D59,'За добу'!$E:$E,Word!$E59) -> 0 | Q59: 0 | R59: Філія2 | S59: =SUMIFS(План!$G:$G,План!$B:$B,Word!$B59,План!$D:$D,Word!$D59,План!$E:$E,Word!$E59) -> 0 | T59: =SUMIFS(Факт!$G:$G,Факт!$B:$B,Word!$B59,Факт!$D:$D,Word!$D59,Факт!$E:$E,Word!$E59) -> 0 | U59: 0 | V59: =SUMIFS('За добу'!$G:$G,'За добу'!$B:$B,Word!$B59,'За добу'!$D:$D,Word!$D59,'За добу'!$E:$E,Word!$E59) -> 0 | W59: 0 | X59: Філія3 | Y59: =SUMIFS(План!$H:$H,План!$B:$B,Word!$B59,План!$D:$D,Word!$D59,План!$E:$E,Word!$E59) -> 0 | Z59: =SUMIFS(Факт!$H:$H,Факт!$B:$B,Word!$B59,Факт!$D:$D,Word!$D59,Факт!$E:$E,Word!$E59) -> 0 | AA59: 0 | AB59: =SUMIFS('За добу'!$H:$H,'За добу'!$B:$B,Word!$B59,'За добу'!$D:$D,Word!$D59,'За добу'!$E:$E,Word!$E59) -> 0 | AC59: 0 | AD59: Філія4 | AE59: =SUMIFS(План!$I:$I,План!$B:$B,Word!$B59,План!$D:$D,Word!$D59,План!$E:$E,Word!$E59) -> 0 | AF59: =SUMIFS(Факт!$I:$I,Факт!$B:$B,Word!$B59,Факт!$D:$D,Word!$D59,Факт!$E:$E,Word!$E59) -> 0 | AG59: 0 | AH59: =SUMIFS('За добу'!$I:$I,'За добу'!$B:$B,Word!$B59,'За добу'!$D:$D,Word!$D59,'За добу'!$E:$E,Word!$E59) -> 0 | AI59: 0 | AJ59: Філія5 | AK59: =SUMIFS(План!$J:$J,План!$B:$B,Word!$B59,План!$D:$D,Word!$D59,План!$E:$E,Word!$E59) -> 0 | AL59: =SUMIFS(Факт!$J:$J,Факт!$B:$B,Word!$B59,Факт!$D:$D,Word!$D59,Факт!$E:$E,Word!$E59) -> 0 | AM59: 0 | AN59: =SUMIFS('За добу'!$J:$J,'За добу'!$B:$B,Word!$B59,'За добу'!$D:$D,Word!$D59,'За добу'!$E:$E,Word!$E59) -> 0 | AO59: 0
B60: ='За добу'!$B60 -> 0 | D60: ='За добу'!$D60 -> 0 | E60: ='За добу'!$E60 -> 0 | F60: ФОРМУЛА | G60: 0 | H60: 0 | I60: 0 | J60: 0 | K60: 0 | L60: Філія1 | M60: =SUMIFS(План!$F:$F,План!$B:$B,Word!$B60,План!$D:$D,Word!$D60,План!$E:$E,Word!$E60) -> 0 | N60: =SUMIFS(Факт!$F:$F,Факт!$B:$B,Word!$B60,Факт!$D:$D,Word!$D60,Факт!$E:$E,Word!$E60) -> 0 | O60: 0 | P60: =SUMIFS('За добу'!$F:$F,'За добу'!$B:$B,Word!$B60,'За добу'!$D:$D,Word!$D60,'За добу'!$E:$E,Word!$E60) -> 0 | Q60: 0 | R60: Філія2 | S60: =SUMIFS(План!$G:$G,План!$B:$B,Word!$B60,План!$D:$D,Word!$D60,План!$E:$E,Word!$E60) -> 0 | T60: =SUMIFS(Факт!$G:$G,Факт!$B:$B,Word!$B60,Факт!$D:$D,Word!$D60,Факт!$E:$E,Word!$E60) -> 0 | U60: 0 | V60: =SUMIFS('За добу'!$G:$G,'За добу'!$B:$B,Word!$B60,'За добу'!$D:$D,Word!$D60,'За добу'!$E:$E,Word!$E60) -> 0 | W60: 0 | X60: Філія3 | Y60: =SUMIFS(План!$H:$H,План!$B:$B,Word!$B60,План!$D:$D,Word!$D60,План!$E:$E,Word!$E60) -> 0 | Z60: =SUMIFS(Факт!$H:$H,Факт!$B:$B,Word!$B60,Факт!$D:$D,Word!$D60,Факт!$E:$E,Word!$E60) -> 0 | AA60: 0 | AB60: =SUMIFS('За добу'!$H:$H,'За добу'!$B:$B,Word!$B60,'За добу'!$D:$D,Word!$D60,'За добу'!$E:$E,Word!$E60) -> 0 | AC60: 0 | AD60: Філія4 | AE60: =SUMIFS(План!$I:$I,План!$B:$B,Word!$B60,План!$D:$D,Word!$D60,План!$E:$E,Word!$E60) -> 0 | AF60: =SUMIFS(Факт!$I:$I,Факт!$B:$B,Word!$B60,Факт!$D:$D,Word!$D60,Факт!$E:$E,Word!$E60) -> 0 | AG60: 0 | AH60: =SUMIFS('За добу'!$I:$I,'За добу'!$B:$B,Word!$B60,'За добу'!$D:$D,Word!$D60,'За добу'!$E:$E,Word!$E60) -> 0 | AI60: 0 | AJ60: Філія5 | AK60: =SUMIFS(План!$J:$J,План!$B:$B,Word!$B60,План!$D:$D,Word!$D60,План!$E:$E,Word!$E60) -> 0 | AL60: =SUMIFS(Факт!$J:$J,Факт!$B:$B,Word!$B60,Факт!$D:$D,Word!$D60,Факт!$E:$E,Word!$E60) -> 0 | AM60: 0 | AN60: =SUMIFS('За добу'!$J:$J,'За добу'!$B:$B,Word!$B60,'За добу'!$D:$D,Word!$D60,'За добу'!$E:$E,Word!$E60) -> 0 | AO60: 0
B61: ='За добу'!$B61 -> 0 | D61: ='За добу'!$D61 -> 0 | E61: ='За добу'!$E61 -> 0 | F61: ФОРМУЛА | G61: 0 | H61: 0 | I61: 0 | J61: 0 | K61: 0 | L61: Філія1 | M61: =SUMIFS(План!$F:$F,План!$B:$B,Word!$B61,План!$D:$D,Word!$D61,План!$E:$E,Word!$E61) -> 0 | N61: =SUMIFS(Факт!$F:$F,Факт!$B:$B,Word!$B61,Факт!$D:$D,Word!$D61,Факт!$E:$E,Word!$E61) -> 0 | O61: 0 | P61: =SUMIFS('За добу'!$F:$F,'За добу'!$B:$B,Word!$B61,'За добу'!$D:$D,Word!$D61,'За добу'!$E:$E,Word!$E61) -> 0 | Q61: 0 | R61: Філія2 | S61: =SUMIFS(План!$G:$G,План!$B:$B,Word!$B61,План!$D:$D,Word!$D61,План!$E:$E,Word!$E61) -> 0 | T61: =SUMIFS(Факт!$G:$G,Факт!$B:$B,Word!$B61,Факт!$D:$D,Word!$D61,Факт!$E:$E,Word!$E61) -> 0 | U61: 0 | V61: =SUMIFS('За добу'!$G:$G,'За добу'!$B:$B,Word!$B61,'За добу'!$D:$D,Word!$D61,'За добу'!$E:$E,Word!$E61) -> 0 | W61: 0 | X61: Філія3 | Y61: =SUMIFS(План!$H:$H,План!$B:$B,Word!$B61,План!$D:$D,Word!$D61,План!$E:$E,Word!$E61) -> 0 | Z61: =SUMIFS(Факт!$H:$H,Факт!$B:$B,Word!$B61,Факт!$D:$D,Word!$D61,Факт!$E:$E,Word!$E61) -> 0 | AA61: 0 | AB61: =SUMIFS('За добу'!$H:$H,'За добу'!$B:$B,Word!$B61,'За добу'!$D:$D,Word!$D61,'За добу'!$E:$E,Word!$E61) -> 0 | AC61: 0 | AD61: Філія4 | AE61: =SUMIFS(План!$I:$I,План!$B:$B,Word!$B61,План!$D:$D,Word!$D61,План!$E:$E,Word!$E61) -> 0 | AF61: =SUMIFS(Факт!$I:$I,Факт!$B:$B,Word!$B61,Факт!$D:$D,Word!$D61,Факт!$E:$E,Word!$E61) -> 0 | AG61: 0 | AH61: =SUMIFS('За добу'!$I:$I,'За добу'!$B:$B,Word!$B61,'За добу'!$D:$D,Word!$D61,'За добу'!$E:$E,Word!$E61) -> 0 | AI61: 0 | AJ61: Філія5 | AK61: =SUMIFS(План!$J:$J,План!$B:$B,Word!$B61,План!$D:$D,Word!$D61,План!$E:$E,Word!$E61) -> 0 | AL61: =SUMIFS(Факт!$J:$J,Факт!$B:$B,Word!$B61,Факт!$D:$D,Word!$D61,Факт!$E:$E,Word!$E61) -> 0 | AM61: 0 | AN61: =SUMIFS('За добу'!$J:$J,'За добу'!$B:$B,Word!$B61,'За добу'!$D:$D,Word!$D61,'За добу'!$E:$E,Word!$E61) -> 0 | AO61: 0
B62: ='За добу'!$B62 -> 0 | D62: ='За добу'!$D62 -> 0 | E62: ='За добу'!$E62 -> 0 | F62: ФОРМУЛА | G62: 0 | H62: 0 | I62: 0 | J62: 0 | K62: 0 | L62: Філія1 | M62: =SUMIFS(План!$F:$F,План!$B:$B,Word!$B62,План!$D:$D,Word!$D62,План!$E:$E,Word!$E62) -> 0 | N62: =SUMIFS(Факт!$F:$F,Факт!$B:$B,Word!$B62,Факт!$D:$D,Word!$D62,Факт!$E:$E,Word!$E62) -> 0 | O62: 0 | P62: =SUMIFS('За добу'!$F:$F,'За добу'!$B:$B,Word!$B62,'За добу'!$D:$D,Word!$D62,'За добу'!$E:$E,Word!$E62) -> 0 | Q62: 0 | R62: Філія2 | S62: =SUMIFS(План!$G:$G,План!$B:$B,Word!$B62,План!$D:$D,Word!$D62,План!$E:$E,Word!$E62) -> 0 | T62: =SUMIFS(Факт!$G:$G,Факт!$B:$B,Word!$B62,Факт!$D:$D,Word!$D62,Факт!$E:$E,Word!$E62) -> 0 | U62: 0 | V62: =SUMIFS('За добу'!$G:$G,'За добу'!$B:$B,Word!$B62,'За добу'!$D:$D,Word!$D62,'За добу'!$E:$E,Word!$E62) -> 0 | W62: 0 | X62: Філія3 | Y62: =SUMIFS(План!$H:$H,План!$B:$B,Word!$B62,План!$D:$D,Word!$D62,План!$E:$E,Word!$E62) -> 0 | Z62: =SUMIFS(Факт!$H:$H,Факт!$B:$B,Word!$B62,Факт!$D:$D,Word!$D62,Факт!$E:$E,Word!$E62) -> 0 | AA62: 0 | AB62: =SUMIFS('За добу'!$H:$H,'За добу'!$B:$B,Word!$B62,'За добу'!$D:$D,Word!$D62,'За добу'!$E:$E,Word!$E62) -> 0 | AC62: 0 | AD62: Філія4 | AE62: =SUMIFS(План!$I:$I,План!$B:$B,Word!$B62,План!$D:$D,Word!$D62,План!$E:$E,Word!$E62) -> 0 | AF62: =SUMIFS(Факт!$I:$I,Факт!$B:$B,Word!$B62,Факт!$D:$D,Word!$D62,Факт!$E:$E,Word!$E62) -> 0 | AG62: 0 | AH62: =SUMIFS('За добу'!$I:$I,'За добу'!$B:$B,Word!$B62,'За добу'!$D:$D,Word!$D62,'За добу'!$E:$E,Word!$E62) -> 0 | AI62: 0 | AJ62: Філія5 | AK62: =SUMIFS(План!$J:$J,План!$B:$B,Word!$B62,План!$D:$D,Word!$D62,План!$E:$E,Word!$E62) -> 0 | AL62: =SUMIFS(Факт!$J:$J,Факт!$B:$B,Word!$B62,Факт!$D:$D,Word!$D62,Факт!$E:$E,Word!$E62) -> 0 | AM62: 0 | AN62: =SUMIFS('За добу'!$J:$J,'За добу'!$B:$B,Word!$B62,'За добу'!$D:$D,Word!$D62,'За добу'!$E:$E,Word!$E62) -> 0 | AO62: 0
B63: ='За добу'!$B63 -> 0 | D63: ='За добу'!$D63 -> 0 | E63: ='За добу'!$E63 -> 0 | F63: ФОРМУЛА | G63: 0 | H63: 0 | I63: 0 | J63: 0 | K63: 0 | L63: Філія1 | M63: =SUMIFS(План!$F:$F,План!$B:$B,Word!$B63,План!$D:$D,Word!$D63,План!$E:$E,Word!$E63) -> 0 | N63: =SUMIFS(Факт!$F:$F,Факт!$B:$B,Word!$B63,Факт!$D:$D,Word!$D63,Факт!$E:$E,Word!$E63) -> 0 | O63: 0 | P63: =SUMIFS('За добу'!$F:$F,'За добу'!$B:$B,Word!$B63,'За добу'!$D:$D,Word!$D63,'За добу'!$E:$E,Word!$E63) -> 0 | Q63: 0 | R63: Філія2 | S63: =SUMIFS(План!$G:$G,План!$B:$B,Word!$B63,План!$D:$D,Word!$D63,План!$E:$E,Word!$E63) -> 0 | T63: =SUMIFS(Факт!$G:$G,Факт!$B:$B,Word!$B63,Факт!$D:$D,Word!$D63,Факт!$E:$E,Word!$E63) -> 0 | U63: 0 | V63: =SUMIFS('За добу'!$G:$G,'За добу'!$B:$B,Word!$B63,'За добу'!$D:$D,Word!$D63,'За добу'!$E:$E,Word!$E63) -> 0 | W63: 0 | X63: Філія3 | Y63: =SUMIFS(План!$H:$H,План!$B:$B,Word!$B63,План!$D:$D,Word!$D63,План!$E:$E,Word!$E63) -> 0 | Z63: =SUMIFS(Факт!$H:$H,Факт!$B:$B,Word!$B63,Факт!$D:$D,Word!$D63,Факт!$E:$E,Word!$E63) -> 0 | AA63: 0 | AB63: =SUMIFS('За добу'!$H:$H,'За добу'!$B:$B,Word!$B63,'За добу'!$D:$D,Word!$D63,'За добу'!$E:$E,Word!$E63) -> 0 | AC63: 0 | AD63: Філія4 | AE63: =SUMIFS(План!$I:$I,План!$B:$B,Word!$B63,План!$D:$D,Word!$D63,План!$E:$E,Word!$E63) -> 0 | AF63: =SUMIFS(Факт!$I:$I,Факт!$B:$B,Word!$B63,Факт!$D:$D,Word!$D63,Факт!$E:$E,Word!$E63) -> 0 | AG63: 0 | AH63: =SUMIFS('За добу'!$I:$I,'За добу'!$B:$B,Word!$B63,'За добу'!$D:$D,Word!$D63,'За добу'!$E:$E,Word!$E63) -> 0 | AI63: 0 | AJ63: Філія5 | AK63: =SUMIFS(План!$J:$J,План!$B:$B,Word!$B63,План!$D:$D,Word!$D63,План!$E:$E,Word!$E63) -> 0 | AL63: =SUMIFS(Факт!$J:$J,Факт!$B:$B,Word!$B63,Факт!$D:$D,Word!$D63,Факт!$E:$E,Word!$E63) -> 0 | AM63: 0 | AN63: =SUMIFS('За добу'!$J:$J,'За добу'!$B:$B,Word!$B63,'За добу'!$D:$D,Word!$D63,'За добу'!$E:$E,Word!$E63) -> 0 | AO63: 0
B64: ='За добу'!$B64 -> 0 | D64: ='За добу'!$D64 -> 0 | E64: ='За добу'!$E64 -> 0 | F64: ФОРМУЛА | G64: 0 | H64: 0 | I64: 0 | J64: 0 | K64: 0 | L64: Філія1 | M64: =SUMIFS(План!$F:$F,План!$B:$B,Word!$B64,План!$D:$D,Word!$D64,План!$E:$E,Word!$E64) -> 0 | N64: =SUMIFS(Факт!$F:$F,Факт!$B:$B,Word!$B64,Факт!$D:$D,Word!$D64,Факт!$E:$E,Word!$E64) -> 0 | O64: 0 | P64: =SUMIFS('За добу'!$F:$F,'За добу'!$B:$B,Word!$B64,'За добу'!$D:$D,Word!$D64,'За добу'!$E:$E,Word!$E64) -> 0 | Q64: 0 | R64: Філія2 | S64: =SUMIFS(План!$G:$G,План!$B:$B,Word!$B64,План!$D:$D,Word!$D64,План!$E:$E,Word!$E64) -> 0 | T64: =SUMIFS(Факт!$G:$G,Факт!$B:$B,Word!$B64,Факт!$D:$D,Word!$D64,Факт!$E:$E,Word!$E64) -> 0 | U64: 0 | V64: =SUMIFS('За добу'!$G:$G,'За добу'!$B:$B,Word!$B64,'За добу'!$D:$D,Word!$D64,'За добу'!$E:$E,Word!$E64) -> 0 | W64: 0 | X64: Філія3 | Y64: =SUMIFS(План!$H:$H,План!$B:$B,Word!$B64,План!$D:$D,Word!$D64,План!$E:$E,Word!$E64) -> 0 | Z64: =SUMIFS(Факт!$H:$H,Факт!$B:$B,Word!$B64,Факт!$D:$D,Word!$D64,Факт!$E:$E,Word!$E64) -> 0 | AA64: 0 | AB64: =SUMIFS('За добу'!$H:$H,'За добу'!$B:$B,Word!$B64,'За добу'!$D:$D,Word!$D64,'За добу'!$E:$E,Word!$E64) -> 0 | AC64: 0 | AD64: Філія4 | AE64: =SUMIFS(План!$I:$I,План!$B:$B,Word!$B64,План!$D:$D,Word!$D64,План!$E:$E,Word!$E64) -> 0 | AF64: =SUMIFS(Факт!$I:$I,Факт!$B:$B,Word!$B64,Факт!$D:$D,Word!$D64,Факт!$E:$E,Word!$E64) -> 0 | AG64: 0 | AH64: =SUMIFS('За добу'!$I:$I,'За добу'!$B:$B,Word!$B64,'За добу'!$D:$D,Word!$D64,'За добу'!$E:$E,Word!$E64) -> 0 | AI64: 0 | AJ64: Філія5 | AK64: =SUMIFS(План!$J:$J,План!$B:$B,Word!$B64,План!$D:$D,Word!$D64,План!$E:$E,Word!$E64) -> 0 | AL64: =SUMIFS(Факт!$J:$J,Факт!$B:$B,Word!$B64,Факт!$D:$D,Word!$D64,Факт!$E:$E,Word!$E64) -> 0 | AM64: 0 | AN64: =SUMIFS('За добу'!$J:$J,'За добу'!$B:$B,Word!$B64,'За добу'!$D:$D,Word!$D64,'За добу'!$E:$E,Word!$E64) -> 0 | AO64: 0
B65: ='За добу'!$B65 -> 0 | D65: ='За добу'!$D65 -> 0 | E65: ='За добу'!$E65 -> 0 | F65: ФОРМУЛА | G65: 0 | H65: 0 | I65: 0 | J65: 0 | K65: 0 | L65: Філія1 | M65: =SUMIFS(План!$F:$F,План!$B:$B,Word!$B65,План!$D:$D,Word!$D65,План!$E:$E,Word!$E65) -> 0 | N65: =SUMIFS(Факт!$F:$F,Факт!$B:$B,Word!$B65,Факт!$D:$D,Word!$D65,Факт!$E:$E,Word!$E65) -> 0 | O65: 0 | P65: =SUMIFS('За добу'!$F:$F,'За добу'!$B:$B,Word!$B65,'За добу'!$D:$D,Word!$D65,'За добу'!$E:$E,Word!$E65) -> 0 | Q65: 0 | R65: Філія2 | S65: =SUMIFS(План!$G:$G,План!$B:$B,Word!$B65,План!$D:$D,Word!$D65,План!$E:$E,Word!$E65) -> 0 | T65: =SUMIFS(Факт!$G:$G,Факт!$B:$B,Word!$B65,Факт!$D:$D,Word!$D65,Факт!$E:$E,Word!$E65) -> 0 | U65: 0 | V65: =SUMIFS('За добу'!$G:$G,'За добу'!$B:$B,Word!$B65,'За добу'!$D:$D,Word!$D65,'За добу'!$E:$E,Word!$E65) -> 0 | W65: 0 | X65: Філія3 | Y65: =SUMIFS(План!$H:$H,План!$B:$B,Word!$B65,План!$D:$D,Word!$D65,План!$E:$E,Word!$E65) -> 0 | Z65: =SUMIFS(Факт!$H:$H,Факт!$B:$B,Word!$B65,Факт!$D:$D,Word!$D65,Факт!$E:$E,Word!$E65) -> 0 | AA65: 0 | AB65: =SUMIFS('За добу'!$H:$H,'За добу'!$B:$B,Word!$B65,'За добу'!$D:$D,Word!$D65,'За добу'!$E:$E,Word!$E65) -> 0 | AC65: 0 | AD65: Філія4 | AE65: =SUMIFS(План!$I:$I,План!$B:$B,Word!$B65,План!$D:$D,Word!$D65,План!$E:$E,Word!$E65) -> 0 | AF65: =SUMIFS(Факт!$I:$I,Факт!$B:$B,Word!$B65,Факт!$D:$D,Word!$D65,Факт!$E:$E,Word!$E65) -> 0 | AG65: 0 | AH65: =SUMIFS('За добу'!$I:$I,'За добу'!$B:$B,Word!$B65,'За добу'!$D:$D,Word!$D65,'За добу'!$E:$E,Word!$E65) -> 0 | AI65: 0 | AJ65: Філія5 | AK65: =SUMIFS(План!$J:$J,План!$B:$B,Word!$B65,План!$D:$D,Word!$D65,План!$E:$E,Word!$E65) -> 0 | AL65: =SUMIFS(Факт!$J:$J,Факт!$B:$B,Word!$B65,Факт!$D:$D,Word!$D65,Факт!$E:$E,Word!$E65) -> 0 | AM65: 0 | AN65: =SUMIFS('За добу'!$J:$J,'За добу'!$B:$B,Word!$B65,'За добу'!$D:$D,Word!$D65,'За добу'!$E:$E,Word!$E65) -> 0 | AO65: 0
B66: ='За добу'!$B66 -> 0 | D66: ='За добу'!$D66 -> 0 | E66: ='За добу'!$E66 -> 0 | F66: ФОРМУЛА | G66: 0 | H66: 0 | I66: 0 | J66: 0 | K66: 0 | L66: Філія1 | M66: =SUMIFS(План!$F:$F,План!$B:$B,Word!$B66,План!$D:$D,Word!$D66,План!$E:$E,Word!$E66) -> 0 | N66: =SUMIFS(Факт!$F:$F,Факт!$B:$B,Word!$B66,Факт!$D:$D,Word!$D66,Факт!$E:$E,Word!$E66) -> 0 | O66: 0 | P66: =SUMIFS('За добу'!$F:$F,'За добу'!$B:$B,Word!$B66,'За добу'!$D:$D,Word!$D66,'За добу'!$E:$E,Word!$E66) -> 0 | Q66: 0 | R66: Філія2 | S66: =SUMIFS(План!$G:$G,План!$B:$B,Word!$B66,План!$D:$D,Word!$D66,План!$E:$E,Word!$E66) -> 0 | T66: =SUMIFS(Факт!$G:$G,Факт!$B:$B,Word!$B66,Факт!$D:$D,Word!$D66,Факт!$E:$E,Word!$E66) -> 0 | U66: 0 | V66: =SUMIFS('За добу'!$G:$G,'За добу'!$B:$B,Word!$B66,'За добу'!$D:$D,Word!$D66,'За добу'!$E:$E,Word!$E66) -> 0 | W66: 0 | X66: Філія3 | Y66: =SUMIFS(План!$H:$H,План!$B:$B,Word!$B66,План!$D:$D,Word!$D66,План!$E:$E,Word!$E66) -> 0 | Z66: =SUMIFS(Факт!$H:$H,Факт!$B:$B,Word!$B66,Факт!$D:$D,Word!$D66,Факт!$E:$E,Word!$E66) -> 0 | AA66: 0 | AB66: =SUMIFS('За добу'!$H:$H,'За добу'!$B:$B,Word!$B66,'За добу'!$D:$D,Word!$D66,'За добу'!$E:$E,Word!$E66) -> 0 | AC66: 0 | AD66: Філія4 | AE66: =SUMIFS(План!$I:$I,План!$B:$B,Word!$B66,План!$D:$D,Word!$D66,План!$E:$E,Word!$E66) -> 0 | AF66: =SUMIFS(Факт!$I:$I,Факт!$B:$B,Word!$B66,Факт!$D:$D,Word!$D66,Факт!$E:$E,Word!$E66) -> 0 | AG66: 0 | AH66: =SUMIFS('За добу'!$I:$I,'За добу'!$B:$B,Word!$B66,'За добу'!$D:$D,Word!$D66,'За добу'!$E:$E,Word!$E66) -> 0 | AI66: 0 | AJ66: Філія5 | AK66: =SUMIFS(План!$J:$J,План!$B:$B,Word!$B66,План!$D:$D,Word!$D66,План!$E:$E,Word!$E66) -> 0 | AL66: =SUMIFS(Факт!$J:$J,Факт!$B:$B,Word!$B66,Факт!$D:$D,Word!$D66,Факт!$E:$E,Word!$E66) -> 0 | AM66: 0 | AN66: =SUMIFS('За добу'!$J:$J,'За добу'!$B:$B,Word!$B66,'За добу'!$D:$D,Word!$D66,'За добу'!$E:$E,Word!$E66) -> 0 | AO66: 0
B67: ='За добу'!$B67 -> 0 | D67: ='За добу'!$D67 -> 0 | E67: ='За добу'!$E67 -> 0 | F67: ФОРМУЛА | G67: 0 | H67: 0 | I67: 0 | J67: 0 | K67: 0 | L67: Філія1 | M67: =SUMIFS(План!$F:$F,План!$B:$B,Word!$B67,План!$D:$D,Word!$D67,План!$E:$E,Word!$E67) -> 0 | N67: =SUMIFS(Факт!$F:$F,Факт!$B:$B,Word!$B67,Факт!$D:$D,Word!$D67,Факт!$E:$E,Word!$E67) -> 0 | O67: 0 | P67: =SUMIFS('За добу'!$F:$F,'За добу'!$B:$B,Word!$B67,'За добу'!$D:$D,Word!$D67,'За добу'!$E:$E,Word!$E67) -> 0 | Q67: 0 | R67: Філія2 | S67: =SUMIFS(План!$G:$G,План!$B:$B,Word!$B67,План!$D:$D,Word!$D67,План!$E:$E,Word!$E67) -> 0 | T67: =SUMIFS(Факт!$G:$G,Факт!$B:$B,Word!$B67,Факт!$D:$D,Word!$D67,Факт!$E:$E,Word!$E67) -> 0 | U67: 0 | V67: =SUMIFS('За добу'!$G:$G,'За добу'!$B:$B,Word!$B67,'За добу'!$D:$D,Word!$D67,'За добу'!$E:$E,Word!$E67) -> 0 | W67: 0 | X67: Філія3 | Y67: =SUMIFS(План!$H:$H,План!$B:$B,Word!$B67,План!$D:$D,Word!$D67,План!$E:$E,Word!$E67) -> 0 | Z67: =SUMIFS(Факт!$H:$H,Факт!$B:$B,Word!$B67,Факт!$D:$D,Word!$D67,Факт!$E:$E,Word!$E67) -> 0 | AA67: 0 | AB67: =SUMIFS('За добу'!$H:$H,'За добу'!$B:$B,Word!$B67,'За добу'!$D:$D,Word!$D67,'За добу'!$E:$E,Word!$E67) -> 0 | AC67: 0 | AD67: Філія4 | AE67: =SUMIFS(План!$I:$I,План!$B:$B,Word!$B67,План!$D:$D,Word!$D67,План!$E:$E,Word!$E67) -> 0 | AF67: =SUMIFS(Факт!$I:$I,Факт!$B:$B,Word!$B67,Факт!$D:$D,Word!$D67,Факт!$E:$E,Word!$E67) -> 0 | AG67: 0 | AH67: =SUMIFS('За добу'!$I:$I,'За добу'!$B:$B,Word!$B67,'За добу'!$D:$D,Word!$D67,'За добу'!$E:$E,Word!$E67) -> 0 | AI67: 0 | AJ67: Філія5 | AK67: =SUMIFS(План!$J:$J,План!$B:$B,Word!$B67,План!$D:$D,Word!$D67,План!$E:$E,Word!$E67) -> 0 | AL67: =SUMIFS(Факт!$J:$J,Факт!$B:$B,Word!$B67,Факт!$D:$D,Word!$D67,Факт!$E:$E,Word!$E67) -> 0 | AM67: 0 | AN67: =SUMIFS('За добу'!$J:$J,'За добу'!$B:$B,Word!$B67,'За добу'!$D:$D,Word!$D67,'За добу'!$E:$E,Word!$E67) -> 0 | AO67: 0
B68: ='За добу'!$B68 -> 0 | D68: ='За добу'!$D68 -> 0 | E68: ='За добу'!$E68 -> 0 | F68: ФОРМУЛА | G68: 0 | H68: 0 | I68: 0 | J68: 0 | K68: 0 | L68: Філія1 | M68: =SUMIFS(План!$F:$F,План!$B:$B,Word!$B68,План!$D:$D,Word!$D68,План!$E:$E,Word!$E68) -> 0 | N68: =SUMIFS(Факт!$F:$F,Факт!$B:$B,Word!$B68,Факт!$D:$D,Word!$D68,Факт!$E:$E,Word!$E68) -> 0 | O68: 0 | P68: =SUMIFS('За добу'!$F:$F,'За добу'!$B:$B,Word!$B68,'За добу'!$D:$D,Word!$D68,'За добу'!$E:$E,Word!$E68) -> 0 | Q68: 0 | R68: Філія2 | S68: =SUMIFS(План!$G:$G,План!$B:$B,Word!$B68,План!$D:$D,Word!$D68,План!$E:$E,Word!$E68) -> 0 | T68: =SUMIFS(Факт!$G:$G,Факт!$B:$B,Word!$B68,Факт!$D:$D,Word!$D68,Факт!$E:$E,Word!$E68) -> 0 | U68: 0 | V68: =SUMIFS('За добу'!$G:$G,'За добу'!$B:$B,Word!$B68,'За добу'!$D:$D,Word!$D68,'За добу'!$E:$E,Word!$E68) -> 0 | W68: 0 | X68: Філія3 | Y68: =SUMIFS(План!$H:$H,План!$B:$B,Word!$B68,План!$D:$D,Word!$D68,План!$E:$E,Word!$E68) -> 0 | Z68: =SUMIFS(Факт!$H:$H,Факт!$B:$B,Word!$B68,Факт!$D:$D,Word!$D68,Факт!$E:$E,Word!$E68) -> 0 | AA68: 0 | AB68: =SUMIFS('За добу'!$H:$H,'За добу'!$B:$B,Word!$B68,'За добу'!$D:$D,Word!$D68,'За добу'!$E:$E,Word!$E68) -> 0 | AC68: 0 | AD68: Філія4 | AE68: =SUMIFS(План!$I:$I,План!$B:$B,Word!$B68,План!$D:$D,Word!$D68,План!$E:$E,Word!$E68) -> 0 | AF68: =SUMIFS(Факт!$I:$I,Факт!$B:$B,Word!$B68,Факт!$D:$D,Word!$D68,Факт!$E:$E,Word!$E68) -> 0 | AG68: 0 | AH68: =SUMIFS('За добу'!$I:$I,'За добу'!$B:$B,Word!$B68,'За добу'!$D:$D,Word!$D68,'За добу'!$E:$E,Word!$E68) -> 0 | AI68: 0 | AJ68: Філія5 | AK68: =SUMIFS(План!$J:$J,План!$B:$B,Word!$B68,План!$D:$D,Word!$D68,План!$E:$E,Word!$E68) -> 0 | AL68: =SUMIFS(Факт!$J:$J,Факт!$B:$B,Word!$B68,Факт!$D:$D,Word!$D68,Факт!$E:$E,Word!$E68) -> 0 | AM68: 0 | AN68: =SUMIFS('За добу'!$J:$J,'За добу'!$B:$B,Word!$B68,'За добу'!$D:$D,Word!$D68,'За добу'!$E:$E,Word!$E68) -> 0 | AO68: 0
B69: ='За добу'!$B69 -> 0 | D69: ='За добу'!$D69 -> 0 | E69: ='За добу'!$E69 -> 0 | F69: ФОРМУЛА | G69: 0 | H69: 0 | I69: 0 | J69: 0 | K69: 0 | L69: Філія1 | M69: =SUMIFS(План!$F:$F,План!$B:$B,Word!$B69,План!$D:$D,Word!$D69,План!$E:$E,Word!$E69) -> 0 | N69: =SUMIFS(Факт!$F:$F,Факт!$B:$B,Word!$B69,Факт!$D:$D,Word!$D69,Факт!$E:$E,Word!$E69) -> 0 | O69: 0 | P69: =SUMIFS('За добу'!$F:$F,'За добу'!$B:$B,Word!$B69,'За добу'!$D:$D,Word!$D69,'За добу'!$E:$E,Word!$E69) -> 0 | Q69: 0 | R69: Філія2 | S69: =SUMIFS(План!$G:$G,План!$B:$B,Word!$B69,План!$D:$D,Word!$D69,План!$E:$E,Word!$E69) -> 0 | T69: =SUMIFS(Факт!$G:$G,Факт!$B:$B,Word!$B69,Факт!$D:$D,Word!$D69,Факт!$E:$E,Word!$E69) -> 0 | U69: 0 | V69: =SUMIFS('За добу'!$G:$G,'За добу'!$B:$B,Word!$B69,'За добу'!$D:$D,Word!$D69,'За добу'!$E:$E,Word!$E69) -> 0 | W69: 0 | X69: Філія3 | Y69: =SUMIFS(План!$H:$H,План!$B:$B,Word!$B69,План!$D:$D,Word!$D69,План!$E:$E,Word!$E69) -> 0 | Z69: =SUMIFS(Факт!$H:$H,Факт!$B:$B,Word!$B69,Факт!$D:$D,Word!$D69,Факт!$E:$E,Word!$E69) -> 0 | AA69: 0 | AB69: =SUMIFS('За добу'!$H:$H,'За добу'!$B:$B,Word!$B69,'За добу'!$D:$D,Word!$D69,'За добу'!$E:$E,Word!$E69) -> 0 | AC69: 0 | AD69: Філія4 | AE69: =SUMIFS(План!$I:$I,План!$B:$B,Word!$B69,План!$D:$D,Word!$D69,План!$E:$E,Word!$E69) -> 0 | AF69: =SUMIFS(Факт!$I:$I,Факт!$B:$B,Word!$B69,Факт!$D:$D,Word!$D69,Факт!$E:$E,Word!$E69) -> 0 | AG69: 0 | AH69: =SUMIFS('За добу'!$I:$I,'За добу'!$B:$B,Word!$B69,'За добу'!$D:$D,Word!$D69,'За добу'!$E:$E,Word!$E69) -> 0 | AI69: 0 | AJ69: Філія5 | AK69: =SUMIFS(План!$J:$J,План!$B:$B,Word!$B69,План!$D:$D,Word!$D69,План!$E:$E,Word!$E69) -> 0 | AL69: =SUMIFS(Факт!$J:$J,Факт!$B:$B,Word!$B69,Факт!$D:$D,Word!$D69,Факт!$E:$E,Word!$E69) -> 0 | AM69: 0 | AN69: =SUMIFS('За добу'!$J:$J,'За добу'!$B:$B,Word!$B69,'За добу'!$D:$D,Word!$D69,'За добу'!$E:$E,Word!$E69) -> 0 | AO69: 0
B70: ='За добу'!$B70 -> 0 | D70: ='За добу'!$D70 -> 0 | E70: ='За добу'!$E70 -> 0 | F70: ФОРМУЛА | G70: 0 | H70: 0 | I70: 0 | J70: 0 | K70: 0 | L70: Філія1 | M70: =SUMIFS(План!$F:$F,План!$B:$B,Word!$B70,План!$D:$D,Word!$D70,План!$E:$E,Word!$E70) -> 0 | N70: =SUMIFS(Факт!$F:$F,Факт!$B:$B,Word!$B70,Факт!$D:$D,Word!$D70,Факт!$E:$E,Word!$E70) -> 0 | O70: 0 | P70: =SUMIFS('За добу'!$F:$F,'За добу'!$B:$B,Word!$B70,'За добу'!$D:$D,Word!$D70,'За добу'!$E:$E,Word!$E70) -> 0 | Q70: 0 | R70: Філія2 | S70: =SUMIFS(План!$G:$G,План!$B:$B,Word!$B70,План!$D:$D,Word!$D70,План!$E:$E,Word!$E70) -> 0 | T70: =SUMIFS(Факт!$G:$G,Факт!$B:$B,Word!$B70,Факт!$D:$D,Word!$D70,Факт!$E:$E,Word!$E70) -> 0 | U70: 0 | V70: =SUMIFS('За добу'!$G:$G,'За добу'!$B:$B,Word!$B70,'За добу'!$D:$D,Word!$D70,'За добу'!$E:$E,Word!$E70) -> 0 | W70: 0 | X70: Філія3 | Y70: =SUMIFS(План!$H:$H,План!$B:$B,Word!$B70,План!$D:$D,Word!$D70,План!$E:$E,Word!$E70) -> 0 | Z70: =SUMIFS(Факт!$H:$H,Факт!$B:$B,Word!$B70,Факт!$D:$D,Word!$D70,Факт!$E:$E,Word!$E70) -> 0 | AA70: 0 | AB70: =SUMIFS('За добу'!$H:$H,'За добу'!$B:$B,Word!$B70,'За добу'!$D:$D,Word!$D70,'За добу'!$E:$E,Word!$E70) -> 0 | AC70: 0 | AD70: Філія4 | AE70: =SUMIFS(План!$I:$I,План!$B:$B,Word!$B70,План!$D:$D,Word!$D70,План!$E:$E,Word!$E70) -> 0 | AF70: =SUMIFS(Факт!$I:$I,Факт!$B:$B,Word!$B70,Факт!$D:$D,Word!$D70,Факт!$E:$E,Word!$E70) -> 0 | AG70: 0 | AH70: =SUMIFS('За добу'!$I:$I,'За добу'!$B:$B,Word!$B70,'За добу'!$D:$D,Word!$D70,'За добу'!$E:$E,Word!$E70) -> 0 | AI70: 0 | AJ70: Філія5 | AK70: =SUMIFS(План!$J:$J,План!$B:$B,Word!$B70,План!$D:$D,Word!$D70,План!$E:$E,Word!$E70) -> 0 | AL70: =SUMIFS(Факт!$J:$J,Факт!$B:$B,Word!$B70,Факт!$D:$D,Word!$D70,Факт!$E:$E,Word!$E70) -> 0 | AM70: 0 | AN70: =SUMIFS('За добу'!$J:$J,'За добу'!$B:$B,Word!$B70,'За добу'!$D:$D,Word!$D70,'За добу'!$E:$E,Word!$E70) -> 0 | AO70: 0
B71: ='За добу'!$B71 -> 0 | D71: ='За добу'!$D71 -> 0 | E71: ='За добу'!$E71 -> 0 | F71: ФОРМУЛА | G71: 0 | H71: 0 | I71: 0 | J71: 0 | K71: 0 | L71: Філія1 | M71: =SUMIFS(План!$F:$F,План!$B:$B,Word!$B71,План!$D:$D,Word!$D71,План!$E:$E,Word!$E71) -> 0 | N71: =SUMIFS(Факт!$F:$F,Факт!$B:$B,Word!$B71,Факт!$D:$D,Word!$D71,Факт!$E:$E,Word!$E71) -> 0 | O71: 0 | P71: =SUMIFS('За добу'!$F:$F,'За добу'!$B:$B,Word!$B71,'За добу'!$D:$D,Word!$D71,'За добу'!$E:$E,Word!$E71) -> 0 | Q71: 0 | R71: Філія2 | S71: =SUMIFS(План!$G:$G,План!$B:$B,Word!$B71,План!$D:$D,Word!$D71,План!$E:$E,Word!$E71) -> 0 | T71: =SUMIFS(Факт!$G:$G,Факт!$B:$B,Word!$B71,Факт!$D:$D,Word!$D71,Факт!$E:$E,Word!$E71) -> 0 | U71: 0 | V71: =SUMIFS('За добу'!$G:$G,'За добу'!$B:$B,Word!$B71,'За добу'!$D:$D,Word!$D71,'За добу'!$E:$E,Word!$E71) -> 0 | W71: 0 | X71: Філія3 | Y71: =SUMIFS(План!$H:$H,План!$B:$B,Word!$B71,План!$D:$D,Word!$D71,План!$E:$E,Word!$E71) -> 0 | Z71: =SUMIFS(Факт!$H:$H,Факт!$B:$B,Word!$B71,Факт!$D:$D,Word!$D71,Факт!$E:$E,Word!$E71) -> 0 | AA71: 0 | AB71: =SUMIFS('За добу'!$H:$H,'За добу'!$B:$B,Word!$B71,'За добу'!$D:$D,Word!$D71,'За добу'!$E:$E,Word!$E71) -> 0 | AC71: 0 | AD71: Філія4 | AE71: =SUMIFS(План!$I:$I,План!$B:$B,Word!$B71,План!$D:$D,Word!$D71,План!$E:$E,Word!$E71) -> 0 | AF71: =SUMIFS(Факт!$I:$I,Факт!$B:$B,Word!$B71,Факт!$D:$D,Word!$D71,Факт!$E:$E,Word!$E71) -> 0 | AG71: 0 | AH71: =SUMIFS('За добу'!$I:$I,'За добу'!$B:$B,Word!$B71,'За добу'!$D:$D,Word!$D71,'За добу'!$E:$E,Word!$E71) -> 0 | AI71: 0 | AJ71: Філія5 | AK71: =SUMIFS(План!$J:$J,План!$B:$B,Word!$B71,План!$D:$D,Word!$D71,План!$E:$E,Word!$E71) -> 0 | AL71: =SUMIFS(Факт!$J:$J,Факт!$B:$B,Word!$B71,Факт!$D:$D,Word!$D71,Факт!$E:$E,Word!$E71) -> 0 | AM71: 0 | AN71: =SUMIFS('За добу'!$J:$J,'За добу'!$B:$B,Word!$B71,'За добу'!$D:$D,Word!$D71,'За добу'!$E:$E,Word!$E71) -> 0 | AO71: 0
B72: ='За добу'!$B72 -> 0 | D72: ='За добу'!$D72 -> 0 | E72: ='За добу'!$E72 -> 0 | F72: ФОРМУЛА | G72: 0 | H72: 0 | I72: 0 | J72: 0 | K72: 0 | L72: Філія1 | M72: =SUMIFS(План!$F:$F,План!$B:$B,Word!$B72,План!$D:$D,Word!$D72,План!$E:$E,Word!$E72) -> 0 | N72: =SUMIFS(Факт!$F:$F,Факт!$B:$B,Word!$B72,Факт!$D:$D,Word!$D72,Факт!$E:$E,Word!$E72) -> 0 | O72: 0 | P72: =SUMIFS('За добу'!$F:$F,'За добу'!$B:$B,Word!$B72,'За добу'!$D:$D,Word!$D72,'За добу'!$E:$E,Word!$E72) -> 0 | Q72: 0 | R72: Філія2 | S72: =SUMIFS(План!$G:$G,План!$B:$B,Word!$B72,План!$D:$D,Word!$D72,План!$E:$E,Word!$E72) -> 0 | T72: =SUMIFS(Факт!$G:$G,Факт!$B:$B,Word!$B72,Факт!$D:$D,Word!$D72,Факт!$E:$E,Word!$E72) -> 0 | U72: 0 | V72: =SUMIFS('За добу'!$G:$G,'За добу'!$B:$B,Word!$B72,'За добу'!$D:$D,Word!$D72,'За добу'!$E:$E,Word!$E72) -> 0 | W72: 0 | X72: Філія3 | Y72: =SUMIFS(План!$H:$H,План!$B:$B,Word!$B72,План!$D:$D,Word!$D72,План!$E:$E,Word!$E72) -> 0 | Z72: =SUMIFS(Факт!$H:$H,Факт!$B:$B,Word!$B72,Факт!$D:$D,Word!$D72,Факт!$E:$E,Word!$E72) -> 0 | AA72: 0 | AB72: =SUMIFS('За добу'!$H:$H,'За добу'!$B:$B,Word!$B72,'За добу'!$D:$D,Word!$D72,'За добу'!$E:$E,Word!$E72) -> 0 | AC72: 0 | AD72: Філія4 | AE72: =SUMIFS(План!$I:$I,План!$B:$B,Word!$B72,План!$D:$D,Word!$D72,План!$E:$E,Word!$E72) -> 0 | AF72: =SUMIFS(Факт!$I:$I,Факт!$B:$B,Word!$B72,Факт!$D:$D,Word!$D72,Факт!$E:$E,Word!$E72) -> 0 | AG72: 0 | AH72: =SUMIFS('За добу'!$I:$I,'За добу'!$B:$B,Word!$B72,'За добу'!$D:$D,Word!$D72,'За добу'!$E:$E,Word!$E72) -> 0 | AI72: 0 | AJ72: Філія5 | AK72: =SUMIFS(План!$J:$J,План!$B:$B,Word!$B72,План!$D:$D,Word!$D72,План!$E:$E,Word!$E72) -> 0 | AL72: =SUMIFS(Факт!$J:$J,Факт!$B:$B,Word!$B72,Факт!$D:$D,Word!$D72,Факт!$E:$E,Word!$E72) -> 0 | AM72: 0 | AN72: =SUMIFS('За добу'!$J:$J,'За добу'!$B:$B,Word!$B72,'За добу'!$D:$D,Word!$D72,'За добу'!$E:$E,Word!$E72) -> 0 | AO72: 0
B73: ='За добу'!$B73 -> 0 | D73: ='За добу'!$D73 -> 0 | E73: ='За добу'!$E73 -> 0 | F73: =IF(E73="б.т. 2018","Трави Багаторічні-2018",IF(E73="оз.пш. 2018","Пшениця Озима-2018",IF(E73="оз.ріп. 2018","Ріпак Озимий-2018",IF(E73="к.з. 2018","Кукурудза на зерно-2018","ФОРМУЛА")))) -> ФОРМУЛА | G73: 0 | H73: 0 | I73: 0 | J73: 0 | K73: 0 | L73: Філія1 | M73: =SUMIFS(План!$F:$F,План!$B:$B,Word!$B73,План!$D:$D,Word!$D73,План!$E:$E,Word!$E73) -> 0 | N73: =SUMIFS(Факт!$F:$F,Факт!$B:$B,Word!$B73,Факт!$D:$D,Word!$D73,Факт!$E:$E,Word!$E73) -> 0 | O73: 0 | P73: =SUMIFS('За добу'!$F:$F,'За добу'!$B:$B,Word!$B73,'За добу'!$D:$D,Word!$D73,'За добу'!$E:$E,Word!$E73) -> 0 | Q73: 0 | R73: Філія2 | S73: =SUMIFS(План!$G:$G,План!$B:$B,Word!$B73,План!$D:$D,Word!$D73,План!$E:$E,Word!$E73) -> 0 | T73: =SUMIFS(Факт!$G:$G,Факт!$B:$B,Word!$B73,Факт!$D:$D,Word!$D73,Факт!$E:$E,Word!$E73) -> 0 | U73: 0 | V73: =SUMIFS('За добу'!$G:$G,'За добу'!$B:$B,Word!$B73,'За добу'!$D:$D,Word!$D73,'За добу'!$E:$E,Word!$E73) -> 0 | W73: 0 | X73: Філія3 | Y73: =SUMIFS(План!$H:$H,План!$B:$B,Word!$B73,План!$D:$D,Word!$D73,План!$E:$E,Word!$E73) -> 0 | Z73: =SUMIFS(Факт!$H:$H,Факт!$B:$B,Word!$B73,Факт!$D:$D,Word!$D73,Факт!$E:$E,Word!$E73) -> 0 | AA73: 0 | AB73: =SUMIFS('За добу'!$H:$H,'За добу'!$B:$B,Word!$B73,'За добу'!$D:$D,Word!$D73,'За добу'!$E:$E,Word!$E73) -> 0 | AC73: 0 | AD73: Філія4 | AE73: =SUMIFS(План!$I:$I,План!$B:$B,Word!$B73,План!$D:$D,Word!$D73,План!$E:$E,Word!$E73) -> 0 | AF73: =SUMIFS(Факт!$I:$I,Факт!$B:$B,Word!$B73,Факт!$D:$D,Word!$D73,Факт!$E:$E,Word!$E73) -> 0 | AG73: 0 | AH73: =SUMIFS('За добу'!$I:$I,'За добу'!$B:$B,Word!$B73,'За добу'!$D:$D,Word!$D73,'За добу'!$E:$E,Word!$E73) -> 0 | AI73: 0 | AJ73: Філія5 | AK73: =SUMIFS(План!$J:$J,План!$B:$B,Word!$B73,План!$D:$D,Word!$D73,План!$E:$E,Word!$E73) -> 0 | AL73: =SUMIFS(Факт!$J:$J,Факт!$B:$B,Word!$B73,Факт!$D:$D,Word!$D73,Факт!$E:$E,Word!$E73) -> 0 | AM73: 0 | AN73: =SUMIFS('За добу'!$J:$J,'За добу'!$B:$B,Word!$B73,'За добу'!$D:$D,Word!$D73,'За добу'!$E:$E,Word!$E73) -> 0 | AO73: 0
B74: ='За добу'!$B74 -> 0 | D74: ='За добу'!$D74 -> 0 | E74: ='За добу'!$E74 -> 0 | F74: ФОРМУЛА | G74: =M74+S74+Y74+AE74+AK74 -> 0 | H74: =N74+T74+Z74+AF74+AL74 -> 0 | I74: =IF(ISERR(H74/G74),0,H74/G74*100) -> 0 | J74: =P74+V74+AB74+AH74+AN74 -> 0 | K74: =G74-H74 -> 0 | L74: Філія1 | M74: =SUMIFS(План!$F:$F,План!$B:$B,Word!$B74,План!$D:$D,Word!$D74,План!$E:$E,Word!$E74) -> 0 | N74: =SUMIFS(Факт!$F:$F,Факт!$B:$B,Word!$B74,Факт!$D:$D,Word!$D74,Факт!$E:$E,Word!$E74) -> 0 | O74: =IF(ISERR(N74/M74),0,N74/M74*100) -> 0 | P74: =SUMIFS('За добу'!$F:$F,'За добу'!$B:$B,Word!$B74,'За добу'!$D:$D,Word!$D74,'За добу'!$E:$E,Word!$E74) -> 0 | Q74: =M74-N74 -> 0 | R74: Філія2 | S74: =SUMIFS(План!$G:$G,План!$B:$B,Word!$B74,План!$D:$D,Word!$D74,План!$E:$E,Word!$E74) -> 0 | T74: =SUMIFS(Факт!$G:$G,Факт!$B:$B,Word!$B74,Факт!$D:$D,Word!$D74,Факт!$E:$E,Word!$E74) -> 0 | U74: =IF(ISERR(T74/S74),0,T74/S74*100) -> 0 | V74: =SUMIFS('За добу'!$G:$G,'За добу'!$B:$B,Word!$B74,'За добу'!$D:$D,Word!$D74,'За добу'!$E:$E,Word!$E74) -> 0 | W74: =S74-T74 -> 0 | X74: Філія3 | Y74: =SUMIFS(План!$H:$H,План!$B:$B,Word!$B74,План!$D:$D,Word!$D74,План!$E:$E,Word!$E74) -> 0 | Z74: =SUMIFS(Факт!$H:$H,Факт!$B:$B,Word!$B74,Факт!$D:$D,Word!$D74,Факт!$E:$E,Word!$E74) -> 0 | AA74: =IF(ISERR(Z74/Y74),0,Z74/Y74*100) -> 0 | AB74: =SUMIFS('За добу'!$H:$H,'За добу'!$B:$B,Word!$B74,'За добу'!$D:$D,Word!$D74,'За добу'!$E:$E,Word!$E74) -> 0 | AC74: =Y74-Z74 -> 0 | AD74: Філія4 | AE74: =SUMIFS(План!$I:$I,План!$B:$B,Word!$B74,План!$D:$D,Word!$D74,План!$E:$E,Word!$E74) -> 0 | AF74: =SUMIFS(Факт!$I:$I,Факт!$B:$B,Word!$B74,Факт!$D:$D,Word!$D74,Факт!$E:$E,Word!$E74) -> 0 | AG74: =IF(ISERR(AF74/AE74),0,AF74/AE74*100) -> 0 | AH74: =SUMIFS('За добу'!$I:$I,'За добу'!$B:$B,Word!$B74,'За добу'!$D:$D,Word!$D74,'За добу'!$E:$E,Word!$E74) -> 0 | AI74: =AE74-AF74 -> 0 | AJ74: Філія5 | AK74: =SUMIFS(План!$J:$J,План!$B:$B,Word!$B74,План!$D:$D,Word!$D74,План!$E:$E,Word!$E74) -> 0 | AL74: =SUMIFS(Факт!$J:$J,Факт!$B:$B,Word!$B74,Факт!$D:$D,Word!$D74,Факт!$E:$E,Word!$E74) -> 0 | AM74: =IF(ISERR(AL74/AK74),0,AL74/AK74*100) -> 0 | AN74: =SUMIFS('За добу'!$J:$J,'За добу'!$B:$B,Word!$B74,'За добу'!$D:$D,Word!$D74,'За добу'!$E:$E,Word!$E74) -> 0 | AO74: =AK74-AL74 -> 0
B75: ='За добу'!$B75 -> 0 | D75: ='За добу'!$D75 -> 0 | E75: ='За добу'!$E75 -> 0 | F75: ФОРМУЛА | G75: 0 | H75: 0 | I75: 0 | J75: 0 | K75: 0 | L75: Філія1 | M75: =SUMIFS(План!$F:$F,План!$B:$B,Word!$B75,План!$D:$D,Word!$D75,План!$E:$E,Word!$E75) -> 0 | N75: =SUMIFS(Факт!$F:$F,Факт!$B:$B,Word!$B75,Факт!$D:$D,Word!$D75,Факт!$E:$E,Word!$E75) -> 0 | O75: 0 | P75: =SUMIFS('За добу'!$F:$F,'За добу'!$B:$B,Word!$B75,'За добу'!$D:$D,Word!$D75,'За добу'!$E:$E,Word!$E75) -> 0 | Q75: 0 | R75: Філія2 | S75: =SUMIFS(План!$G:$G,План!$B:$B,Word!$B75,План!$D:$D,Word!$D75,План!$E:$E,Word!$E75) -> 0 | T75: =SUMIFS(Факт!$G:$G,Факт!$B:$B,Word!$B75,Факт!$D:$D,Word!$D75,Факт!$E:$E,Word!$E75) -> 0 | U75: 0 | V75: =SUMIFS('За добу'!$G:$G,'За добу'!$B:$B,Word!$B75,'За добу'!$D:$D,Word!$D75,'За добу'!$E:$E,Word!$E75) -> 0 | W75: 0 | X75: Філія3 | Y75: =SUMIFS(План!$H:$H,План!$B:$B,Word!$B75,План!$D:$D,Word!$D75,План!$E:$E,Word!$E75) -> 0 | Z75: =SUMIFS(Факт!$H:$H,Факт!$B:$B,Word!$B75,Факт!$D:$D,Word!$D75,Факт!$E:$E,Word!$E75) -> 0 | AA75: 0 | AB75: =SUMIFS('За добу'!$H:$H,'За добу'!$B:$B,Word!$B75,'За добу'!$D:$D,Word!$D75,'За добу'!$E:$E,Word!$E75) -> 0 | AC75: 0 | AD75: Філія4 | AE75: =SUMIFS(План!$I:$I,План!$B:$B,Word!$B75,План!$D:$D,Word!$D75,План!$E:$E,Word!$E75) -> 0 | AF75: =SUMIFS(Факт!$I:$I,Факт!$B:$B,Word!$B75,Факт!$D:$D,Word!$D75,Факт!$E:$E,Word!$E75) -> 0 | AG75: 0 | AH75: =SUMIFS('За добу'!$I:$I,'За добу'!$B:$B,Word!$B75,'За добу'!$D:$D,Word!$D75,'За добу'!$E:$E,Word!$E75) -> 0 | AI75: 0 | AJ75: Філія5 | AK75: =SUMIFS(План!$J:$J,План!$B:$B,Word!$B75,План!$D:$D,Word!$D75,План!$E:$E,Word!$E75) -> 0 | AL75: =SUMIFS(Факт!$J:$J,Факт!$B:$B,Word!$B75,Факт!$D:$D,Word!$D75,Факт!$E:$E,Word!$E75) -> 0 | AM75: 0 | AN75: =SUMIFS('За добу'!$J:$J,'За добу'!$B:$B,Word!$B75,'За добу'!$D:$D,Word!$D75,'За добу'!$E:$E,Word!$E75) -> 0 | AO75: 0
B76: ='За добу'!$B76 -> 0 | D76: ='За добу'!$D76 -> 0 | E76: ='За добу'!$E76 -> 0 | F76: ФОРМУЛА | G76: 0 | H76: 0 | I76: 0 | J76: 0 | K76: 0 | L76: Філія1 | M76: =SUMIFS(План!$F:$F,План!$B:$B,Word!$B76,План!$D:$D,Word!$D76,План!$E:$E,Word!$E76) -> 0 | N76: =SUMIFS(Факт!$F:$F,Факт!$B:$B,Word!$B76,Факт!$D:$D,Word!$D76,Факт!$E:$E,Word!$E76) -> 0 | O76: 0 | P76: =SUMIFS('За добу'!$F:$F,'За добу'!$B:$B,Word!$B76,'За добу'!$D:$D,Word!$D76,'За добу'!$E:$E,Word!$E76) -> 0 | Q76: 0 | R76: Філія2 | S76: =SUMIFS(План!$G:$G,План!$B:$B,Word!$B76,План!$D:$D,Word!$D76,План!$E:$E,Word!$E76) -> 0 | T76: =SUMIFS(Факт!$G:$G,Факт!$B:$B,Word!$B76,Факт!$D:$D,Word!$D76,Факт!$E:$E,Word!$E76) -> 0 | U76: 0 | V76: =SUMIFS('За добу'!$G:$G,'За добу'!$B:$B,Word!$B76,'За добу'!$D:$D,Word!$D76,'За добу'!$E:$E,Word!$E76) -> 0 | W76: 0 | X76: Філія3 | Y76: =SUMIFS(План!$H:$H,План!$B:$B,Word!$B76,План!$D:$D,Word!$D76,План!$E:$E,Word!$E76) -> 0 | Z76: =SUMIFS(Факт!$H:$H,Факт!$B:$B,Word!$B76,Факт!$D:$D,Word!$D76,Факт!$E:$E,Word!$E76) -> 0 | AA76: 0 | AB76: =SUMIFS('За добу'!$H:$H,'За добу'!$B:$B,Word!$B76,'За добу'!$D:$D,Word!$D76,'За добу'!$E:$E,Word!$E76) -> 0 | AC76: 0 | AD76: Філія4 | AE76: =SUMIFS(План!$I:$I,План!$B:$B,Word!$B76,План!$D:$D,Word!$D76,План!$E:$E,Word!$E76) -> 0 | AF76: =SUMIFS(Факт!$I:$I,Факт!$B:$B,Word!$B76,Факт!$D:$D,Word!$D76,Факт!$E:$E,Word!$E76) -> 0 | AG76: 0 | AH76: =SUMIFS('За добу'!$I:$I,'За добу'!$B:$B,Word!$B76,'За добу'!$D:$D,Word!$D76,'За добу'!$E:$E,Word!$E76) -> 0 | AI76: 0 | AJ76: Філія5 | AK76: =SUMIFS(План!$J:$J,План!$B:$B,Word!$B76,План!$D:$D,Word!$D76,План!$E:$E,Word!$E76) -> 0 | AL76: =SUMIFS(Факт!$J:$J,Факт!$B:$B,Word!$B76,Факт!$D:$D,Word!$D76,Факт!$E:$E,Word!$E76) -> 0 | AM76: 0 | AN76: =SUMIFS('За добу'!$J:$J,'За добу'!$B:$B,Word!$B76,'За добу'!$D:$D,Word!$D76,'За добу'!$E:$E,Word!$E76) -> 0 | AO76: 0
B77: ='За добу'!$B77 -> 0 | D77: ='За добу'!$D77 -> 0 | E77: ='За добу'!$E77 -> 0 | F77: ФОРМУЛА | G77: 0 | H77: 0 | I77: 0 | J77: 0 | K77: 0 | L77: Філія1 | M77: =SUMIFS(План!$F:$F,План!$B:$B,Word!$B77,План!$D:$D,Word!$D77,План!$E:$E,Word!$E77) -> 0 | N77: =SUMIFS(Факт!$F:$F,Факт!$B:$B,Word!$B77,Факт!$D:$D,Word!$D77,Факт!$E:$E,Word!$E77) -> 0 | O77: 0 | P77: =SUMIFS('За добу'!$F:$F,'За добу'!$B:$B,Word!$B77,'За добу'!$D:$D,Word!$D77,'За добу'!$E:$E,Word!$E77) -> 0 | Q77: 0 | R77: Філія2 | S77: =SUMIFS(План!$G:$G,План!$B:$B,Word!$B77,План!$D:$D,Word!$D77,План!$E:$E,Word!$E77) -> 0 | T77: =SUMIFS(Факт!$G:$G,Факт!$B:$B,Word!$B77,Факт!$D:$D,Word!$D77,Факт!$E:$E,Word!$E77) -> 0 | U77: 0 | V77: =SUMIFS('За добу'!$G:$G,'За добу'!$B:$B,Word!$B77,'За добу'!$D:$D,Word!$D77,'За добу'!$E:$E,Word!$E77) -> 0 | W77: 0 | X77: Філія3 | Y77: =SUMIFS(План!$H:$H,План!$B:$B,Word!$B77,План!$D:$D,Word!$D77,План!$E:$E,Word!$E77) -> 0 | Z77: =SUMIFS(Факт!$H:$H,Факт!$B:$B,Word!$B77,Факт!$D:$D,Word!$D77,Факт!$E:$E,Word!$E77) -> 0 | AA77: 0 | AB77: =SUMIFS('За добу'!$H:$H,'За добу'!$B:$B,Word!$B77,'За добу'!$D:$D,Word!$D77,'За добу'!$E:$E,Word!$E77) -> 0 | AC77: 0 | AD77: Філія4 | AE77: =SUMIFS(План!$I:$I,План!$B:$B,Word!$B77,План!$D:$D,Word!$D77,План!$E:$E,Word!$E77) -> 0 | AF77: =SUMIFS(Факт!$I:$I,Факт!$B:$B,Word!$B77,Факт!$D:$D,Word!$D77,Факт!$E:$E,Word!$E77) -> 0 | AG77: 0 | AH77: =SUMIFS('За добу'!$I:$I,'За добу'!$B:$B,Word!$B77,'За добу'!$D:$D,Word!$D77,'За добу'!$E:$E,Word!$E77) -> 0 | AI77: 0 | AJ77: Філія5 | AK77: =SUMIFS(План!$J:$J,План!$B:$B,Word!$B77,План!$D:$D,Word!$D77,План!$E:$E,Word!$E77) -> 0 | AL77: =SUMIFS(Факт!$J:$J,Факт!$B:$B,Word!$B77,Факт!$D:$D,Word!$D77,Факт!$E:$E,Word!$E77) -> 0 | AM77: 0 | AN77: =SUMIFS('За добу'!$J:$J,'За добу'!$B:$B,Word!$B77,'За добу'!$D:$D,Word!$D77,'За добу'!$E:$E,Word!$E77) -> 0 | AO77: 0
B78: ='За добу'!$B78 -> 0 | D78: ='За добу'!$D78 -> 0 | E78: ='За добу'!$E78 -> 0 | F78: ФОРМУЛА | G78: 0 | H78: 0 | I78: 0 | J78: 0 | K78: 0 | L78: Філія1 | M78: =SUMIFS(План!$F:$F,План!$B:$B,Word!$B78,План!$D:$D,Word!$D78,План!$E:$E,Word!$E78) -> 0 | N78: =SUMIFS(Факт!$F:$F,Факт!$B:$B,Word!$B78,Факт!$D:$D,Word!$D78,Факт!$E:$E,Word!$E78) -> 0 | O78: 0 | P78: =SUMIFS('За добу'!$F:$F,'За добу'!$B:$B,Word!$B78,'За добу'!$D:$D,Word!$D78,'За добу'!$E:$E,Word!$E78) -> 0 | Q78: 0 | R78: Філія2 | S78: =SUMIFS(План!$G:$G,План!$B:$B,Word!$B78,План!$D:$D,Word!$D78,План!$E:$E,Word!$E78) -> 0 | T78: =SUMIFS(Факт!$G:$G,Факт!$B:$B,Word!$B78,Факт!$D:$D,Word!$D78,Факт!$E:$E,Word!$E78) -> 0 | U78: 0 | V78: =SUMIFS('За добу'!$G:$G,'За добу'!$B:$B,Word!$B78,'За добу'!$D:$D,Word!$D78,'За добу'!$E:$E,Word!$E78) -> 0 | W78: 0 | X78: Філія3 | Y78: =SUMIFS(План!$H:$H,План!$B:$B,Word!$B78,План!$D:$D,Word!$D78,План!$E:$E,Word!$E78) -> 0 | Z78: =SUMIFS(Факт!$H:$H,Факт!$B:$B,Word!$B78,Факт!$D:$D,Word!$D78,Факт!$E:$E,Word!$E78) -> 0 | AA78: 0 | AB78: =SUMIFS('За добу'!$H:$H,'За добу'!$B:$B,Word!$B78,'За добу'!$D:$D,Word!$D78,'За добу'!$E:$E,Word!$E78) -> 0 | AC78: 0 | AD78: Філія4 | AE78: =SUMIFS(План!$I:$I,План!$B:$B,Word!$B78,План!$D:$D,Word!$D78,План!$E:$E,Word!$E78) -> 0 | AF78: =SUMIFS(Факт!$I:$I,Факт!$B:$B,Word!$B78,Факт!$D:$D,Word!$D78,Факт!$E:$E,Word!$E78) -> 0 | AG78: 0 | AH78: =SUMIFS('За добу'!$I:$I,'За добу'!$B:$B,Word!$B78,'За добу'!$D:$D,Word!$D78,'За добу'!$E:$E,Word!$E78) -> 0 | AI78: 0 | AJ78: Філія5 | AK78: =SUMIFS(План!$J:$J,План!$B:$B,Word!$B78,План!$D:$D,Word!$D78,План!$E:$E,Word!$E78) -> 0 | AL78: =SUMIFS(Факт!$J:$J,Факт!$B:$B,Word!$B78,Факт!$D:$D,Word!$D78,Факт!$E:$E,Word!$E78) -> 0 | AM78: 0 | AN78: =SUMIFS('За добу'!$J:$J,'За добу'!$B:$B,Word!$B78,'За добу'!$D:$D,Word!$D78,'За добу'!$E:$E,Word!$E78) -> 0 | AO78: 0
A80: =IF($B80<>"",$A79+1,"") -> 

Sheet План
A1: № | B1: Робота | D1: Вид | E1: Культура | F1: Філія1 | G1: Філія2 | H1: Філія3 | I1: Філія4 | J1: Філія5 | L1: Всього
A2: 1 | B2: Внесення КАСу | D2: Перше внесення по м.т.г. | E2: б.т. 2018 | G2: 245.1 | H2: 129.42 | L2: 374.52
A3: 2 | B3: Внесення КАСу | D3: Перше внесення по м.т.г. | E3: оз.пш. 2018 | F3: 1002.1 | G3: 1123.31 | H3: 1642.09 | I3: 1150.5 | J3: 2778 | L3: 7696
A4: 3 | B4: Внесення КАСу | D4: Перше внесення по м.т.г. | E4: оз.ріп. 2018 | F4: 183 | G4: 189.91 | H4: 134.16 | I4: 295 | J4: 504 | L4: 1306.07
A5: 4 | B5: Внесення м/д (сульфат-магнію) | D5: Перше підживлення по м.т.г. | E5: оз.пш. 2018 | F5: 1002.1 | G5: 1123.31 | H5: 1642.09 | I5: 1150.5 | J5: 2778 | L5: 7696
A6: 5 | B6: Внесення м/д (сульфат-магнію) | D6: Перше підживлення по м.т.г. | E6: оз.ріп. 2018 | F6: 183 | G6: 189.91 | H6: 134.16 | I6: 295 | J6: 504 | L6: 1306.07
A7: 6 | B7: Внесення м/д (сульфат-магнію) | D7: Перше підживлення по м.т.г. | E7: б.т. 2018 | G7: 245.1 | H7: 129.42 | L7: 374.52
A8: 7 | B8: Внесення (NРК 10-26-26) | D8: Внес. м.д. основне | E8: к.з. 2018 | F8: 1831.54 | G8: 1865.75 | H8: 1693.34 | I8: 1055.12 | J8: 3028 | L8: 9473.75
A9: 8 | B9: 0 | D9: 0 | E9: 0 | L9: 0
A10: 9 | B10: 0 | D10: 0 | E10: 0 | L10: 0
A11: 10 | B11: 0 | D11: 0 | E11: 0 | L11: 0
A12: 11 | B12: 0 | D12: 0 | E12: 0 | L12: 0
A13: 12 | B13: 0 | D13: 0 | E13: 0 | L13: 0
A14: 13 | B14: 0 | D14: 0 | E14: 0 | L14: 0
A15: 14 | B15: 0 | D15: 0 | E15: 0 | L15: 0
A16: 15 | B16: 0 | D16: 0 | E16: 0 | L16: 0
A17: 16 | B17: 0 | D17: 0 | E17: 0 | L17: 0
A18: 17 | B18: 0 | D18: 0 | E18: 0 | L18: 0
A19: 18 | B19: 0 | D19: 0 | E19: 0 | L19: 0
A20: 19 | B20: 0 | D20: 0 | E20: 0 | L20: 0
A21: 20 | B21: 0 | D21: 0 | E21: 0 | L21: 0
A22: 21 | B22: 0 | D22: 0 | E22: 0 | L22: 0
A23: 22 | B23: 0 | D23: 0 | E23: 0 | L23: 0
A24: 23 | B24: 0 | D24: 0 | E24: 0 | L24: 0
A25: 24 | B25: 0 | D25: 0 | E25: 0 | L25: 0
A26: 25 | B26: 0 | D26: 0 | E26: 0 | L26: 0
A27: 26 | B27: 0 | D27: 0 | E27: 0 | L27: 0
A28: 27 | B28: 0 | D28: 0 | E28: 0 | L28: 0
A29: 28 | B29: 0 | D29: 0 | E29: 0 | L29: 0
A30: 29 | B30: 0 | D30: 0 | E30: 0 | L30: 0
A31: 30 | B31: 0 | D31: 0 | E31: 0 | L31: 0
A32: 31 | B32: 0 | D32: 0 | E32: 0 | L32: 0
A33: 32 | B33: 0 | D33: 0 | E33: 0 | L33: 0
A34: 33 | B34: 0 | D34: 0 | E34: 0 | L34: 0
A35: 34 | B35: 0 | D35: 0 | E35: 0 | L35: 0
A36: 35 | B36: 0 | D36: 0 | E36: 0 | L36: 0
A37: 36 | B37: 0 | D37: 0 | E37: 0 | L37: 0
A38: 37 | B38: 0 | D38: 0 | E38: 0 | L38: 0
A39: 38 | B39: 0 | D39: 0 | E39: 0 | L39: 0
A40: 39 | B40: 0 | D40: 0 | E40: 0 | L40: 0
A41: 40 | B41: 0 | D41: 0 | E41: 0 | L41: 0
A42: 41 | B42: 0 | D42: 0 | E42: 0 | L42: 0
A43: 42 | B43: 0 | D43: 0 | E43: 0 | L43: 0
A44: 43 | B44: 0 | D44: 0 | E44: 0 | L44: 0
A45: 44 | B45: 0 | D45: 0 | E45: 0 | L45: 0
A46: 45 | B46: 0 | D46: 0 | E46: 0 | L46: 0
A47: 46 | B47: 0 | D47: 0 | E47: 0 | L47: 0
A48: 47 | B48: 0 | D48: 0 | E48: 0 | L48: 0
A49: 48 | B49: 0 | D49: 0 | E49: 0 | L49: 0
A50: 49 | B50: 0 | D50: 0 | E50: 0 | L50: 0
A51: 50 | B51: 0 | D51: 0 | E51: 0 | L51: 0
A52: 51 | B52: 0 | D52: 0 | E52: 0 | L52: 0
A53: 52 | B53: 0 | D53: 0 | E53: 0 | L53: 0
A54: 53 | B54: 0 | D54: 0 | E54: 0 | L54: 0
A55: 54 | B55: 0 | D55: 0 | E55: 0 | L55: 0
A56: 55 | B56: 0 | D56: 0 | E56: 0 | L56: 0
A57: 56 | B57: 0 | D57: 0 | E57: 0 | L57: 0
A58: 57 | B58: 0 | D58: 0 | E58: 0 | L58: 0
A59: 58 | B59: 0 | D59: 0 | E59: 0 | L59: 0
A60: 59 | B60: 0 | D60: 0 | E60: 0 | L60: 0
A61: 60 | B61: 0 | D61: 0 | E61: 0 | L61: 0
A62: 61 | B62: 0 | D62: 0 | E62: 0 | L62: 0
A63: 62 | B63: 0 | D63: 0 | E63: 0 | L63: 0
A64: 63 | B64: 0 | D64: 0 | E64: 0 | L64: 0
A65: 64 | B65: 0 | D65: 0 | E65: 0 | L65: 0
A66: 65 | B66: 0 | D66: 0 | E66: 0 | L66: 0
A67: 66 | B67: 0 | D67: 0 | E67: 0 | L67: 0
A68: 67 | B68: 0 | D68: 0 | E68: 0 | L68: 0
A69: 68 | B69: 0 | D69: 0 | E69: 0 | L69: 0
A70: 69 | B70: 0 | D70: 0 | E70: 0 | L70: 0
A71: 70 | B71: 0 | D71: 0 | E71: 0 | L71: 0
A72: 71 | B72: 0 | D72: 0 | E72: 0 | L72: 0
A73: 72 | B73: 0 | D73: 0 | E73: 0 | L73: 0
A74: 73 | B74: 0 | D74: 0 | E74: 0 | L74: 0
A75: 74 | B75: 0 | D75: 0 | E75: 0 | L75: 0
A76: 75 | B76: 0 | D76: 0 | E76: 0 | L76: 0
A77: 76 | B77: 0 | D77: 0 | E77: 0 | L77: 0
A78: 77 | B78: 0 | D78: 0 | E78: 0 | L78: 0
A79: 78 | B79: 0 | D79: 0 | E79: 0 | L79: 0
A80: 79 | B80: 0 | D80: 0 | E80: 0 | L80: 0
A81: 80 | B81: 0 | D81: 0 | E81: 0 | L81: 0
A82: 81 | B82: 0 | D82: 0 | E82: 0 | L82: 0
A83: 82 | B83: 0 | D83: 0 | E83: 0 | L83: 0
A84: 83 | B84: 0 | D84: 0 | E84: 0 | L84: 0
A85: 84 | B85: 0 | D85: 0 | E85: 0 | L85: 0
A86: 85 | B86: 0 | D86: 0 | E86: 0 | L86: 0
A87: 86 | B87: 0 | D87: 0 | E87: 0 | L87: 0
A88: 87 | B88: 0 | D88: 0 | E88: 0 | L88: 0
A89: 88 | B89: 0 | D89: 0 | E89: 0 | L89: 0
A90: 89 | B90: 0 | D90: 0 | E90: 0 | L90: 0
A91: 90 | B91: 0 | D91: 0 | E91: 0 | L91: 0
A92: 91 | B92: 0 | D92: 0 | E92: 0 | L92: 0
A93: 92 | B93: 0 | D93: 0 | E93: 0 | L93: 0
A94: 93 | B94: 0 | D94: 0 | E94: 0 | L94: 0
A95: 94 | B95: 0 | D95: 0 | E95: 0 | L95: 0
A96: 95 | B96: 0 | D96: 0 | E96: 0 | L96: 0
A97: 96 | B97: 0 | D97: 0 | E97: 0 | L97: 0
A98: 97 | B98: 0 | D98: 0 | E98: 0 | L98: 0
A99: 98 | B99: 0 | D99: 0 | E99: 0 | L99: 0
A100: 99 | B100: 0 | D100: 0 | E100: 0 | L100: 0

Sheet Факт
A1: № | B1: Робота | D1: Вид | E1: Філія1 | F1: Філія2 | G1: Філія3 | H1: Філія4 | I1: Філія5 | J1: Всього | L1: Всього = | M1: 14906.45 | O1: 14906.45
A2: 1 | B2: Внесення КАСу | D2: Перше внесення по м.т.г. | E2: б.т. 2018 | F2: 0 | G2: 245.1 | H2: 129.42 | I2: 0 | J2: 0 | L2: Перевірка | M2: 13777.65 | N2: Помилка
A3: 2 | B3: Внесення КАСу | D3: Перше внесення по м.т.г. | E3: оз.пш. 2018 | F3: 1008.2 | G3: 1125.11 | H3: 1641.97 | I3: 1117.6 | J3: 478 | L3: 2018-04-02 | M3: 1128.8
A4: 3 | B4: Внесення КАСу | D4: Перше внесення по м.т.г. | E4: оз.ріп. 2018 | F4: 183 | G4: 189.91 | H4: 133.64 | I4: 293.5 | J4: 0
A5: 4 | B5: Внесення м/д (сульфат-магнію) | D5: Перше підживлення по м.т.г. | E5: оз.пш. 2018 | F5: 974.1 | G5: 1123.31 | H5: 1641.57 | I5: 926 | J5: 384
A6: 5 | B6: Внесення м/д (сульфат-магнію) | D6: Перше підживлення по м.т.г. | E6: оз.ріп. 2018 | F6: 125 | G6: 189.91 | H6: 134.16 | I6: 295 | J6: 154
A7: 6 | B7: Внесення м/д (сульфат-магнію) | D7: Перше підживлення по м.т.г. | E7: б.т. 2018 | F7: 0 | G7: 244.95 | H7: 127.09 | I7: 0 | J7: 0
A8: 7 | B8: Внесення (NРК 10-26-26) | D8: Внес. м.д. основне | E8: к.з. 2018 | F8: 64 | G8: 876.98 | H8: 1100.93 | I8: 0 | J8: 0
A9: 8 | B9: 0 | D9: 0 | E9: 0 | F9: 0 | G9: 0 | H9: 0 | I9: 0 | J9: 0
A10: 9 | B10: 0 | D10: 0 | E10: 0 | F10: 0 | G10: 0 | H10: 0 | I10: 0 | J10: 0
A11: 10 | B11: 0 | D11: 0 | E11: 0 | F11: 0 | G11: 0 | H11: 0 | I11: 0 | J11: 0
A12: 11 | B12: 0 | D12: 0 | E12: 0 | F12: 0 | G12: 0 | H12: 0 | I12: 0 | J12: 0
A13: 12 | B13: 0 | D13: 0 | E13: 0 | F13: 0 | G13: 0 | H13: 0 | I13: 0 | J13: 0
A14: 13 | B14: 0 | D14: 0 | E14: 0 | F14: 0 | G14: 0 | H14: 0 | I14: 0 | J14: 0
A15: 14 | B15: 0 | D15: 0 | E15: 0 | F15: 0 | G15: 0 | H15: 0 | I15: 0 | J15: 0
A16: 15 | B16: 0 | D16: 0 | E16: 0 | F16: 0 | G16: 0 | H16: 0 | I16: 0 | J16: 0
A17: 16 | B17: 0 | D17: 0 | E17: 0 | F17: 0 | G17: 0 | H17: 0 | I17: 0 | J17: 0
A18: 17 | B18: 0 | D18: 0 | E18: 0 | F18: 0 | G18: 0 | H18: 0 | I18: 0 | J18: 0
A19: 18 | B19: 0 | D19: 0 | E19: 0 | F19: 0 | G19: 0 | H19: 0 | I19: 0 | J19: 0
A20: 19 | B20: 0 | D20: 0 | E20: 0 | F20: 0 | G20: 0 | H20: 0 | I20: 0 | J20: 0
A21: 20 | B21: 0 | D21: 0 | E21: 0 | F21: 0 | G21: 0 | H21: 0 | I21: 0 | J21: 0
A22: 21 | B22: 0 | D22: 0 | E22: 0 | F22: 0 | G22: 0 | H22: 0 | I22: 0 | J22: 0
A23: 22 | B23: 0 | D23: 0 | E23: 0 | F23: 0 | G23: 0 | H23: 0 | I23: 0 | J23: 0
A24: 23 | B24: 0 | D24: 0 | E24: 0 | F24: 0 | G24: 0 | H24: 0 | I24: 0 | J24: 0
A25: 24 | B25: 0 | D25: 0 | E25: 0 | F25: 0 | G25: 0 | H25: 0 | I25: 0 | J25: 0
A26: 25 | B26: 0 | D26: 0 | E26: 0 | F26: 0 | G26: 0 | H26: 0 | I26: 0 | J26: 0
A27: 26 | B27: 0 | D27: 0 | E27: 0 | F27: 0 | G27: 0 | H27: 0 | I27: 0 | J27: 0
A28: 27 | B28: 0 | D28: 0 | E28: 0 | F28: 0 | G28: 0 | H28: 0 | I28: 0 | J28: 0
A29: 28 | B29: 0 | D29: 0 | E29: 0 | F29: 0 | G29: 0 | H29: 0 | I29: 0 | J29: 0
A30: 29 | B30: 0 | D30: 0 | E30: 0 | F30: 0 | G30: 0 | H30: 0 | I30: 0 | J30: 0
A31: 30 | B31: 0 | D31: 0 | E31: 0 | F31: 0 | G31: 0 | H31: 0 | I31: 0 | J31: 0
A32: 31 | B32: 0 | D32: 0 | E32: 0 | F32: 0 | G32: 0 | H32: 0 | I32: 0 | J32: 0
A33: 32 | B33: 0 | D33: 0 | E33: 0 | F33: 0 | G33: 0 | H33: 0 | I33: 0 | J33: 0
A34: 33 | B34: 0 | D34: 0 | E34: 0 | F34: 0 | G34: 0 | H34: 0 | I34: 0 | J34: 0
A35: 34 | B35: 0 | D35: 0 | E35: 0 | F35: 0 | G35: 0 | H35: 0 | I35: 0 | J35: 0
A36: 35 | B36: 0 | D36: 0 | E36: 0 | F36: 0 | G36: 0 | H36: 0 | I36: 0 | J36: 0
A37: 36 | B37: 0 | D37: 0 | E37: 0 | F37: 0 | G37: 0 | H37: 0 | I37: 0 | J37: 0
A38: 37 | B38: 0 | D38: 0 | E38: 0 | F38: 0 | G38: 0 | H38: 0 | I38: 0 | J38: 0
A39: 38 | B39: 0 | D39: 0 | E39: 0 | F39: 0 | G39: 0 | H39: 0 | I39: 0 | J39: 0
A40: 39 | B40: 0 | D40: 0 | E40: 0 | F40: 0 | G40: 0 | H40: 0 | I40: 0 | J40: 0
A41: 40 | B41: 0 | D41: 0 | E41: 0 | F41: 0 | G41: 0 | H41: 0 | I41: 0 | J41: 0
A42: 41 | B42: 0 | D42: 0 | E42: 0 | F42: 0 | G42: 0 | H42: 0 | I42: 0 | J42: 0
A43: 42 | B43: 0 | D43: 0 | E43: 0 | F43: 0 | G43: 0 | H43: 0 | I43: 0 | J43: 0
A44: 43 | B44: 0 | D44: 0 | E44: 0 | F44: 0 | G44: 0 | H44: 0 | I44: 0 | J44: 0
A45: 44 | B45: 0 | D45: 0 | E45: 0 | F45: 0 | G45: 0 | H45: 0 | I45: 0 | J45: 0
A46: 45 | B46: 0 | D46: 0 | E46: 0 | F46: 0 | G46: 0 | H46: 0 | I46: 0 | J46: 0
A47: 46 | B47: 0 | D47: 0 | E47: 0 | F47: 0 | G47: 0 | H47: 0 | I47: 0 | J47: 0
A48: 47 | B48: 0 | D48: 0 | E48: 0 | F48: 0 | G48: 0 | H48: 0 | I48: 0 | J48: 0
A49: 48 | B49: 0 | D49: 0 | E49: 0 | F49: 0 | G49: 0 | H49: 0 | I49: 0 | J49: 0
A50: 49 | B50: 0 | D50: 0 | E50: 0 | F50: 0 | G50: 0 | H50: 0 | I50: 0 | J50: 0
A51: 50 | B51: 0 | D51: 0 | E51: 0 | F51: 0 | G51: 0 | H51: 0 | I51: 0 | J51: 0
A52: 51 | B52: 0 | D52: 0 | E52: 0 | F52: 0 | G52: 0 | H52: 0 | I52: 0 | J52: 0
A53: 52 | B53: 0 | D53: 0 | E53: 0 | F53: 0 | G53: 0 | H53: 0 | I53: 0 | J53: 0
A54: 53 | B54: 0 | D54: 0 | E54: 0 | F54: 0 | G54: 0 | H54: 0 | I54: 0 | J54: 0
A55: 54 | B55: 0 | D55: 0 | E55: 0 | F55: 0 | G55: 0 | H55: 0 | I55: 0 | J55: 0
A56: 55 | B56: 0 | D56: 0 | E56: 0 | F56: 0 | G56: 0 | H56: 0 | I56: 0 | J56: 0
A57: 56 | B57: 0 | D57: 0 | E57: 0 | F57: 0 | G57: 0 | H57: 0 | I57: 0 | J57: 0
A58: 57 | B58: 0 | D58: 0 | E58: 0 | F58: 0 | G58: 0 | H58: 0 | I58: 0 | J58: 0
A59: 58 | B59: 0 | D59: 0 | E59: 0 | F59: 0 | G59: 0 | H59: 0 | I59: 0 | J59: 0
A60: 59 | B60: 0 | D60: 0 | E60: 0 | F60: 0 | G60: 0 | H60: 0 | I60: 0 | J60: 0
A61: 60 | B61: 0 | D61: 0 | E61: 0 | F61: 0 | G61: 0 | H61: 0 | I61: 0 | J61: 0
A62: 61 | B62: 0 | D62: 0 | E62: 0 | F62: 0 | G62: 0 | H62: 0 | I62: 0 | J62: 0
A63: 62 | B63: 0 | D63: 0 | E63: 0 | F63: 0 | G63: 0 | H63: 0 | I63: 0 | J63: 0
A64: 63 | B64: 0 | D64: 0 | E64: 0 | F64: 0 | G64: 0 | H64: 0 | I64: 0 | J64: 0
A65: 64 | B65: 0 | D65: 0 | E65: 0 | F65: 0 | G65: 0 | H65: 0 | I65: 0 | J65: 0
A66: 65 | B66: 0 | D66: 0 | E66: 0 | F66: 0 | G66: 0 | H66: 0 | I66: 0 | J66: 0
A67: 66 | B67: 0 | D67: 0 | E67: 0 | F67: 0 | G67: 0 | H67: 0 | I67: 0 | J67: 0
A68: 67 | B68: 0 | D68: 0 | E68: 0 | F68: 0 | G68: 0 | H68: 0 | I68: 0 | J68: 0
A69: 68 | B69: 0 | D69: 0 | E69: 0 | F69: 0 | G69: 0 | H69: 0 | I69: 0 | J69: 0
A70: 69 | B70: 0 | D70: 0 | E70: 0 | F70: 0 | G70: 0 | H70: 0 | I70: 0 | J70: 0
A71: 70 | B71: 0 | D71: 0 | E71: 0 | F71: 0 | G71: 0 | H71: 0 | I71: 0 | J71: 0
A72: 71 | B72: 0 | D72: 0 | E72: 0 | F72: 0 | G72: 0 | H72: 0 | I72: 0 | J72: 0
A73: 72 | B73: 0 | D73: 0 | E73: 0 | F73: 0 | G73: 0 | H73: 0 | I73: 0 | J73: 0
A74: 73 | B74: 0 | D74: 0 | E74: 0 | F74: 0 | G74: 0 | H74: 0 | I74: 0 | J74: 0
A75: 74 | B75: 0 | D75: 0 | E75: 0 | F75: 0 | G75: 0 | H75: 0 | I75: 0 | J75: 0
A76: 75 | B76: 0 | D76: 0 | E76: 0 | F76: 0 | G76: 0 | H76: 0 | I76: 0 | J76: 0
A77: 76 | B77: 0 | D77: 0 | E77: 0 | F77: 0 | G77: 0 | H77: 0 | I77: 0 | J77: 0
A78: 77 | B78: 0 | D78: 0 | E78: 0 | F78: 0 | G78: 0 | H78: 0 | I78: 0 | J78: 0
A79: 78 | B79: 0 | D79: 0 | E79: 0 | F79: 0 | G79: 0 | H79: 0 | I79: 0 | J79: 0
A80: 79 | B80: 0 | D80: 0 | E80: 0 | F80: 0 | G80: 0 | H80: 0 | I80: 0 | J80: 0
A81: 80 | B81: 0 | D81: 0 | E81: 0 | F81: 0 | G81: 0 | H81: 0 | I81: 0 | J81: 0
A82: 81 | B82: 0 | D82: 0 | E82: 0 | F82: 0 | G82: 0 | H82: 0 | I82: 0 | J82: 0
A83: 82 | B83: 0 | D83: 0 | E83: 0 | F83: 0 | G83: 0 | H83: 0 | I83: 0 | J83: 0
A84: 83 | B84: 0 | D84: 0 | E84: 0 | F84: 0 | G84: 0 | H84: 0 | I84: 0 | J84: 0
A85: 84 | B85: 0 | D85: 0 | E85: 0 | F85: 0 | G85: 0 | H85: 0 | I85: 0 | J85: 0
A86: 85 | B86: 0 | D86: 0 | E86: 0 | F86: 0 | G86: 0 | H86: 0 | I86: 0 | J86: 0
A87: 86 | B87: 0 | D87: 0 | E87: 0 | F87: 0 | G87: 0 | H87: 0 | I87: 0 | J87: 0
A88: 87 | B88: 0 | D88: 0 | E88: 0 | F88: 0 | G88: 0 | H88: 0 | I88: 0 | J88: 0
A89: 88 | B89: 0 | D89: 0 | E89: 0 | F89: 0 | G89: 0 | H89: 0 | I89: 0 | J89: 0
A90: 89 | B90: 0 | D90: 0 | E90: 0 | F90: 0 | G90: 0 | H90: 0 | I90: 0 | J90: 0
A91: 90 | B91: 0 | D91: 0 | E91: 0 | F91: 0 | G91: 0 | H91: 0 | I91: 0 | J91: 0
A92: 91 | B92: 0 | D92: 0 | E92: 0 | F92: 0 | G92: 0 | H92: 0 | I92: 0 | J92: 0
A93: 92 | B93: 0 | D93: 0 | E93: 0 | F93: 0 | G93: 0 | H93: 0 | I93: 0 | J93: 0
A94: 93 | B94: 0 | D94: 0 | E94: 0 | F94: 0 | G94: 0 | H94: 0 | I94: 0 | J94: 0
A95: 94 | B95: 0 | D95: 0 | E95: 0 | F95: 0 | G95: 0 | H95: 0 | I95: 0 | J95: 0
A96: 95 | B96: 0 | D96: 0 | E96: 0 | F96: 0 | G96: 0 | H96: 0 | I96: 0 | J96: 0
A97: 96 | B97: 0 | D97: 0 | E97: 0 | F97: 0 | G97: 0 | H97: 0 | I97: 0 | J97: 0
A98: 97 | B98: 0 | D98: 0 | E98: 0 | F98: 0 | G98: 0 | H98: 0 | I98: 0 | J98: 0
A99: 98 | B99: 0 | D99: 0 | E99: 0 | F99: 0 | G99: 0 | H99: 0 | I99: 0 | J99: 0
A100: 99 | B100: 0 | D100: 0 | E100: 0 | F100: 0 | G100: 0 | H100: 0 | I100: 0 | J100: 0

Sheet За добу
A1: № | B1: Робота | C1: 2018-04-02 | D1: Вид | E1: Культура | F1: Філія1 | G1: Філія2 | H1: Філія3 | I1: Філія4 | J1: Філія5 | L1: Всього | M1: 851 | N1: - | O1: Перевірка з опер звітом
A2: 1 | B2: Внесення КАСу | D2: Перше внесення по м.т.г. | E2: б.т. 2018 | F2: 0 | G2: 0 | H2: 0 | I2: 0 | J2: 0
A3: 2 | B3: Внесення КАСу | D3: Перше внесення по м.т.г. | E3: оз.пш. 2018 | F3: 9 | G3: 0 | H3: 0 | I3: 0 | J3: 304
A4: 3 | B4: Внесення КАСу | D4: Перше внесення по м.т.г. | E4: оз.ріп. 2018 | F4: 0 | G4: 0 | H4: 0 | I4: 0 | J4: 0
A5: 4 | B5: Внесення м/д (сульфат-магнію) | D5: Перше підживлення по м.т.г. | E5: оз.пш. 2018 | F5: 0 | G5: 0 | H5: 0 | I5: 0 | J5: 384
A6: 5 | B6: Внесення м/д (сульфат-магнію) | D6: Перше підживлення по м.т.г. | E6: оз.ріп. 2018 | F6: 0 | G6: 0 | H6: 0 | I6: 0 | J6: 154
A7: 6 | B7: Внесення м/д (сульфат-магнію) | D7: Перше підживлення по м.т.г. | E7: б.т. 2018 | F7: 0 | G7: 0 | H7: 0 | I7: 0 | J7: 0 | N7: - | O7: Сюди копіювати нові роботи (І ТІЛЬКИ СЮДИ)
A8: 7 | B8: Внесення (NРК 10-26-26) | D8: Внес. м.д. основне | E8: к.з. 2018 | F8: 0 | G8: 0 | H8: 0 | I8: 0 | J8: 0
F9: 0 | G9: 0 | H9: 0 | I9: 0 | J9: 0
F10: 0 | G10: 0 | H10: 0 | I10: 0 | J10: 0
F11: 0 | G11: 0 | H11: 0 | I11: 0 | J11: 0
F12: 0 | G12: 0 | H12: 0 | I12: 0 | J12: 0
F13: 0 | G13: 0 | H13: 0 | I13: 0 | J13: 0
F14: 0 | G14: 0 | H14: 0 | I14: 0 | J14: 0
F15: 0 | G15: 0 | H15: 0 | I15: 0 | J15: 0
F16: 0 | G16: 0 | H16: 0 | I16: 0 | J16: 0
F17: 0 | G17: 0 | H17: 0 | I17: 0 | J17: 0
F18: 0 | G18: 0 | H18: 0 | I18: 0 | J18: 0
F19: 0 | G19: 0 | H19: 0 | I19: 0 | J19: 0
F20: 0 | G20: 0 | H20: 0 | I20: 0 | J20: 0
F21: 0 | G21: 0 | H21: 0 | I21: 0 | J21: 0
F22: 0 | G22: 0 | H22: 0 | I22: 0 | J22: 0
F23: 0 | G23: 0 | H23: 0 | I23: 0 | J23: 0
F24: 0 | G24: 0 | H24: 0 | I24: 0 | J24: 0
F25: 0 | G25: 0 | H25: 0 | I25: 0 | J25: 0
F26: 0 | G26: 0 | H26: 0 | I26: 0 | J26: 0
F27: 0 | G27: 0 | H27: 0 | I27: 0 | J27: 0
F28: 0 | G28: 0 | H28: 0 | I28: 0 | J28: 0
F29: 0 | G29: 0 | H29: 0 | I29: 0 | J29: 0
F30: 0 | G30: 0 | H30: 0 | I30: 0 | J30: 0
F31: 0 | G31: 0 | H31: 0 | I31: 0 | J31: 0
F32: 0 | G32: 0 | H32: 0 | I32: 0 | J32: 0
F33: 0 | G33: 0 | H33: 0 | I33: 0 | J33: 0
F34: 0 | G34: 0 | H34: 0 | I34: 0 | J34: 0
F35: 0 | G35: 0 | H35: 0 | I35: 0 | J35: 0
F36: 0 | G36: 0 | H36: 0 | I36: 0 | J36: 0
F37: 0 | G37: 0 | H37: 0 | I37: 0 | J37: 0
F38: 0 | G38: 0 | H38: 0 | I38: 0 | J38: 0
F39: 0 | G39: 0 | H39: 0 | I39: 0 | J39: 0
F40: 0 | G40: 0 | H40: 0 | I40: 0 | J40: 0
F41: 0 | G41: 0 | H41: 0 | I41: 0 | J41: 0
F42: 0 | G42: 0 | H42: 0 | I42: 0 | J42: 0
F43: 0 | G43: 0 | H43: 0 | I43: 0 | J43: 0
F44: 0 | G44: 0 | H44: 0 | I44: 0 | J44: 0
F45: 0 | G45: 0 | H45: 0 | I45: 0 | J45: 0
F46: 0 | G46: 0 | H46: 0 | I46: 0 | J46: 0
F47: 0 | G47: 0 | H47: 0 | I47: 0 | J47: 0
F48: 0 | G48: 0 | H48: 0 | I48: 0 | J48: 0
F49: 0 | G49: 0 | H49: 0 | I49: 0 | J49: 0
F50: 0 | G50: 0 | H50: 0 | I50: 0 | J50: 0
F51: 0 | G51: 0 | H51: 0 | I51: 0 | J51: 0
F52: 0 | G52: 0 | H52: 0 | I52: 0 | J52: 0
F53: 0 | G53: 0 | H53: 0 | I53: 0 | J53: 0
F54: 0 | G54: 0 | H54: 0 | I54: 0 | J54: 0
F55: 0 | G55: 0 | H55: 0 | I55: 0 | J55: 0
F56: 0 | G56: 0 | H56: 0 | I56: 0 | J56: 0
F57: 0 | G57: 0 | H57: 0 | I57: 0 | J57: 0
F58: 0 | G58: 0 | H58: 0 | I58: 0 | J58: 0
F59: 0 | G59: 0 | H59: 0 | I59: 0 | J59: 0
F60: 0 | G60: 0 | H60: 0 | I60: 0 | J60: 0
F61: 0 | G61: 0 | H61: 0 | I61: 0 | J61: 0
F62: 0 | G62: 0 | H62: 0 | I62: 0 | J62: 0
F63: 0 | G63: 0 | H63: 0 | I63: 0 | J63: 0
F64: 0 | G64: 0 | H64: 0 | I64: 0 | J64: 0
F65: 0 | G65: 0 | H65: 0 | I65: 0 | J65: 0
F66: 0 | G66: 0 | H66: 0 | I66: 0 | J66: 0
F67: 0 | G67: 0 | H67: 0 | I67: 0 | J67: 0
F68: 0 | G68: 0 | H68: 0 | I68: 0 | J68: 0
F69: 0 | G69: 0 | H69: 0 | I69: 0 | J69: 0
F70: 0 | G70: 0 | H70: 0 | I70: 0 | J70: 0
F71: 0 | G71: 0 | H71: 0 | I71: 0 | J71: 0
F72: 0 | G72: 0 | H72: 0 | I72: 0 | J72: 0
F73: 0 | G73: 0 | H73: 0 | I73: 0 | J73: 0
F74: 0 | G74: 0 | H74: 0 | I74: 0 | J74: 0
F75: 0 | G75: 0 | H75: 0 | I75: 0 | J75: 0
F76: 0 | G76: 0 | H76: 0 | I76: 0 | J76: 0
F77: 0 | G77: 0 | H77: 0 | I77: 0 | J77: 0
F78: 0 | G78: 0 | H78: 0 | I78: 0 | J78: 0
F79: 0 | G79: 0 | H79: 0 | I79: 0 | J79: 0
F80: 0 | G80: 0 | H80: 0 | I80: 0 | J80: 0
F81: 0 | G81: 0 | H81: 0 | I81: 0 | J81: 0
F82: 0 | G82: 0 | H82: 0 | I82: 0 | J82: 0
F83: 0 | G83: 0 | H83: 0 | I83: 0 | J83: 0
F84: 0 | G84: 0 | H84: 0 | I84: 0 | J84: 0
F85: 0 | G85: 0 | H85: 0 | I85: 0 | J85: 0
F86: 0 | G86: 0 | H86: 0 | I86: 0 | J86: 0
F87: 0 | G87: 0 | H87: 0 | I87: 0 | J87: 0
F88: 0 | G88: 0 | H88: 0 | I88: 0 | J88: 0
F89: 0 | G89: 0 | H89: 0 | I89: 0 | J89: 0
F90: 0 | G90: 0 | H90: 0 | I90: 0 | J90: 0
F91: 0 | G91: 0 | H91: 0 | I91: 0 | J91: 0
F92: 0 | G92: 0 | H92: 0 | I92: 0 | J92: 0
F93: 0 | G93: 0 | H93: 0 | I93: 0 | J93: 0
F94: 0 | G94: 0 | H94: 0 | I94: 0 | J94: 0
F95: 0 | G95: 0 | H95: 0 | I95: 0 | J95: 0
F96: 0 | G96: 0 | H96: 0 | I96: 0 | J96: 0
F97: 0 | G97: 0 | H97: 0 | I97: 0 | J97: 0
F98: 0 | G98: 0 | H98: 0 | I98: 0 | J98: 0
F99: 0 | G99: 0 | H99: 0 | I99: 0 | J99: 0
F100: 0 | G100: 0 | H100: 0 | I100: 0 | J100: 0
